Workbook

Sheet Pojasnila k obrazcu
A1: Pojasnila k obrazcu
A3: Splošno | B3: Obrazec je opredeljen s Pravili za oblikovanje cen za uporabo raziskovalne opreme, obveščanje in poročanje o uporabi raziskovalne opreme, št. 007-3/2019-1 z dne 23. 1. 2019.
A5: Klasifikacija | B5: ARRS spremlja dve klasifikaciji opreme:
B6: Klasifikacijo opreme je razvila Univerza v Leedsu, VB. Spletna stran je:
B7: http://researchsupport.leeds.ac.uk/index.php/academic_staff/research_equipment_infrastructure/
B8: MERIL klasifikacija predstavlja pregled najodličnejše evropske raziskovalne infrastrukture; več o tem na
B9: http://portal.meril.eu/converis-esf/static/about
B10: Pripombe ali predloge k klasifikaciji ali k prevodu v slovenščino prosimo javite na ARRS.
A12: SICRIS | B12: Polja z zelenim ozadjem v zavihku Oprema-Equipment so lahko objavljena na SICRIS.
A14: Cena uporabe opreme | B14: Ceno uporabe in lastno ceno (stolpca 17 in 21) navedete za izučenega uporabnika.
A16: Stroški dela za operaterja | B16: Če je uporaba možna ali predpisana z operaterjem, ceno operaterja DODATNO navedite v stolpcu "Stroški dela za operaterja (se prištejejo ceni za uporabo za neizučene uporabnike)".
B17: V tem primeru je cena uporabe enaka (ceni uporabe za izučenega uporabnika) + (stroški dela za operaterja).
B18: Cene uporabe ne pišete v druga polja, npr. "Dostop do opreme".
A20: Cena na uro | B20: Ceno vedno navedite preračunano na uro, tudi če meritev obvezno traja več ur ali cel dan (to podrobnost dodajte v "Dostop do opreme").

Sheet Oprema
A1: EVIDENCA RAZISKOVALNE OPREME S PODATKI O MESEČNI UPORABI
E5: Polja z zelenim ozadjem so lahko objavljena na portalu SICRIS | R5: Struktura lastne cene za uporabo raziskovalne opreme (v EUR/uro) | AF5: MESEČNO POROČILO - ZA MESEC:
A6: Številka RO | B6: Naziv RO | C6: Številka RS | D6: Šifra PS / IS (za P-14 in P-16) | E6: Skrbnik opreme | F6: Številka skrbnika | G6: Naziv opreme | H6: Leto nabave | I6: Naziv opreme v angleškem jeziku | J6: Nabavna vrednost z DDV (EUR) | K6: Vir sofinanciranja iz javnih sredstev (Paket ARRS, drugi javni viri) | L6: Opis postopka dostopa do opreme - (čas, največ 5 stavkov) | M6: Opis postopka dostopa do opreme v angleškem jeziku | N6: Namembnost opreme in dodatne informacije (največ 5 stavkov) | O6: Namembnost opreme in dodatne informacije v angleškem jeziku | P6: Inventarna številka v knjigovodski evidenci | Q6: Cena za uporabo raziskovalne opreme za izučenega uporabnika (v EUR/uro) | R6: Stroški amortizacije | S6: Stroški materiala in storitev za vzdrževanje opeme | T6: Stroški dela | U6: Skupaj lastna cena/uro | V6: Letna stopnja izkoriščenosti v % v pretek. koled. letu | W6: Stopnja odpisanosti v % konec pret. koled. leta | X6: Spletna stran RO (predstavitev opreme, pogoj dostopa,cenik) | Y6: Klasifikacija Univ. v Leedsu | AB6: Klasif. MERIL | AC6: Zap.št. nakupa (če je vir sofinanciranja Paket ARRS) | AD6: Stroški dela za operaterja (se prištejejo ceni za uporabo za neizučene uporabnike) | AE6: Doba amortiziranja | AF6: Mesečna stopnja izkoriščenosti (v %) v navednem mesecu | AG6: Projekt oz. program 1 | AJ6: Projekt oz. program 2 | AM6: Projekt oz. program 3 | AP6: Projekt oz. program 4 | AS6: Drug namen | AV6: Drug namen
Y7: #C | Z7: #O | AA7: #G | AG7: Šifra programa oz. projekta | AH7: Uporabnik | AI7: % upor. | AJ7: Šifra programa oz. projekta | AK7: Uporabnik | AL7: % upor. | AM7: Šifra programa oz. projekta | AN7: Uporabnik | AO7: % upor. | AP7: Šifra programa oz. projekta | AQ7: Uporabnik | AR7: % upor. | AS7: Namen | AT7: Uporabnik | AU7: % upor. | AV7: Namen | AW7: Uporabnik | AX7: % upor.
A8: 1 | B8: 2 | C8: 3 | D8: 4 | E8: 5 | F8: 6 | G8: 7 | H8: 8 | I8: 9 | J8: 10 | K8: 11 | L8: 12 | M8: 13 | N8: 14 | O8: 15 | P8: 16 | Q8: 17 | R8: 18 | S8: 19 | T8: 20 | U8: 21 | V8: 22 | W8: 23 | X8: 24 | Y8: 25 | Z8: 26 | AA8: 27 | AB8: 28 | AC8: 29 | AD8: 30 | AE8: 31 | AF8: 32 | AG8: 33 | AH8: 34 | AI8: 35 | AJ8: 36 | AK8: 37 | AL8: 38 | AM8: 39 | AN8: 40 | AO8: 41 | AP8: 42 | AQ8: 43 | AR8: 44 | AS8: 45 | AT8: 46 | AU8: 47 | AV8: 48 | AW8: 49 | AX8: 482
A9: 106 | B9: Institut "Jožef Stefan" | D9: P1-0125 | E9: Polona Umek | F9: 18274 | G9: ATR-FTIR spektrometer | H9: 2009 | I9: ATR-FTIR spektrometer (Attenuated Total Reflection Fourier Transform Infrared Spectrometer) | J9: 113,192.30 | K9: P_XIV_191 | L9: Oprema je dostopna za zunanje uporabnike. Kontaktni osebi sta polona.umek@ijs.si in zoran.arsov@ijs.si | M9: Equipment is available for external users. Contact pearsons are polona.umek@ijs.si and zoran.arsov@ijs.si | N9: Oprema je namenjena snemanju IR spektrov v FAR in MID IR področju snovi v trdnem stanju in vodnih raztopinah. | O9: The equipment is intended for the recording of IR spectra in the FAR and MID IR regions for solid-state materials and aqueous solutions. | P9: 49240 50421 | Q9: =Table4[[#This Row],[21]] -> 41.14 | R9: =J9*0.2/2080 -> 10.88 | S9: 17.88 | T9: 12.38 | U9: =SUBTOTAL(9,Table4[[#This Row],[18]:[20]]) -> 41.14 | V9: 100 | W9: 100 | X9: https://www.ijs.si/ijsw/Znotraj%20hi%C5%A1e/Desno?action=AttachFile&do=get&target=ARIS_Evidenca_opreme_2024.xlsx | Y9: 3 | Z9: 1 | AA9: 2 | AB9: 47 | AC9: =Table4[[#This Row],[11]] -> P_XIV_191 | AD9: 0 | AE9: 5 | AF9: 100 | AG9: =Table4[[#This Row],[4]] -> P1-0125 | AH9: =Table4[[#This Row],[5]] -> Polona Umek | AI9: 100
A10: 106 | B10: Institut "Jožef Stefan" | D10: P1-0135 | E10: Vladimir Cindro | F10: 9081 | G10: Avtomatski ožičevalnik elektronskih vezij z mikroskopom | H10: 2010 | I10: Automatic Al wire bonder with rotating head | J10: 109,209.90 | K10: P_XIV_184 | L10: Kontaktna oseba. Vladimir Cindro, tel 4773726 | M10: Contact person: Vladimir Cindro, phone no. +3861 4773726 | N10: Povezovanje elektronskih vezij z Al žico debeline 20-30 mikronov, presledki večji od 80 mikronov | O10: Wire bonding with 20-30 micron Al wire. Minimum pitch 80 microns. | P10: 50155 50165 | Q10: =Table4[[#This Row],[21]] -> 40.76 | R10: 10.50 | S10: 17.88 | T10: 12.38 | U10: =SUBTOTAL(9,Table4[[#This Row],[18]:[20]]) -> 40.76 | V10: 100 | W10: 100 | X10: https://www.ijs.si/ijsw/Znotraj%20hi%C5%A1e/Desno?action=AttachFile&do=get&target=ARIS_Evidenca_opreme_2024.xlsx | Y10: 1 | Z10: 5 | AA10: 1 | AB10: 46 | AC10: =Table4[[#This Row],[11]] -> P_XIV_184 | AD10: 0 | AE10: 5 | AF10: =(AI10+AL10+AO10+AR10+AU10+AX10) -> 100 | AG10: =Table4[[#This Row],[4]] -> P1-0135 | AH10: =Table4[[#This Row],[5]] -> Vladimir Cindro | AI10: 100
A11: 106 | B11: Institut "Jožef Stefan" | D11: P1-0102 | E11: Primož Pelicon | F11: 12314 | G11: Detekcijski sistem s hlajeno CCD-kamero | H11: 2001 | I11: A thermoelectrically cooled back illuminated CCD x-ray camera system (ANDOR DX-438 BV) | J11: 65,391.41 | K11: Paket 10 | L11: Po predhodnem dogovoru z doc.dr. Lipoglavškom 01/477-34-93 matej.lipoglavsek@ijs.si | M11: Contact assist.prof. Matej Lipoglavšek 01/477-34-93 matej.lipoglavsek@ijs.si | N11: Termoelektrično hlajen CCD detektor je sestavni del visokoločljivega spektrometra rentgenskih žarkov. Omogoča pozicijsko občutljivo detekcijo rentgenskih fotonov v energijskem področju 1 - 10 keV. | O11: TE cooled CCD x-ray camera is integrated within the Bragg type high-resolution x-ray spectrometer to detect diffracted photons within 1-10 keV range. | P11: 38155 | Q11: =Table4[[#This Row],[21]] -> 36.55 | R11: 6.29 | S11: 17.88 | T11: 12.38 | U11: =SUBTOTAL(9,Table4[[#This Row],[18]:[20]]) -> 36.55 | V11: 100 | W11: 100 | X11: https://www.ijs.si/ijsw/Znotraj%20hi%C5%A1e/Desno?action=AttachFile&do=get&target=ARIS_Evidenca_opreme_2024.xlsx | Y11: 3 | Z11: 1 | AA11: 6 | AB11: 41 | AC11: =Table4[[#This Row],[11]] -> Paket 10 | AD11: 0 | AE11: 5 | AF11: 100 | AG11: =Table4[[#This Row],[4]] -> P1-0102 | AH11: =Table4[[#This Row],[5]] -> Primož Pelicon | AI11: 33 | AJ11: P1-0112 | AK11: Matjaž Žitnik | AL11: 33 | AM11: P6-0283 | AN11: Janka Istenič | AO11: 33
A12: 106 | B12: Institut "Jožef Stefan" | D12: P2-0105 | E12: Barbara Malič | F12: 4587 | G12: Diferenčni dinamični kalorimeter (temperaturno območje: - 180ºC do + 700ºC) | H12: 2008 | I12: Differential Scanning Calorimeter (temperature range - 180ºC do + 700ºC) | J12: 61,000.00 | K12: Paket 13 | L12: Diferenčni dinamični kalorimeter je dostopen za termične analize različnih trdnih in tekočih vzorcev. Pomembno je, da so vzorci v izbranem temperaturnem območju analize obstojni, oziroma, da razpadajo brez ljudem, aparaturi in okolju nevarnih produktov. Cena analiz je odvisna predvsem od izbranega temperaturnega programa, torej temperaturnega območja, hitrosti segrevanja in/ali ohlajanja, dolžine izotermnih segmentov in atmosfere. | M12: Differential scanning calorimeter is suitablle for thermal analyses of different solid and liquid samples. The samples should be stable in the selected temperature range of the analysis, or the evolved products of decomposition should not be harmful for staff, equipment and environment. The cost of the analyses depends mainly on the selected temperature programme, that is the temperature range, heating/cooling rate, duration of isothermal segments and atmosphere. | N12: Diferenčni dinamični kalorimeter (DSC) je aparatura, s katero določamo entalpijske spremembe in temperature prehodov, ki so posledica različnih kemijskih ali fizikalnih procesov (kemijske reakcije, fazne premene,...) med segrevanjem in/ali ohlajanjem vzorcev po izbranem temperaturnem programu in v izbrani atmosferi. Metoda je primerna za analizo trdnih in tekočih vzorcev z masami od nekaj mg do nekaj 10 mg v temperaturnem območju od -180ºC do + 700ºC. | O12: Differential scanning calorimeter (DSC) is research equipment for determination of enthalpy changes and transition temperatures in solids and liquid samples due to chemical and physical processes (chemical reactions, phase transitions,...) under controlled temperature change in a controlled atmosphere. The method is suitable for analysis of solid and liquid samples with masses of a few mg to a few 10 mg in the temperature range between -180ºC to + 700ºC. | P12: 44888 | Q12: =Table4[[#This Row],[21]] -> 36.13 | R12: 5.87 | S12: 17.88 | T12: 12.38 | U12: =SUBTOTAL(9,Table4[[#This Row],[18]:[20]]) -> 36.13 | V12: 100 | W12: 100 | X12: https://www.ijs.si/ijsw/Znotraj%20hi%C5%A1e/Desno?action=AttachFile&do=get&target=ARIS_Evidenca_opreme_2024.xlsx | Y12: 3 | Z12: 12 | AA12: 3 | AB12: 44 | AC12: =Table4[[#This Row],[11]] -> Paket 13 | AD12: 0 | AE12: 5 | AF12: 100 | AG12: =Table4[[#This Row],[4]] -> P2-0105 | AH12: =Table4[[#This Row],[5]] -> Barbara Malič | AI12: 33 | AJ12: J2-1227 | AK12: Barbara Malič | AL12: 33 | AM12: L2-2343 | AN12: Janez Holc | AO12: 33
A13: 106 | B13: Institut "Jožef Stefan" | D13: P2-0001 | E13: Stanislav Strmčnik | F13: 2830 | G13: Eksperimentalni energetski sistem s PEM gorivno celico | H13: 2007 | I13: Experimental power system based on PEM fuel cells | J13: 78,196.35 | K13: P_XIII_200 | L13: Opremo je možno uporabljati po predhodnem dogovoru s potencialnim uporabnikom in lastnikom opreme. Pogoje, trajanje in način uporabe se določi s pogodbo. | M13: The equipment can be exploited upon precedent agreement between the potential user and the owner. The conditions, duration and modes of the equipment exploitation are to be defined with a contract. | N13: Eksperimentalni sistem sestavlja 1kW PEM gorivne celice, viri vodika, hranilnik vodika, elektronsko breme in kontrolni sistem za nadzor in vodenje. Sistem je namenjen testiranju različnih podsklopov, ki se uporabljajo pri gradnji sistemov, ki kot energetski vir uporabljajo PEM gorivne celice. | O13: The experimental system consists of 1kW PEM fuel cells generator setup, various hydrogen sources, hydrogen storage, elecronic load and computer system for monitoring and control. The system is used for testing of various devices and subsystems that are used in the design of different PEM fuel cells based systems. | P13: 45812, 46080, 46025, 46023,46022,45438, 45939,46780 | Q13: =Table4[[#This Row],[21]] -> 37.78 | R13: 7.52 | S13: 17.88 | T13: 12.38 | U13: =SUBTOTAL(9,Table4[[#This Row],[18]:[20]]) -> 37.78 | V13: 100 | W13: 100 | X13: https://www.ijs.si/ijsw/Znotraj%20hi%C5%A1e/Desno?action=AttachFile&do=get&target=ARIS_Evidenca_opreme_2024.xlsx | Y13: 6 | Z13: 4 | AB13: 46 | AC13: =Table4[[#This Row],[11]] -> P_XIII_200 | AD13: 0 | AE13: 5 | AF13: 100 | AG13: =Table4[[#This Row],[4]] -> P2-0001 | AH13: =Table4[[#This Row],[5]] -> Stanislav Strmčnik | AI13: 33 | AJ13: Razvoj demonstracijskega prototipa kogeneracije na osnovi gorivnih celic za vojaške namene | AK13: IJS | AL13: 33 | AM13: Keramični procesor za razklop goriva in čiščenje izhodnih plinov | AN13: IJS | AO13: 33
A14: 106 | B14: Institut "Jožef Stefan" | D14: P1-0040 | E14: Dragan Mihailović | F14: 4540 | G14: Femtosekundni sistem za mešanje optičnih frekvenc | H14: 2002 | I14: Femtosecond optical frequency mixing system | J14: 141,575.19 | K14: Paket 11 | L14: Oprema je dosegljiva po dogovoru s skrbnikom | M14: Equipment is available upon agreement | N14: Osnovna sestavna komponenta sistema za mešanje optičnih frekvenc. | O14: Basic component of the system for the mixing of the optical frequencies. | P14: 39116 | Q14: =Table4[[#This Row],[21]] -> 43.87 | R14: 13.61 | S14: 17.88 | T14: 12.38 | U14: =SUBTOTAL(9,Table4[[#This Row],[18]:[20]]) -> 43.87 | V14: 100 | W14: 100 | X14: https://www.ijs.si/ijsw/Znotraj%20hi%C5%A1e/Desno?action=AttachFile&do=get&target=ARIS_Evidenca_opreme_2024.xlsx | Y14: 3 | Z14: 1 | AA14: 4 | AB14: 30 | AC14: =Table4[[#This Row],[11]] -> Paket 11 | AD14: 0 | AE14: 5 | AF14: 100 | AG14: =Table4[[#This Row],[4]] -> P1-0040 | AH14: =Table4[[#This Row],[5]] -> Dragan Mihailović | AI14: 50 | AJ14: P1-0192 | AK14: Martin Čopič | AL14: 50
A15: 106 | B15: Institut "Jožef Stefan" | D15: P1-0192 | E15: Martin Čopič | F15: 3470 | G15: Femtosekundni sistem za mešanje optičnih frekvenc s priborom | H15: 2004 | I15: Femtosecond optical frequency mixing system with acompanying equiment | J15: 121,964.78 | K15: Paket 12 | L15: Oprema je dosegljiva po dogovoru s skrbnikom | M15: Equipment is available upon agreement | N15: Pikosekundna spektroskopija v IR področju z nastavljivo valovno dolžino svetlobe, posebej še nelinearno resonančno optično mešanje frekvenc na površinah. | O15: Picosecond spectroscopy in IR region with tunable wavelength, especially non-linear resonant optical mixing of frequencies on surfaces. | P15: 41008 | Q15: =Table4[[#This Row],[21]] -> 41.99 | R15: 11.73 | S15: 17.88 | T15: 12.38 | U15: =SUBTOTAL(9,Table4[[#This Row],[18]:[20]]) -> 41.99 | V15: 100 | W15: 100 | X15: https://www.ijs.si/ijsw/Znotraj%20hi%C5%A1e/Desno?action=AttachFile&do=get&target=ARIS_Evidenca_opreme_2024.xlsx | Y15: 3 | Z15: 1 | AA15: 4 | AB15: 30 | AC15: =Table4[[#This Row],[11]] -> Paket 12 | AD15: 0 | AE15: 5 | AF15: 100 | AG15: =Table4[[#This Row],[4]] -> P1-0192 | AH15: =Table4[[#This Row],[5]] -> Martin Čopič | AI15: 50 | AJ15: P1-0040 | AK15: Dragan D. Mihailović | AL15: 50
A16: 106 | B16: Institut "Jožef Stefan" | D16: P1-0045 | E16: Tomaž Skapin | F16: 2757 | G16: FTIR spektrometer | H16: 2004 | I16: FTIR spectrometer | J16: 70,905.76 | K16: Paket 12 | L16: Dostop do in delo na opremi sta možna. Pogoji dostopa in cena: po dogovoru. Kontakt: T. Skapin | M16: Access and work on the equipment is possible. Access conditions and prices: individually appointed. Contact: T. Skapin | N16: Raziskovalni FTIR spektrometer srednjega razreda. Območje: 30 - 10.000 cm-1; ločljivost < 0.3 cm-1. Dodatna oprema: visokotemperaturna celica, nizkotemperaturna celica, fotoakustični detektor. | O16: Medium class research FTIR spectrometer. Range: 30 - 10.000 cm-1; resolution < 0.3 cm-1. Additional equipment: low temperature cell, high temperature cell, photoacoustic detector. | P16: 41282 | Q16: =Table4[[#This Row],[21]] -> 37.08 | R16: 6.82 | S16: 17.88 | T16: 12.38 | U16: =SUBTOTAL(9,Table4[[#This Row],[18]:[20]]) -> 37.08 | V16: 100 | W16: 100 | X16: https://www.ijs.si/ijsw/Znotraj%20hi%C5%A1e/Desno?action=AttachFile&do=get&target=ARIS_Evidenca_opreme_2024.xlsx | Y16: 3 | Z16: 1 | AA16: 2 | AB16: 4 | AC16: =Table4[[#This Row],[11]] -> Paket 12 | AD16: 0 | AE16: 5 | AF16: 100 | AG16: =Table4[[#This Row],[4]] -> P1-0045 | AH16: =Table4[[#This Row],[5]] -> Tomaž Skapin | AI16: 25 | AJ16: V4-0490 | AK16: Andrej Stergaršek | AL16: 25 | AM16: Z1-6524 | AN16: Boris Žemva | AO16: 25 | AP16: Z1-7037 | AQ16: Boris Žemva | AR16: 25
A17: 106 | B17: Institut "Jožef Stefan" | D17: P1-0143 | E17: Milena Horvat | F17: 5027 | G17: GC/HPLC/ICP-MS | H17: 2005 | I17: Inductively Coupled Plasma Mass Spectrometer coupled to GC/HPLC | J17: 251,649.53 | K17: Paket 12 | L17: Po dogovoru; materialni stroški + ure operaterja | M17: Pon agreement; material + personnel costs | N17: Uporablja se za določanje elementov in njihovih zvrsti v različnih vzorcih (okoljski, biološki vzorci...). | O17: It is used for determination of elements and theitr compounds in different samples (environmental, biological…) | P17: 43605 | Q17: =Table4[[#This Row],[21]] -> 54.46 | R17: 24.20 | S17: 17.88 | T17: 12.38 | U17: =SUBTOTAL(9,Table4[[#This Row],[18]:[20]]) -> 54.46 | V17: 100 | W17: 100 | X17: https://www.ijs.si/ijsw/Znotraj%20hi%C5%A1e/Desno?action=AttachFile&do=get&target=ARIS_Evidenca_opreme_2024.xlsx | Y17: 3 | Z17: 2 | AA17: 3 | AB17: 32 | AC17: =Table4[[#This Row],[11]] -> Paket 12 | AD17: 0 | AE17: 5 | AF17: 100 | AG17: =Table4[[#This Row],[4]] -> P1-0143 | AH17: =Table4[[#This Row],[5]] -> Milena Horvat | AI17: 25 | AJ17: PR-00438 | AK17: IJS | AL17: 25 | AM17: PR-01156 | AO17: 25 | AP17: PR-01872 PR-02727 | AQ17: IJS | AR17: 25
A18: 106 | B18: Institut "Jožef Stefan" | D18: P2-0076 | E18: Leon Žlajpah | F18: 3332 | G18: Humanoidni robot | H18: 2007 | I18: Humanoid robot | J18: 76,157.90 | K18: Paket 13 | L18: Humanoidnega robota zaradi kompleksnosti upravljanja in s tem povezane nevarnosti poškodb opreme ne posojamo. Po predhodnem dogovoru se lahko pri nas izvajajo eksperimenti, ki jih sami pripravimo. Pri tem zaračunamo ceno ure po ceniku IJS | M18: The robot can be hired for experimental work providing that the experiments are prepared and executed by our personnel. We charge according to the JSI personnel price list. | N18: Imitacija človeškega gibanja in akcij. Robot ima 28 prostostnih stopenj, je visok 63 cm in težek 8,8 Kg | O18: The humanoid robot imitates human motion and can perform actions in simmilar way as humans. It has 28 DOF. The height of the robot is 63cm and the weight is 8,8 kg, The robot is equipped with vision system, force sensors and audio system. | P18: 45460,45740, 45741, 45739, 46077, 45747, 45748 XIII 199 | Q18: =Table4[[#This Row],[21]] -> 37.58 | R18: 7.32 | S18: 17.88 | T18: 12.38 | U18: =SUBTOTAL(9,Table4[[#This Row],[18]:[20]]) -> 37.58 | V18: 100 | W18: 100 | X18: https://www.ijs.si/ijsw/Znotraj%20hi%C5%A1e/Desno?action=AttachFile&do=get&target=ARIS_Evidenca_opreme_2024.xlsx | Y18: 6 | Z18: 1 | AA18: 1 | AB18: 46 | AC18: =Table4[[#This Row],[11]] -> Paket 13 | AD18: 0 | AE18: 5 | AF18: 100 | AG18: =Table4[[#This Row],[4]] -> P2-0076 | AH18: =Table4[[#This Row],[5]] -> Leon Žlajpah | AI18: 50 | AJ18: P2-0076 | AK18: Jadran Lenarčič | AL18: 50
A19: 106 | B19: Institut "Jožef Stefan" | D19: P1-0112 | E19: Primož Pelicon | F19: 12314 | G19: Ionski izvor velike svetlosti | H19: 2012 | I19: High-brightness ion source | J19: 567,120.00 | K19: Paket 14 | L19: Oprema je dostopna akademskim institucijam in gospodarskim družbam (primoz.pelicon@ijs.si), kot tudi raziskovalcem in industriji iz evropskega raziskovalnega prostora (EU FP7 SPIRIT, www.spirit-ion.eu). | M19: Equipment is accesible for all academic institutions and companies (primoz.pelicon@ijs.si), as well as to the european researchers and industry in the frame of 7th FPEU project "SPIRIT" (www.spirit-ion.eu). | N19: Oprema je namenjena tvorbi visokoenergijskega fokusiranega protonskega žarka za določanje elementnih porazdelitev v bioloških in geoloških vzorcih in za mikroobdelavo. | O19: The equipment is dedicated to the formation of high-energy focused proton beams for elemental mapping of biological tissue, geological samples and micromachining. | P19: 53759 XIV 200 | Q19: =Table4[[#This Row],[21]] -> 76.41 | R19: 54.53 | S19: 7.78 | T19: 14.1 | U19: =SUBTOTAL(9,Table4[[#This Row],[18]:[20]]) -> 76.41 | V19: 100 | W19: 100 | X19: https://www.ijs.si/ijsw/Znotraj%20hi%C5%A1e/Desno?action=AttachFile&do=get&target=ARIS_Evidenca_opreme_2024.xlsx | Y19: 1 | Z19: 1 | AA19: 7 | AB19: 41 | AC19: =Table4[[#This Row],[11]] -> Paket 14 | AD19: 0 | AE19: 5 | AF19: 100 | AG19: =Table4[[#This Row],[4]] -> P1-0112 | AH19: =Table4[[#This Row],[5]] -> Primož Pelicon | AI19: 33 | AJ19: P1-0102 | AK19: Simon Širca | AL19: 33 | AM19: P1-0212 | AN19: Gaberščik Alenka | AO19: 33
A20: 106 | B20: Institut "Jožef Stefan" | D20: P1-0143 | E20: Milena Horvat | F20: 5027 | G20: IsoPrime MultiFlow Bio | H20: 2008 | I20: Equilibration unit for oxygen and hydrogen isotope analyses in water | J20: 78,200.00 | K20: Paket 13 | L20: Po dogovoru; materialni stroški + ure operaterja | M20: upon agreement; material + personnel costs | N20: Ekvilibracija vode oz. vodnih raztopin s CO2 ali H2 za analizo izotopske sestave O in H | O20: Equilibration of water and water solution with CO2 or H2 for stable isotope analysis of O and H | P20: 47422 XIV 222 | Q20: =Table4[[#This Row],[21]] -> 37.78 | R20: 7.52 | S20: 17.88 | T20: 12.38 | U20: =SUBTOTAL(9,Table4[[#This Row],[18]:[20]]) -> 37.78 | V20: 100 | W20: 100 | X20: https://www.ijs.si/ijsw/Znotraj%20hi%C5%A1e/Desno?action=AttachFile&do=get&target=ARIS_Evidenca_opreme_2024.xlsx | Y20: 3 | Z20: 11 | AA20: 3 | AB20: 32 | AC20: =Table4[[#This Row],[11]] -> Paket 13 | AD20: 0 | AE20: 5 | AF20: 100 | AG20: =Table4[[#This Row],[4]] -> P1-0143 | AH20: =Table4[[#This Row],[5]] -> Milena Horvat | AI20: 25 | AJ20: J1-9498 | AK20: Sonja Lojen | AL20: 25 | AM20: V4-0539 | AN20: Matjaž Čater | AO20: 25 | AP20: J2-1433 | AQ20: Jožef Pezdič | AR20: 25
A21: 106 | B21: Institut "Jožef Stefan" | D21: P2-0037 | E21: Borka Jerman Blažič | F21: 1339 | G21: Laboratorij za antropocentrične študije in računalniško forenziko | H21: 2007 | I21: Laboratory for anthropocentric studies and computer forensics | J21: 67,200.00 | K21: Paket 13 | L21: Ni na razpolago | M21: Not for public use | N21: Evalvacija uporabnosti programske opreme | O21: Usability evaluation software | P21: 46474,46478,46033,45549,45555,45550,46072,46061,46062,46064,46055,46056,56057,46058,460589,46473,46053,46015 XIII_208 | Q21: =Table4[[#This Row],[21]] -> 36.72 | R21: 6.46 | S21: 17.88 | T21: 12.38 | U21: =SUBTOTAL(9,Table4[[#This Row],[18]:[20]]) -> 36.72 | V21: 100 | W21: 100 | X21: https://www.ijs.si/ijsw/Znotraj%20hi%C5%A1e/Desno?action=AttachFile&do=get&target=ARIS_Evidenca_opreme_2024.xlsx | Y21: 6 | Z21: 1 | AA21: 5 | AB21: 63 | AC21: =Table4[[#This Row],[11]] -> Paket 13 | AD21: 0 | AE21: 5 | AF21: 100 | AG21: =Table4[[#This Row],[4]] -> P2-0037 | AH21: =Table4[[#This Row],[5]] -> Borka Jerman Blažič | AI21: 25 | AJ21: P2-0037 | AK21: Borka Džonova Jerman B. | AL21: 25 | AM21: P2-0037 | AN21: Borka Džonova Jerman B. | AO21: 25 | AP21: P2-0037 | AQ21: Borka Džonova Jerman B. | AR21: 25
A22: 106 | B22: Institut "Jožef Stefan" | D22: P2-0105 | E22: Barbara Malič | F22: 4587 | G22: Laboratorijska izostatska stiskalnica | H22: 2004 | I22: Laboratory isostatic pressure | J22: 52,228.55 | K22: Paket 12 | L22: Izostasko stiskanje prahov v končno obliko do velikost 7 x 20 cm. Cena in čas po dogovoru. | M22: Izostatic pressing of different powders in to final shape with dimensions 7 x 20 cm. Price and availabillity by arragement. | N22: Izostasko stiskanje, maksimalni pritisk 400 Mpa, temperatura 80oC. | O22: Izostatic pressing with maksimum poressure of 400 Mpa and temperature of 80oC. | P22: 41790 | Q22: =Table4[[#This Row],[21]] -> 35.28 | R22: 5.02 | S22: 17.88 | T22: 12.38 | U22: =SUBTOTAL(9,Table4[[#This Row],[18]:[20]]) -> 35.28 | V22: 100 | W22: 100 | X22: https://www.ijs.si/ijsw/Znotraj%20hi%C5%A1e/Desno?action=AttachFile&do=get&target=ARIS_Evidenca_opreme_2024.xlsx | Y22: 6 | Z22: 3 | AA22: 4 | AB22: 44 | AC22: =Table4[[#This Row],[11]] -> Paket 12 | AD22: 0 | AE22: 5 | AF22: 100 | AG22: =Table4[[#This Row],[4]] -> P2-0105 | AH22: =Table4[[#This Row],[5]] -> Barbara Malič | AI22: 25 | AJ22: L2-2343 | AK22: Janez Holc | AL22: 25 | AM22: J2-9090 | AN22: Marko Hrovat | AO22: 25 | AP22: L2-2343 | AQ22: Janez Holc | AR22: 25
A23: 106 | B23: Institut "Jožef Stefan" | D23: P2-0105 | E23: Barbara Malič | F23: 4587 | G23: Laboratorijska naprava za naparevanje in naprševanje Leybold UNIVX 300 | H23: 2002 | I23: Laboratory sputtering equipment | J23: 112,852.06 | K23: Paket 11 | L23: Naprševanja kovinskih elektrod (Au, Pt, Ag, Ti, Cr, Cu, zlitine itd) na različne vzorce do velikost 4 cm. Cena in čas po dogovoru. | M23: Sputtering of metallic electrode on different materials(Au, Pt, Ag, Ti, Cr, Cu, alloys etc.). Price and availabillity by arragement. | N23: Naprševanje kovinskih elektrod na različne materiale. Možnost naprševanja do treh različnih kovinskih plasti v enem ciklusu. | O23: Sputtering of metal electrodes on different materials. Option sputtering up to three different metal layers in a single cycle. | P23: 39264 | Q23: =Table4[[#This Row],[21]] -> 41.11 | R23: 10.85 | S23: 17.88 | T23: 12.38 | U23: =SUBTOTAL(9,Table4[[#This Row],[18]:[20]]) -> 41.11 | V23: 100 | W23: 100 | X23: https://www.ijs.si/ijsw/Znotraj%20hi%C5%A1e/Desno?action=AttachFile&do=get&target=ARIS_Evidenca_opreme_2024.xlsx | Y23: 1 | Z23: 1 | AA23: 7 | AB23: 44 | AC23: =Table4[[#This Row],[11]] -> Paket 11 | AD23: 0 | AE23: 5 | AF23: 100 | AG23: =Table4[[#This Row],[4]] -> P2-0105 | AH23: =Table4[[#This Row],[5]] -> Barbara Malič | AI23: 25 | AJ23: J2-1227 | AK23: Barbara Malič | AL23: 25 | AM23: L2-1187 | AN23: Janez Holc | AO23: 25 | AP23: J2-9090 | AQ23: Marko Hrovat | AR23: 25
A24: 106 | B24: Institut "Jožef Stefan" | D24: P1-0099 | E24: Igor Muševič | F24: 9089 | G24: Laserska pinceta | H24: 2007 | I24: Laser tweezers | J24: 141,378.00 | K24: Paket 13 | L24: Možnost meritev po ceniku IJS, možnost brezplačne uporabe v primeru izvajanja skupnih RR projektov. Dodatni podatki o skrbnikih opreme na razpolago na RO | M24: Posibility of measurements according to the IJS price-list, possibility for free usage in case of joined projects | N24: Sistem omogočija manipulacijo mikronskih in submikronskih delcev v mehki snovi, npr. koloidov trdnih delcev v tekočih kristalih | O24: The system provides for manipulation of micro- and submicro-sized particles in soft matter, in particular colloids of solid particles and liquid crystals. | P24: 44433, 45528,46085,46017,46079,45830,46555,46464 XIII219 | Q24: =Table4[[#This Row],[21]] -> 43.85 | R24: 13.59 | S24: 17.88 | T24: 12.38 | U24: =SUBTOTAL(9,Table4[[#This Row],[18]:[20]]) -> 43.85 | V24: 100 | W24: 100 | X24: https://www.ijs.si/ijsw/Znotraj%20hi%C5%A1e/Desno?action=AttachFile&do=get&target=ARIS_Evidenca_opreme_2024.xlsx | Y24: 4 | Z24: 4 | AA24: 6 | AB24: 30 | AC24: =Table4[[#This Row],[11]] -> Paket 13 | AD24: 0 | AE24: 5 | AF24: 100 | AG24: =Table4[[#This Row],[4]] -> P1-0099 | AH24: =Table4[[#This Row],[5]] -> Igor Muševič | AI24: 100
A25: 106 | B25: Institut "Jožef Stefan" | D25: P1-0125 | E25: Tomaž Apih | F25: 7518 | G25: Magnetno-resonančni relaksometer (s hitrim cikliranjem magnetnega polja) | H25: 2002 | I25: Fast field cycling NMR relaxomer | J25: 129,196.90 | K25: Paket 11 | L25: Dostop dovoljen po dogovoru, ni posebnih omejitev | M25: Service available upon request, no special limitation | N25: Meritve molekularne dinamike snovi | O25: Investigations of molecular dynamics | P25: 39291 | Q25: =Table4[[#This Row],[21]] -> 42.68 | R25: 12.42 | S25: 17.88 | T25: 12.38 | U25: =SUBTOTAL(9,Table4[[#This Row],[18]:[20]]) -> 42.68 | V25: 100 | W25: 100 | X25: https://www.ijs.si/ijsw/Znotraj%20hi%C5%A1e/Desno?action=AttachFile&do=get&target=ARIS_Evidenca_opreme_2024.xlsx | Y25: 3 | Z25: 1 | AA25: 3 | AB25: 44 | AC25: =Table4[[#This Row],[11]] -> Paket 11 | AD25: 0 | AE25: 5 | AF25: 100 | AG25: =Table4[[#This Row],[4]] -> P1-0125 | AH25: =Table4[[#This Row],[5]] -> Tomaž Apih | AI25: 100
A26: 106 | B26: Institut "Jožef Stefan" | D26: P2-0082 | E26: Peter Panjan | F26: 9090 | G26: Magnetronska izvira in napajalniki za vgradnjo v napravo za nanašanje niozkotemperaturnih prevlek | H26: 2007 | I26: Magnetron sources and power supply for deposition of low temperature hard coatings | J26: 52,450.00 | K26: Paket 13 | L26: Depozicija 3 µm debele trde prevleke na podlage, ki zasedajo volumen 400 mm v premeru in 400 mm v višino se oblikuje po dogovoru (cena vključuje izrabo tarč, porabo električne energije in delovnih plinov, mehansko predpripravo in čiščenje podlag, saržiranje, delo dveh operaterjev). Postopek nanašanja 3 µm debele prevleke traja okrog 8ur. | M26: Deposition of 3µm thick hard coating on substrates which occupy the usable volume 400 mm in diameter and 400 mm in height cost app. 600 € (the cost include the target, gases and energy consumption, mechanical preatreatment and cleaning of substrates, loading, fixturing, personnel cost). Total time needed for one batch is app. 8 hour. | N26: Nanos trdih PVD prevlek pri temperaturi pod 200 °C z pulznim magnetronskim naprševanjem. | O26: Deposition of low temperature hard coatings by pulsed magnetron sputtering at temperature bellow 200 °C. | P26: 46032 XIV 205 | Q26: =Table4[[#This Row],[21]] -> 35.30 | R26: 5.04 | S26: 17.88 | T26: 12.38 | U26: =SUBTOTAL(9,Table4[[#This Row],[18]:[20]]) -> 35.30 | V26: 100 | W26: 100 | X26: https://www.ijs.si/ijsw/Znotraj%20hi%C5%A1e/Desno?action=AttachFile&do=get&target=ARIS_Evidenca_opreme_2024.xlsx | Y26: 1 | Z26: 1 | AA26: 3 | AB26: 44 | AC26: =Table4[[#This Row],[11]] -> Paket 13 | AD26: 0 | AE26: 5 | AF26: 100 | AG26: =Table4[[#This Row],[4]] -> P2-0082 | AH26: =Table4[[#This Row],[5]] -> Peter Panjan | AI26: 25 | AJ26: L2-9189 | AK26: Darinka Kek Merl | AL26: 25 | AM26: L2-0858 | AN26: Tomaž Gyergyek | AO26: 25 | AP26: L2-2100 | AQ26: Peter Panjan | AR26: 25
A27: 106 | B27: Institut "Jožef Stefan" | D27: P1-0045 | E27: Adolf Jesih | F27: 3317 | G27: Masni spektrometer | H27: 2012 | I27: Mass spectrometer | J27: 144,840.00 | K27: Paket 14 | L27: Čas dostopa do opreme vsak delovni dan od 8:00 do 16:00 po predhodnem dogovoru s skrbnikom. Kontakt preko el. Pošte na naslovu adolf.jesih@ijs.si | M27: Acces is posible every working day from 8:00 to 16:00 after agreement on terms of use. Contact on email adolf.jesih@ijs.si | N27: Oprema je montirana na vakuumski sistem in je namenjena karakterizaciji in identifikaciji plinskih komponent v plazmi in analizi plinskih komponent mešanic plinov. | O27: The equipment is connected to a vacuum system and is devoted to the characterization and identification of gaseous components in plasma as well as to the analysis of gas mixtures. | P27: 53396 XIV 189 | Q27: =Table4[[#This Row],[21]] -> 36.03 | R27: 13.93 | S27: 8 | T27: 14.1 | U27: =SUBTOTAL(9,Table4[[#This Row],[18]:[20]]) -> 36.03 | V27: 100 | W27: 100 | X27: https://www.ijs.si/ijsw/Znotraj%20hi%C5%A1e/Desno?action=AttachFile&do=get&target=ARIS_Evidenca_opreme_2024.xlsx | Y27: 3 | Z27: 2 | AA27: 3 | AB27: 44 | AC27: =Table4[[#This Row],[11]] -> Paket 14 | AD27: 0 | AE27: 5 | AF27: 100 | AG27: =Table4[[#This Row],[4]] -> P1-0045 | AH27: =Table4[[#This Row],[5]] -> Adolf Jesih | AI27: 100
A28: 106 | B28: Institut "Jožef Stefan" | D28: P1-0140 | E28: Marko Fonović | F28: 18801 | G28: Masni spektrometer LTQ Orbitrap XL ETD | H28: 2010 | I28: Mass Spectrometer LTQ Orbitrap XL ETD | J28: 901,938.00 | K28: Paket 14 | L28: Oprema je dostopna vsem akademskim institucijam in gospodarskim družbam, bodisi proti plačilu, ki krije stroške analize ali pa skozi sodelavo. Stranka lahko direktno kontaktira osebo odgovorno za opremo, od katere dobi navodila za pripravo vzorca. Odgovorna oseba se po opravljeni analizi s stranko tudi pogovori o dobljenih rezultatih. | M28: Equipment is accesible for all academic institutions and companies through direct collaborations or payment which covers the cost of analysis. Clients can directly contact the person in charge if the instrument, who instructs them regarding the sample preparation procedures and after the analysis he also discusses the results with them. | N28: Oprema se uporablja za kvantitativno in kvalitativno analizo proteiniv v kompleksnih bioloških vzorcih. | O28: Equipment is used for quantitative and qualitative analysis of proteins in complex biological samples. | P28: 50846 XIV 170 | Q28: =Table4[[#This Row],[21]] -> 116.98 | R28: 86.72 | S28: 17.88 | T28: 12.38 | U28: =SUBTOTAL(9,Table4[[#This Row],[18]:[20]]) -> 116.98 | V28: 100 | W28: 100 | X28: https://www.ijs.si/ijsw/Znotraj%20hi%C5%A1e/Desno?action=AttachFile&do=get&target=ARIS_Evidenca_opreme_2024.xlsx | Y28: 4 | Z28: 6 | AA28: 3 | AB28: 11 | AC28: =Table4[[#This Row],[11]] -> Paket 14 | AD28: 0 | AE28: 5 | AF28: 100 | AG28: =Table4[[#This Row],[4]] -> P1-0140 | AH28: =Table4[[#This Row],[5]] -> Marko Fonović | AI28: 100
A29: 106 | B29: Institut "Jožef Stefan" | D29: P2-0082 | E29: Janez Kovač | F29: 15703 | G29: Masni spektrometer sekundarnih ionov SIMS | H29: 2011 | I29: Time of flight secondary ion mass spectrometer TOF SIMS | J29: 690,000.00 | K29: Paket 14 | L29: Uporaba je možna za zunanje uporabnike po predhodnem dogovoru. Kontaktirati dr. Janeza Kovača (janez.kovac@ijs.si, 01 477 3403) | M29: Application for external users is possible, contact person dr. Janez Kovač (janez.kovac@ijs.si, 01 477 3403) | N29: TOF–SIMS spektrometer na osnovi masne spektroskopije molekul s površine omogoča precizno analizo elemntne sestave in molekularne strukture površin, tankih plasti in faznih mej organskih in anorganskih trdih materialov, kot so: polimeri, biomateriali, polprevodniki, prevleke, barve, kovine, keramika, steklo, zdravila... Masna ločljivost instrumenta je okoli 10.000, lateralno ločljivostjo je okoli 100 nm in analizna globina 2-3 monoplasti. | O29: TOF-SIMS spectrometer provides detailed elemental and molecular information about surfaces, thin layers and interfaces of organic and inorganic materials like polymers, biomaterials, semiconductors, coatings, paint, metals, ceramics, glass, pharmaceuticals...Mass resolution is about 10.000, lateral resolution is 100 nm and analysed depth is 2-3 monolayers. | P29: 53366 XIV 188 | Q29: =Table4[[#This Row],[21]] -> 85.78 | R29: 66.35 | S29: 5.33 | T29: 14.1 | U29: =SUBTOTAL(9,Table4[[#This Row],[18]:[20]]) -> 85.78 | V29: 100 | W29: 100 | X29: https://www.ijs.si/ijsw/Znotraj%20hi%C5%A1e/Desno?action=AttachFile&do=get&target=ARIS_Evidenca_opreme_2024.xlsx | Y29: 3 | Z29: 2 | AA29: 1 | AB29: 44 | AC29: =Table4[[#This Row],[11]] -> Paket 14 | AD29: 40 | AE29: 5 | AF29: 100 | AG29: =Table4[[#This Row],[4]] -> P2-0082 | AH29: =Table4[[#This Row],[5]] -> Janez Kovač | AI29: 100
A30: 106 | B30: Institut "Jožef Stefan" | D30: P1-0143 | E30: Milena Horvat | F30: 5027 | G30: Masni spektrometer visoke ločljivosti s tekočinskim kromatografom, z API in MALDI ionizacijami in Q-Tof masnima analizatorjema | H30: 2006 | I30: High resolution mass spectrometer coupled with LC, API and MALDI ionisation, Q-Tof mass analysers | J30: 806,123.71 | K30: Paket 12 | L30: Po dogovoru; materialni stroški + ure operaterja | M30: Pon agreement; material + personnel costs | N30: Masnospektrometrične analize organskih spojin, proteinov in drugih biomolekul z direktnim uvajanjem vzorca ali preko LC oz. nano LC. Določitev elementne sestave z HRMS analizo. Določitev strukture ionov z MS-MS meritvami. | O30: Analysis of organic compounds, proteins and other bimolecules by mass spectrometry. HRMS analysis for elemental composition. MS-MS measurements for structure elucidation. | P30: 43149 | Q30: =Table4[[#This Row],[21]] -> 107.77 | R30: 77.51 | S30: 17.88 | T30: 12.38 | U30: =SUBTOTAL(9,Table4[[#This Row],[18]:[20]]) -> 107.77 | V30: 100 | W30: 100 | X30: https://www.ijs.si/ijsw/Znotraj%20hi%C5%A1e/Desno?action=AttachFile&do=get&target=ARIS_Evidenca_opreme_2024.xlsx | Y30: 3 | Z30: 2 | AA30: 3 | AB30: 32 | AC30: =Table4[[#This Row],[11]] -> Paket 12 | AD30: 0 | AE30: 5 | AF30: 100 | AG30: =Table4[[#This Row],[4]] -> P1-0143 | AH30: =Table4[[#This Row],[5]] -> Milena Horvat | AI30: 25 | AJ30: PR-00506 | AL30: 25 | AM30: J3-9470 | AN30: Joško Osredkar | AO30: 25 | AP30: PR-01084 | AQ30: IJS | AR30: 25
A31: 106 | B31: Institut "Jožef Stefan" | D31: P1-0143 | E31: Radmila Milačič | F31: 8314 | G31: Masni spektrometer z induktivno sklopljeno plazmo ICP-MS | H31: 2010 | I31: Inductively coupled plasma mass spectrometer ICP-MS | J31: 191,069.00 | K31: Paket 14 | L31: Dostop dovoljen po predhodnem dogovoru. Kontaktna oseba je izr.prof.dr. Radmila Milačič e-mail:radmila.milacic@ijs.si, Tel: +3861 4773560 | M31: Access is allowed after privious agreement. The contact person is Assoc.prof.dr. Radmila Milačič e-mail:radmila.milacic@ijs.si, Tel: +3861 4773560 | N31: Določanje celotnih koncentracij elementov in njihovih kemijskih zvrsti v vzorcih iz okolja in v bioloških vzorcih. | O31: Determination of totel element concentration and their species in the environmental and biological samples. | P31: 49127 XIV 202 | Q31: =Table4[[#This Row],[21]] -> 48.63 | R31: 18.37 | S31: 17.88 | T31: 12.38 | U31: =SUBTOTAL(9,Table4[[#This Row],[18]:[20]]) -> 48.63 | V31: 100 | W31: 100 | X31: https://www.ijs.si/ijsw/Znotraj%20hi%C5%A1e/Desno?action=AttachFile&do=get&target=ARIS_Evidenca_opreme_2024.xlsx | Y31: 1 | Z31: 8 | AA31: 1 | AB31: 32 | AC31: =Table4[[#This Row],[11]] -> Paket 14 | AD31: 0 | AE31: 5 | AF31: 100 | AG31: =Table4[[#This Row],[4]] -> P1-0143 | AH31: =Table4[[#This Row],[5]] -> Radmila Milačič | AI31: 100
A32: 106 | B32: Institut "Jožef Stefan" | D32: P1-0135 | E32: Marko Mikuž | F32: 4763 | G32: Merilna oprema za izvrednotenje prototipov detektorjev | H32: 2004 | I32: Detector evaluation equippment | J32: 43,886.05 | K32: Paket 12 | L32: Ni dostopna | M32: None | N32: Modularna elektronika je vgrajena v več eksperimentalnih postavitev | O32: Modular electronics is built into various experimental set-ups | P32: 41206 | Q32: =Table4[[#This Row],[21]] -> 34.48 | R32: 4.22 | S32: 17.88 | T32: 12.38 | U32: =SUBTOTAL(9,Table4[[#This Row],[18]:[20]]) -> 34.48 | V32: 100 | W32: 100 | X32: https://www.ijs.si/ijsw/Znotraj%20hi%C5%A1e/Desno?action=AttachFile&do=get&target=ARIS_Evidenca_opreme_2024.xlsx | Y32: 4 | Z32: 2 | AA32: 3 | AB32: 30 | AC32: =Table4[[#This Row],[11]] -> Paket 12 | AD32: 0 | AE32: 5 | AF32: 100 | AG32: =Table4[[#This Row],[4]] -> P1-0135 | AH32: =Table4[[#This Row],[5]] -> Marko Mikuž | AI32: 50 | AJ32: P1-0031 | AK32: Danilo Zavrtanik | AL32: 50
A33: 106 | B33: Institut "Jožef Stefan" | D33: P1-0143 | E33: Milena Horvat | F33: 5027 | G33: Merilni sistem za nevtronsko aktivacijsko analizo in gama spektrometrijo | H33: 2003 | I33: HPGe detector (45%), hardware and software for MCA emulator | J33: 70,881.63 | K33: Paket 11 | L33: po dogovoru; materialni stroški + ure operaterja | M33: pon agreement; material + personnel costs | N33: Uporablja se za določanje naravnih in umetnih radionuklidov v različnih vzorcih iz okolja (okoljski, biološki vzorci, sedimenti, tla…) | O33: It is used for determination of natural and artificial radionuclides in different samples (environmental, biological, sediment, soil …) | P33: 39601 | Q33: =Table4[[#This Row],[21]] -> 37.08 | R33: 6.82 | S33: 17.88 | T33: 12.38 | U33: =SUBTOTAL(9,Table4[[#This Row],[18]:[20]]) -> 37.08 | V33: 100 | W33: 100 | X33: https://www.ijs.si/ijsw/Znotraj%20hi%C5%A1e/Desno?action=AttachFile&do=get&target=ARIS_Evidenca_opreme_2024.xlsx | Y33: 3 | Z33: 2 | AA33: 2 | AB33: 32 | AC33: =Table4[[#This Row],[11]] -> Paket 11 | AD33: 0 | AE33: 5 | AF33: 100 | AG33: =Table4[[#This Row],[4]] -> P1-0143 | AH33: =Table4[[#This Row],[5]] -> Milena Horvat | AI33: 25 | AJ33: PR-01800 | AK33: IJS | AL33: 25 | AM33: PR-02178-1 PR-00786-4 | AN33: IJS | AO33: 25 | AP33: PR-00549 | AQ33: IJS | AR33: 25
A34: 106 | B34: Institut "Jožef Stefan" | D34: P2-0082 | E34: Peter Panjan | F34: 9090 | G34: Merilnik mikrotrdote | H34: 2004 | I34: Microhardness tester | J34: 62,455.37 | K34: Paket 12 | L34: Zunanjim uporabnikom zaračunavamo delo operaterja (28.2 €/uro) | M34: Only operator cost is charged (28,2 €/h) | N34: Merjenje mikrotrdote in modula indentacije z metodo odtiskovanja z diamantno konico. Obtežitev konice je od 40 mg do 100 g. | O34: Microhardness in indentation modul measurements using a diamond tip. The load range is from 40 mg to 100 g. | P34: 41239,41239 01 | Q34: =Table4[[#This Row],[21]] -> 36.27 | R34: 6.01 | S34: 17.88 | T34: 12.38 | U34: =SUBTOTAL(9,Table4[[#This Row],[18]:[20]]) -> 36.27 | V34: 100 | W34: 100 | X34: https://www.ijs.si/ijsw/Znotraj%20hi%C5%A1e/Desno?action=AttachFile&do=get&target=ARIS_Evidenca_opreme_2024.xlsx | Y34: 3 | Z34: 10 | AA34: 4 | AB34: 44 | AC34: =Table4[[#This Row],[11]] -> Paket 12 | AD34: 0 | AE34: 5 | AF34: =(AI34+AL34+AO34+AR34+AU34+AX34) -> 100 | AG34: =Table4[[#This Row],[4]] -> P2-0082 | AH34: =Table4[[#This Row],[5]] -> Peter Panjan | AI34: 20 | AJ34: L2-9189 | AK34: Darinka Kek Merl | AL34: 20 | AM34: L2-0858 | AN34: Tomaž Gyergyek | AO34: 20 | AP34: L2-2100 | AQ34: Peter Panjan | AR34: 20 | AS34: L2-0388 | AT34: Jože Flašker | AU34: 20
A35: 106 | B35: Institut "Jožef Stefan" | D35: P1-0207 | E35: Igor Križaj | F35: 412 | G35: Mikro LC sistem za zbiranje in nanašanje frakcij | H35: 2008 | I35: Micro LC system for collection and application of fraction | J35: 76,263.84 | K35: Paket 13 | L35: Po dogovoru | M35: According to agreement | N35: Sistem za tekočinsko kromatorgrafijo, namenjen separaciji bioloških molekul na osnovi razlik molekul po masi, električnem naboju, biološki afiniteti in adsorbcijskih lastnostih pri višjem tlaku (FPLC/HPLC). Fotometrična detekcija, avtomatsko zbiranje frakcij | O35: Liquid chromatography system for separation of biological molecules on the basis of their difference in molecular mass, electric charge, biological affinity and adsorption characteristics at higher pressure (FPLC/HPLC). Photometric detection, automatic fraction collexction | P35: 48324,46879,46853,47552,47553,47428,46659,48203,47586,47712,46285,48112 XIV_217 | Q35: =Table4[[#This Row],[21]] -> 37.59 | R35: 7.33 | S35: 17.88 | T35: 12.38 | U35: =SUBTOTAL(9,Table4[[#This Row],[18]:[20]]) -> 37.59 | V35: 100 | W35: 100 | X35: https://www.ijs.si/ijsw/Znotraj%20hi%C5%A1e/Desno?action=AttachFile&do=get&target=ARIS_Evidenca_opreme_2024.xlsx | Y35: 2 | Z35: 5 | AA35: 6 | AB35: 66 | AC35: =Table4[[#This Row],[11]] -> Paket 13 | AD35: 0 | AE35: 5 | AF35: 100 | AG35: =Table4[[#This Row],[4]] -> P1-0207 | AH35: =Table4[[#This Row],[5]] -> Igor Križaj | AI35: 25 | AJ35: J3-0389 | AK35: Igor Križaj | AL35: 25 | AM35: J3-0386 | AN35: Jože Pungerčar | AO35: 25 | AP35: J7-2230 | AQ35: Marija Nika Lovšin | AR35: 25
A36: 106 | B36: Institut "Jožef Stefan" | D36: P2-0084 | E36: Spomenka Kobe | F36: 4355 | G36: Mikroskop na atomsko silo | H36: 2007 | I36: Atomic Force Microscope | J36: 183,609.00 | K36: Paket 13 | L36: Opremo uporabljajo šolani operaterji, ki lahko analize izvajajo tudi za druge raziskovalne organizacije. Cena je odvisna od zahtevnosti analiz. | M36: Specific training is required to operate the equipment. Trained operaters can perform analyses for users from other research institutions. Price is dependent on a complexity of analyses. | N36: Oprema je namenjena za merjenje lokalnih lastnosti materialov, kot sta morfologija ali magnetno polje, s pomočjo sonde, ki se nahaja zelo blizu površine. Omogoča kvalitativno in kvantitativno analizo. | O36: Dedicated for measurements of local magnetic fields and morphology by applying a probe very close to the investigated surface. Qualitative and quantitavie types of analysis are possible. | P36: 44551,44551-1,44551-2,44551-01 XIII_221 | Q36: =Table4[[#This Row],[21]] -> 47.91 | R36: 17.65 | S36: 17.88 | T36: 12.38 | U36: =SUBTOTAL(9,Table4[[#This Row],[18]:[20]]) -> 47.91 | V36: 100 | W36: 100 | X36: https://www.ijs.si/ijsw/Znotraj%20hi%C5%A1e/Desno?action=AttachFile&do=get&target=ARIS_Evidenca_opreme_2024.xlsx | Y36: 3 | Z36: 6 | AA36: 1 | AB36: 44 | AC36: =Table4[[#This Row],[11]] -> Paket 13 | AD36: 0 | AE36: 5 | AF36: 100 | AG36: =Table4[[#This Row],[4]] -> P2-0084 | AH36: =Table4[[#This Row],[5]] -> Spomenka Kobe | AI36: 25 | AJ36: J2-6705 | AK36: Miran Čeh | AL36: 25 | AM36: J2-7432 | AN36: Aleksander Rečnik | AO36: 25 | AP36: J2-7133 | AQ36: Johannes Teun Van Elteren | AR36: 25
A37: 106 | B37: Institut "Jožef Stefan" | D37: P2-0082 | E37: Janez Kovač | F37: 15703 | G37: Mikroskop na atomsko silo AFM | H37: 2006 | I37: Atomic force microscope AFM | J37: 45,450.00 | K37: Paket 12 | L37: Uporaba je možna za zunanje uporabnike. Kontaktirati dr. Janeza Kovača. | M37: Application for external users is possible, contact person dr. Janez Kovač | N37: AFM mikroskop je namenjen preiskavi topografije površine trdnih vzorcev z visoko ločljivostjo. Možna je preiskava področij velikosti do 50 mikronov z natančnostjo 0,1 nm. Možna je analiza hrapavosti, porazdelitev magnetnega in električnega polja, litografija in meritev interakcijskih sil med iglo in podlago. | O37: AFM microscope provides information on topography on solid surfaces with very high spatial resolution. Analyses can be done over a region of 50 microns with accuracy of 0.1 nm. It is possible to measure the surface roughness, distribution of magnetic and electric fields and interaction forces between tip and substrate. | P37: 43990 | Q37: =Table4[[#This Row],[21]] -> 34.63 | R37: 4.37 | S37: 17.88 | T37: 12.38 | U37: =SUBTOTAL(9,Table4[[#This Row],[18]:[20]]) -> 34.63 | V37: 100 | W37: 100 | X37: https://www.ijs.si/ijsw/Znotraj%20hi%C5%A1e/Desno?action=AttachFile&do=get&target=ARIS_Evidenca_opreme_2024.xlsx | Y37: 3 | Z37: 6 | AA37: 1 | AB37: 44 | AC37: =Table4[[#This Row],[11]] -> Paket 12 | AD37: 35 | AE37: 5 | AF37: 100 | AG37: =Table4[[#This Row],[4]] -> P2-0082 | AH37: =Table4[[#This Row],[5]] -> Janez Kovač | AI37: 100
A38: 106 | B38: Institut "Jožef Stefan" | D38: P1-0143 | E38: Milena Horvat | F38: 5027 | G38: Mikrovalovni sistem za razklope in ekstrakcije | H38: 2008 | I38: Advanced Microwave Digestion System ETHOS 1 | J38: 51,327.00 | K38: Paket 13 | L38: Po dogovoru; materialni stroški + ure operaterja | M38: Upon agreement; material + personnel costs | N38: Mikrovalovni sistem je namenjen za razkroj in ekstrakcije večjega števila tako anorganskih kot organskih vzorcev. | O38: Microwave system is suitable for the digestion and extraction of inorganic and organic sampples | P38: 48311 XIV_223 | Q38: =Table4[[#This Row],[21]] -> 35.20 | R38: 4.94 | S38: 17.88 | T38: 12.38 | U38: =SUBTOTAL(9,Table4[[#This Row],[18]:[20]]) -> 35.20 | V38: 100 | W38: 100 | X38: https://www.ijs.si/ijsw/Znotraj%20hi%C5%A1e/Desno?action=AttachFile&do=get&target=ARIS_Evidenca_opreme_2024.xlsx | Y38: 4 | Z38: 2 | AA38: 2 | AB38: 32 | AC38: =Table4[[#This Row],[11]] -> Paket 13 | AD38: 0 | AE38: 5 | AF38: 100 | AG38: =Table4[[#This Row],[4]] -> P1-0143 | AH38: =Table4[[#This Row],[5]] -> Milena Horvat | AI38: 50 | AJ38: PR-00438 | AK38: IJS | AL38: 50
A39: 106 | B39: Institut "Jožef Stefan" | D39: P1-0135 | E39: Marko Mikuž | F39: 4763 | G39: Modularna elektronika | H39: 2002 | I39: Modular Electronics | J39: 63,209.42 | K39: Paket 11 | L39: Ni dostopna | M39: None | N39: Modularna elektronika je vgrajena v več eksperimentalnih postavitev | O39: Modular electronics is built into various experimental set-ups | P39: 39109 | Q39: =Table4[[#This Row],[21]] -> 36.34 | R39: 6.08 | S39: 17.88 | T39: 12.38 | U39: =SUBTOTAL(9,Table4[[#This Row],[18]:[20]]) -> 36.34 | V39: 100 | W39: 100 | X39: https://www.ijs.si/ijsw/Znotraj%20hi%C5%A1e/Desno?action=AttachFile&do=get&target=ARIS_Evidenca_opreme_2024.xlsx | Y39: 4 | Z39: 2 | AA39: 3 | AB39: 21 | AC39: =Table4[[#This Row],[11]] -> Paket 11 | AD39: 0 | AE39: 5 | AF39: 100 | AG39: =Table4[[#This Row],[4]] -> P1-0135 | AH39: =Table4[[#This Row],[5]] -> Marko Mikuž | AI39: 50 | AJ39: P1-0031 | AK39: Danilo Zavrtanik | AL39: 50
A40: 106 | B40: Institut "Jožef Stefan" | D40: P1-0140 | E40: Boris Turk | F40: 7561 | G40: MultiPROBE II HT Digestion Station | H40: 2006 | I40: MultiPROBE II HT Digestion Station | J40: 93,769.75 | K40: Paket 12 | L40: Uporaba in cena po dogovoru, za uporabo kontaktirati Dr. Marka Fonovića (marko.fonovic@ijs.si) | M40: equipment is used for high throughput trypsin degradation of protein samples. Trypsin degradation is a standard procedure for the protein sample preparation for proteomic analysis. | N40: Oprema se uporablja za visokopretočno razgradnjo proteinskih vzorcev s tripsinom. Tripsinska razgradnja je standarden način priprave proteinskih vzorcev za proteomsko analizo. | P40: 40973 | Q40: =Table4[[#This Row],[21]] -> 39.28 | R40: 9.02 | S40: 17.88 | T40: 12.38 | U40: =SUBTOTAL(9,Table4[[#This Row],[18]:[20]]) -> 39.28 | V40: 100 | W40: 100 | X40: https://www.ijs.si/ijsw/Znotraj%20hi%C5%A1e/Desno?action=AttachFile&do=get&target=ARIS_Evidenca_opreme_2024.xlsx | Y40: 4 | Z40: 6 | AA40: 3 | AB40: 66 | AC40: =Table4[[#This Row],[11]] -> Paket 12 | AD40: 0 | AE40: 5 | AF40: 100 | AG40: =Table4[[#This Row],[4]] -> P1-0140 | AH40: =Table4[[#This Row],[5]] -> Boris Turk | AI40: 25 | AJ40: P1-0048 | AK40: Dušan Turk | AL40: 25 | AM40: P1-0207 | AN40: Igor Križaj | AO40: 25 | AP40: P4-0127 | AQ40: Janko Kos | AR40: 25
A41: 106 | B41: Institut "Jožef Stefan" | D41: P1-0099 | E41: Igor Muševič | F41: 9089 | G41: Nadgradnja dvobarvne laserske pincete | H41: 2010 | I41: Two-color laser tweezers | J41: 149,933.00 | K41: Paket 14 | L41: Kontaktirati prof. I.Muševiča, igor.musevic@ijs.si. Potrebno je opraviti plačljivo usposabljanje za samostojno upravljanje s pinceto. | M41: Contact Prof. I.Musevic for details, igor.musevic@ijs.si. A payable course is obligatory if you want to use the equipment by yourself. | N41: Uporaba za optično manipuliranje koloidnih delcev. | O41: For optical manipulation of colloids. | P41: 46464 01-04, 49085.50427 XIV 183 | Q41: =Table4[[#This Row],[21]] -> 44.68 | R41: 14.42 | S41: 17.88 | T41: 12.38 | U41: =SUBTOTAL(9,Table4[[#This Row],[18]:[20]]) -> 44.68 | V41: 100 | W41: 100 | X41: https://www.ijs.si/ijsw/Znotraj%20hi%C5%A1e/Desno?action=AttachFile&do=get&target=ARIS_Evidenca_opreme_2024.xlsx | Y41: 4 | Z41: 4 | AA41: 6 | AB41: 30 | AC41: =Table4[[#This Row],[11]] -> Paket 14 | AD41: 0 | AE41: 5 | AF41: 100 | AG41: =Table4[[#This Row],[4]] -> P1-0099 | AH41: =Table4[[#This Row],[5]] -> Igor Muševič | AI41: 100
A42: 106 | B42: Institut "Jožef Stefan" | D42: P1-0135 | E42: Andrej Filipčič | F42: 7525 | G42: Nadgradnja grid vozlišča SiGNET | H42: 2009 | I42: Upgrade of SiGNET grid center | J42: 139,812.00 | K42: Paket 14 | L42: Oprema je vključena v grid vozlišče SIGNET in dostopna preko infrastrukture EGI/NGI. Uporaba je omogočena z uporabo vmesne programske opreme gLite in ARC. | M42: The equipment is integrated into SiGNET grid site and provides the access through EGI/NGI infrastructure. The access is provided by using the gLite and ARC grid middleware. | N42: Oprema je namenjena izvajanju računskih nalog in shranjevanju podatkov pri mednarodnih eksperimentih ATLAS, Pierre Auger in Belle. Po dogovoru je na voljo tudi slovenskim raziskovalnim in akademskim ustanovam. | O42: The purpose of the equipment is to provide the computing and storage resources to international experiments ATLAS, Pierre Auger and Belle. The access is also provided to slovenian research and academic institutions. | P42: 49932-49951 XIV 195 | Q42: =Table4[[#This Row],[21]] -> 30.26 | R42: 0 | S42: 17.88 | T42: 12.38 | U42: =SUBTOTAL(9,Table4[[#This Row],[18]:[20]]) -> 30.26 | V42: 100 | W42: 100 | X42: https://www.ijs.si/ijsw/Znotraj%20hi%C5%A1e/Desno?action=AttachFile&do=get&target=ARIS_Evidenca_opreme_2024.xlsx | Y42: 6 | Z42: 6 | AA42: 6 | AB42: 14 | AC42: =Table4[[#This Row],[11]] -> Paket 14 | AD42: 0 | AE42: 4 | AF42: 100 | AG42: =Table4[[#This Row],[4]] -> P1-0135 | AH42: =Table4[[#This Row],[5]] -> Andrej Filipčič | AI42: 100
A43: 106 | B43: Institut "Jožef Stefan" | D43: P1-0035 | E43: Igor Sega | F43: 1100 | G43: Nadgradnja heterogene računalniške gruče | H43: 2012 | I43: HPC cluster upgrade | J43: 134,912.00 | K43: Paket 14 | L43: Oprema bo vključena v slovenski grid in dostopna na podlagi recipročnosti (kontaktna oseba: dr. Rok Žitko) | M43: Equipment will be accessible as a part of the Slovenian national grid on a reciprocity basis (contact person: Dr. Rok Žitko) | N43: Oprema se uporablja za numerične izračune na področju fizike kondenzirane snovi, biofizike in fizike osnovnih delcev in polj | O43: Equipment is used for numerical calculations in the fields of condensed matter physics, biophysics and particle physics | P43: 53681,53682 XIV 192 | Q43: =Table4[[#This Row],[21]] -> 22.39 | R43: 0 | S43: 8.29 | T43: 14.1 | U43: =SUBTOTAL(9,Table4[[#This Row],[18]:[20]]) -> 22.39 | V43: 100 | W43: 100 | X43: https://www.ijs.si/ijsw/Znotraj%20hi%C5%A1e/Desno?action=AttachFile&do=get&target=ARIS_Evidenca_opreme_2024.xlsx | Y43: 6 | Z43: 1 | AA43: 1 | AB43: 12 | AC43: =Table4[[#This Row],[11]] -> Paket 14 | AD43: 0 | AE43: 4 | AF43: 100 | AG43: =Table4[[#This Row],[4]] -> P1-0035 | AH43: =Table4[[#This Row],[5]] -> Igor Sega | AI43: 40 | AJ43: P1-0044 | AK43: Janez Bonča | AL43: 40 | AM43: P1-0055 | AN43: Rudolf Podgornik | AO43: 20
A44: 106 | B44: Institut "Jožef Stefan" | D44: P1-0135 | E44: Marko Mikuž | F44: 4763 | G44: Nadgradnja identifikacije delcev v detektorju Belle | H44: 2008 | I44: Belle particle identification detector upgrade | J44: 700,000.00 | K44: Paket 13 | L44: Ni dostopna | M44: None | N44: Oprema vgrajena v detektor Belle v KEK, Tsukuba, Japonska | O44: Part of the Belle detector at KEK in Tsukuba, Japan | P44: OS25616 | Q44: =Table4[[#This Row],[21]] -> 97.57 | R44: =J44*0.2/2080 -> 67.31 | S44: 17.88 | T44: 12.38 | U44: =SUBTOTAL(9,Table4[[#This Row],[18]:[20]]) -> 97.57 | V44: 100 | W44: 100 | X44: https://www.ijs.si/ijsw/Znotraj%20hi%C5%A1e/Desno?action=AttachFile&do=get&target=ARIS_Evidenca_opreme_2024.xlsx | Y44: 4 | Z44: 2 | AA44: 3 | AB44: 38 | AC44: =Table4[[#This Row],[11]] -> Paket 13 | AD44: 0 | AE44: 5 | AF44: 100 | AG44: =Table4[[#This Row],[4]] -> P1-0135 | AH44: =Table4[[#This Row],[5]] -> Marko Mikuž | AI44: 100
A45: 106 | B45: Institut "Jožef Stefan" | D45: P1-0135 | E45: Marko Mikuž | F45: 4763 | G45: Nadradnja TIER-1 demonstratorja | H45: 2005 | I45: TIER-2 Demonstrator Upgrade | J45: 43,805.21 | K45: Paket 12 | L45: Računalniška oprema ni več v uporabi | M45: Obsolete | N45: Oprema vključena v slovensko Grid vozlišče SiGNET | O45: Part of Slovenian Grid node SiGNET | P45: 42669 | Q45: =Table4[[#This Row],[21]] -> 30.26 | R45: 0 | S45: 17.88 | T45: 12.38 | U45: =SUBTOTAL(9,Table4[[#This Row],[18]:[20]]) -> 30.26 | V45: 100 | W45: 100 | X45: https://www.ijs.si/ijsw/Znotraj%20hi%C5%A1e/Desno?action=AttachFile&do=get&target=ARIS_Evidenca_opreme_2024.xlsx | Y45: 6 | Z45: 1 | AA45: 5 | AB45: 14 | AC45: =Table4[[#This Row],[11]] -> Paket 12 | AD45: 0 | AE45: 4 | AF45: 100 | AG45: =Table4[[#This Row],[4]] -> P1-0135 | AH45: =Table4[[#This Row],[5]] -> Marko Mikuž | AI45: 50 | AJ45: P1-0031 | AK45: Danilo Zavrtanik | AL45: 50
A46: 106 | B46: Institut "Jožef Stefan" | D46: P1-0125 | E46: Polona Umek | F46: 18274 | G46: Nanoreaktor | H46: 2002 | I46: Nanoreactor | J46: 74,577.23 | K46: Paket 11 | L46: Dostop dovoljen po dogovoru, ni posebnih omejitev | M46: Service available upon request, no special limitation | N46: Kemijske reakcije na molekularnem nivoju | O46: Chemical reactions at the molecular level | P46: 38884 | Q46: =Table4[[#This Row],[21]] -> 37.43 | R46: =J46*0.2/2080 -> 7.17 | S46: 17.88 | T46: 12.38 | U46: =SUBTOTAL(9,Table4[[#This Row],[18]:[20]]) -> 37.43 | V46: 100 | W46: 100 | X46: https://www.ijs.si/ijsw/Znotraj%20hi%C5%A1e/Desno?action=AttachFile&do=get&target=ARIS_Evidenca_opreme_2024.xlsx | Y46: 1 | Z46: 7 | AA46: 4 | AB46: 4 | AC46: =Table4[[#This Row],[11]] -> Paket 11 | AD46: 0 | AE46: 5 | AF46: 100 | AG46: =Table4[[#This Row],[4]] -> P1-0125 | AH46: =Table4[[#This Row],[5]] -> Polona Umek | AI46: 100
A47: 106 | B47: Institut "Jožef Stefan" | D47: P2-0082 | E47: Janez Kovač | F47: 15703 | G47: Naprava za funkcionalizacijo površin novih materialov | H47: 2007 | I47: Instrument for functionalization of surfaces of modern materials | J47: 145,260.00 | K47: Paket 13 | L47: Uporaba je možna za zunanje uporabnike. Kontaktirati dr. Janeza Kovača. | M47: Application for external users is possible, contact person dr. Janez Kovač | N47: Naprava omogoča pripravo tankih večkomponentnih anorganskih in organskih plasti z naparevanjem v vakuumu z namenom študija osnovnih procesov med rastjo tankih plasti in interakcijo s podlago, kakor tudi funkcionalizacijo površin. Omogočena je toplotna obdelava tankih plasti, obdelava z ionskimi curki in funkcionalizacija površin s plazmo. Naprava je direktno povezana z XPS spektrometrom za karakterizacijo obdelanih površin in nanesenih tankih plasti brez izpostave zračni atmosferi. | O47: Instrument can be used for preparation of thin, multicomponent inorganic and organic films as well as for functionalization of solid surfaces. It is possible to perform heat treatment, ion bombardment and plasma functionalization of surfaces. Instrument is directly connected with XPS spectrometer for characterization of treated surfaces and deposited films without exposure to air atmosphere. | P47: 45942 XIV 202 | Q47: =Table4[[#This Row],[21]] -> 44.23 | R47: 13.97 | S47: 17.88 | T47: 12.38 | U47: =SUBTOTAL(9,Table4[[#This Row],[18]:[20]]) -> 44.23 | V47: 100 | W47: 100 | X47: https://www.ijs.si/ijsw/Znotraj%20hi%C5%A1e/Desno?action=AttachFile&do=get&target=ARIS_Evidenca_opreme_2024.xlsx | Y47: 1 | Z47: 1 | AA47: 1 | AB47: 44 | AC47: =Table4[[#This Row],[11]] -> Paket 13 | AD47: 40 | AE47: 5 | AF47: 100 | AG47: =Table4[[#This Row],[4]] -> P2-0082 | AH47: =Table4[[#This Row],[5]] -> Janez Kovač | AI47: 100
A48: 106 | B48: Institut "Jožef Stefan" | D48: P2-0084 | E48: Miran Čeh | F48: 3937 | G48: Nizko-energijska ionska erozija materialov | H48: 2002 | I48: Low-energy ion-miller for TEM specimen preparation (Technoorg Linda, Gentle Mill) | J48: 53,892.47 | K48: Paket 11 | L48: Opremo uporabljajo šolani operaterji, ki lahko analize izvajajo tudi za druge raziskovalne organizacije. Cena je odvisna od zahtevnosti analiz. | M48: Specific training is required to operate the equipment. Trained operaters can perform analyses for users from other research institutions. Price is dependent on a complexity of analyses. | N48: Oprema je namenjena pripravi vzorcev za presevno elektronsko mikroskopijo (TEM). Nizka energija ionskega jedkanja omogoča pripravo vzorcev brez amorfne plasti na površini vzorca. | O48: The equipment is dedicated for specimen preparation for TEM observations. Low-energy ion-milling enables preparation of specimens without amorphous thin film on the specimen surface. | P48: 39874 | Q48: =Table4[[#This Row],[21]] -> 35.44 | R48: 5.18 | S48: 17.88 | T48: 12.38 | U48: =SUBTOTAL(9,Table4[[#This Row],[18]:[20]]) -> 35.44 | V48: 100 | W48: 100 | X48: https://www.ijs.si/ijsw/Znotraj%20hi%C5%A1e/Desno?action=AttachFile&do=get&target=ARIS_Evidenca_opreme_2024.xlsx | Y48: 1 | Z48: 3 | AA48: 1 | AB48: 44 | AC48: =Table4[[#This Row],[11]] -> Paket 11 | AD48: 0 | AE48: 5 | AF48: 100 | AG48: =Table4[[#This Row],[4]] -> P2-0084 | AH48: =Table4[[#This Row],[5]] -> Miran Čeh | AI48: 25 | AJ48: J2-6705 | AK48: Miran Čeh | AL48: 25 | AM48: Z2-6621 | AN48: Spomenka Kobe | AO48: 25 | AP48: Z1-6493 | AQ48: Tadej Dolenec | AR48: 25
A49: 106 | B49: Institut "Jožef Stefan" | D49: P1-0125 | E49: Pavel Cevc | F49: 1106 | G49: Obnovitev 9,6 GHz spektrometra za elektronsko paramagnetno resonanco | H49: 2005 | I49: Refurbishing of 9,6 GHz electron paramagnetic resonance spectrometer | J49: 214,015.54 | K49: Paket 12 | L49: Dostop dovoljen po dogovoru, ni posebnih omejitev | M49: Service available upon request, no special limitation | N49: Določitev fizikalno-kemijskih lastnosti trdnih in tekočih snovi | O49: Determination of physical-chemical properties of solids and liquids | P49: 43705 | Q49: =Table4[[#This Row],[21]] -> 50.84 | R49: 20.58 | S49: 17.88 | T49: 12.38 | U49: =SUBTOTAL(9,Table4[[#This Row],[18]:[20]]) -> 50.84 | V49: 100 | W49: 100 | X49: https://www.ijs.si/ijsw/Znotraj%20hi%C5%A1e/Desno?action=AttachFile&do=get&target=ARIS_Evidenca_opreme_2024.xlsx | Y49: 3 | Z49: 1 | AA49: 5 | AB49: 44 | AC49: =Table4[[#This Row],[11]] -> Paket 12 | AD49: 0 | AE49: 5 | AF49: 100 | AG49: =Table4[[#This Row],[4]] -> P1-0125 | AH49: =Table4[[#This Row],[5]] -> Pavel Cevc | AI49: 100 | AK49: IJS
A50: 106 | B50: Institut "Jožef Stefan" | D50: P2-0103 | E50: Igor Mozetič | F50: 3323 | G50: Oprema za analitiko podatkov in tekstov | H50: 2010 | I50: Data and text analytics equipment | J50: 91,925.00 | K50: Paket 14 | L50: Po predhodnem dogovoru z dr. Igorjem Mozetičem je možen dostop do opreme (igor.mozetic@ijs.si) | M50: Acces for equipment is possible by arrangement with Dr. Igor Mozetič (email: igor.mozetic@ijs.si) | N50: Oprema služi raziskovalnem delu, ki obsega razvoj in testiranje novih metod za analiziranje velikih količin podatkov in tekstov in njihovega spreminjanja skozi čas | O50: The equipment serves the research work, which includes the development and testing of new methods for analyzing large amounts of data, texts and their variations over time | P50: 50696,50563,50590,50591,.......... XIV_190 | Q50: =Table4[[#This Row],[21]] -> 39.10 | R50: 8.84 | S50: 17.88 | T50: 12.38 | U50: =SUBTOTAL(9,Table4[[#This Row],[18]:[20]]) -> 39.10 | V50: 100 | W50: 100 | X50: https://www.ijs.si/ijsw/Znotraj%20hi%C5%A1e/Desno?action=AttachFile&do=get&target=ARIS_Evidenca_opreme_2024.xlsx | Y50: 6 | Z50: 1 | AA50: 5 | AB50: 59 | AC50: =Table4[[#This Row],[11]] -> Paket 14 | AD50: 0 | AE50: 5 | AF50: 100 | AG50: =Table4[[#This Row],[4]] -> P2-0103 | AH50: =Table4[[#This Row],[5]] -> Igor Mozetič | AI50: 100
A51: 106 | B51: Institut "Jožef Stefan" | D51: P1-0207 | E51: Igor Križaj | F51: 412 | G51: Oprema za visokozmogljivostno subcelularno vizualizacijo | H51: 2010 | I51: Equipment for high-performance subcellular visualization | J51: 209,563.86 | K51: Paket 14 | L51: Za delo na sistemu za visokozmogljivostno subcelularno vizualizacijo se je potrebno predhodno najaviti in dogovoriti pri doc. dr. Toniju Petanu (01 477 3713). | M51: To work on the high-performance subcellular visualization system previous appointment at Assist. Prof. Dr. Toni Petan (01 477 3713) is obligatory. | N51: Oprema je namenjena visokozmogljivostni subcelularni vizualizaciji fluorescenčno označenih molekul. | O51: The equipment is devoted to the high-performance subcellular visualization of fluorescently labelled molecules. | P51: 53794,50284,51173, 50930, 50929, 50932, 50723, 50689, 46931, 50281 XIV 173 | Q51: =Table4[[#This Row],[21]] -> 50.41 | R51: 20.15 | S51: 17.88 | T51: 12.38 | U51: =SUBTOTAL(9,Table4[[#This Row],[18]:[20]]) -> 50.41 | V51: 100 | W51: 100 | X51: https://www.ijs.si/ijsw/Znotraj%20hi%C5%A1e/Desno?action=AttachFile&do=get&target=ARIS_Evidenca_opreme_2024.xlsx | Y51: 4 | Z51: 7 | AA51: 5 | AB51: 66 | AC51: =Table4[[#This Row],[11]] -> Paket 14 | AD51: 0 | AE51: 5 | AF51: 100 | AG51: =Table4[[#This Row],[4]] -> P1-0207 | AH51: =Table4[[#This Row],[5]] -> Igor Križaj | AI51: 100
A52: 106 | B52: Institut "Jožef Stefan" | D52: P2-0103 | E52: Nada Lavrač | F52: 8949 | G52: Oprema za zajemanja in semantično analizo multimedijskih podatkov | H52: 2008 | I52: Equipment for recording and semantic analysis of multimedia data | J52: 148,000.00 | K52: Paket 13 | L52: Storitve delno ali v celoti producirane, ali delujoče na opremi iz paketa so prosto dosegljive preko http://www.videolectures.net (video predavanja), http://isambard.ijs.si/triplet/semgraph/ (avtomatska analiza in izdelava povzetkov dokumentov), http://historyviz.ijs.si (predstavitev zgodovinskega pogleda na osebe in dogodke opisane v wikipedia.com) | M52: Services partialy or completely produced or running on the equipment can be acessed on http://www.videolectures.net (video lectures), http://isambard.ijs.si/triplet/semgraph/ ( automatic analysis and summarization of documents), http://historyviz.ijs.si (different entities from wikipedia data described and put in historical perspective) | N52: Zajemanje, shranjevanje, obdelava in semantični analiza velikih količin podatkov. Poudarek je na multimedijskih vsebinah (analiza slik in videa), tekstovnih in spletnih vsebinah in zbirkah strukturiranih podatkov. | O52: Recording, storage, processing and semantic analysis of large amounts of data. The focus is on multimedia content (image and video analysis), text and web content and structured data collections. | P52: 45525 45813 45814 46012 46817 45874 45874 01 47093 46815 46956 46955 47204 47144 47262 47263 47495 48017 48018 48019 48027 48034 47797 XIII_206 | Q52: =Table4[[#This Row],[21]] -> 48.05 | R52: =J52*0.25/2080 -> 17.79 | S52: 17.88 | T52: 12.38 | U52: =SUBTOTAL(9,Table4[[#This Row],[18]:[20]]) -> 48.05 | V52: 100 | W52: 100 | X52: https://www.ijs.si/ijsw/Znotraj%20hi%C5%A1e/Desno?action=AttachFile&do=get&target=ARIS_Evidenca_opreme_2024.xlsx | Y52: 6 | Z52: 1 | AA52: 5 | AB52: 25 | AC52: =Table4[[#This Row],[11]] -> Paket 13 | AD52: 0 | AE52: 4 | AF52: 100 | AG52: =Table4[[#This Row],[4]] -> P2-0103 | AH52: =Table4[[#This Row],[5]] -> Nada Lavrač | AI52: 25 | AJ52: VoiceTRAN II M2-0132 | AK52: IJS | AL52: 25 | AM52: IQ FP6-516169 | AN52: IJS | AO52: 25 | AP52: medinet+ | AQ52: IJS | AR52: 25
A53: 106 | B53: Institut "Jožef Stefan" | D53: P2-0076 | E53: Leon Žlajpah | F53: 3332 | G53: Optični merilni sistem za analizo gibanja | H53: 2004 | I53: Human motion optical measurement system | J53: 92,262.75 | K53: Paket 11 | L53: Po predhodnem dogovoru je možen najem opreme. Oprema je fiksno nameščena v laboratoriju na IJS in je pravilome ne prenašamo, razen v izjemnih primerih. Nudimo tudi tehnično pomoč pri uporabi opreme. Delo se zaračunava po ceniku IJS. | M53: We can arrange all kinds of kinematic and force measurement of human motion providing that measurements take place in our laboratory. The price is according to the JSI personnel price list. | N53: 3D merjenje gibanja pri človeku z natančnostjo pod 1 mm s šestimi kamerami, volumen merjenja do 10 m3, frekvenca meritve do 100 Hz. Meritev se izvaja s pomočjo odsevnikov )markerjev=, ki jih nalepimo na točko, ki jo želimo opazovati. | O53: Equipement enables 3D motion measurement by using passive markers attached to measiring points. The position accuracy of measurements is under 1mm. The measuring rate is up to 100Hz and the measuring volume is up to 10m3. | P53: 36658 | Q53: =Table4[[#This Row],[21]] -> 39.13 | R53: =J53*0.2/2080 -> 8.87 | S53: 17.88 | T53: 12.38 | U53: =SUBTOTAL(9,Table4[[#This Row],[18]:[20]]) -> 39.13 | V53: 100 | W53: 100 | X53: https://www.ijs.si/ijsw/Znotraj%20hi%C5%A1e/Desno?action=AttachFile&do=get&target=ARIS_Evidenca_opreme_2024.xlsx | Y53: 4 | Z53: 3 | AA53: 2 | AB53: 46 | AC53: =Table4[[#This Row],[11]] -> Paket 11 | AD53: 0 | AE53: 5 | AF53: 100 | AG53: =Table4[[#This Row],[4]] -> P2-0076 | AH53: =Table4[[#This Row],[5]] -> Leon Žlajpah | AI53: 100
A54: 106 | B54: Institut "Jožef Stefan" | D54: P1-0143 | E54: Ester Heath | F54: 12315 | G54: Plinski kromatograf z masnoselektivnim detektorjem MS/MS načinom delovanja | H54: 2010 | I54: Gas Chromatograph with mass selective detection in MS/MS mode | J54: 149,885.10 | K54: Paket 14 | L54: Po predhodni najavi dr. ester Heath (ester.heath@ijs.si, 01 477 3584) | M54: According to arrangement with dr. Ester Heath (ester.heath@ijs.si, +386 1 477 3584) | N54: Analiza organskih onesnažil v okoljskih vzorcih | O54: Analysis of organic pollutants in environmental smaples | P54: 51078 XIV 197 | Q54: =Table4[[#This Row],[21]] -> 44.67 | R54: 14.41 | S54: 17.88 | T54: 12.38 | U54: =SUBTOTAL(9,Table4[[#This Row],[18]:[20]]) -> 44.67 | V54: 100 | W54: 100 | X54: https://www.ijs.si/ijsw/Znotraj%20hi%C5%A1e/Desno?action=AttachFile&do=get&target=ARIS_Evidenca_opreme_2024.xlsx | Y54: 3 | Z54: 2 | AA54: 3 | AB54: 4 | AC54: =Table4[[#This Row],[11]] -> Paket 14 | AD54: 0 | AE54: 5 | AF54: 100 | AG54: =Table4[[#This Row],[4]] -> P1-0143 | AH54: =Table4[[#This Row],[5]] -> Ester Heath | AI54: 100
A55: 106 | B55: Institut "Jožef Stefan" | D55: P2-0082 | E55: Peter Panjan | F55: 9090 | G55: Posodobitev profilometra | H55: 2007 | I55: Upgrade of stylus profilometer | J55: 52,406.00 | K55: Paket 13 | L55: Zunanjim uporabnikom zaračunavamo delo operaterja (28.2 €/uro) | M55: only operator cost is charged (28,2 €/h) | N55: Analiza topografije površine podlag pred in po nanosu prevlek. Merjenje debeline tankih plasti. | O55: Study of substrate topography before and after deposition. Thin film thickness measurement. | P55: 41239,45284 XIII 218 | Q55: =Table4[[#This Row],[21]] -> 35.30 | R55: 5.04 | S55: 17.88 | T55: 12.38 | U55: =SUBTOTAL(9,Table4[[#This Row],[18]:[20]]) -> 35.30 | V55: 100 | W55: 100 | X55: https://www.ijs.si/ijsw/Znotraj%20hi%C5%A1e/Desno?action=AttachFile&do=get&target=ARIS_Evidenca_opreme_2024.xlsx | Y55: 1 | Z55: 6 | AA55: 2 | AB55: 44 | AC55: =Table4[[#This Row],[11]] -> Paket 13 | AD55: 0 | AE55: 5 | AF55: 100 | AG55: =Table4[[#This Row],[4]] -> P2-0082 | AH55: =Table4[[#This Row],[5]] -> Peter Panjan | AI55: 20 | AJ55: L2-9189 | AK55: Darinka Kek Merl | AL55: 20 | AM55: L2-0858 | AN55: Tomaž Gyergyek | AO55: 20 | AP55: L2-2100 | AQ55: Peter Panjan | AR55: 20 | AS55: L2-2150 | AT55: Marta Klanjšek-Gunde | AU55: 20
A56: 106 | B56: Institut "Jožef Stefan" | D56: P2-0091 | E56: Danilo Suvorov | F56: 8012 | G56: Praškovni rentgenski difraktometer | H56: 2002 | I56: Powder X-ray diffraction, Bruker D4 | J56: 134,161.38 | K56: Paket 11 | L56: 24 ur, tel. 4773708, dr. S. Škapin | M56: 24 hours, Phone: +386 1 477 3708 | N56: Praškovna rentgenska analiza | O56: Powder X-ray diffraction | P56: 38402 | Q56: =Table4[[#This Row],[21]] -> 43.16 | R56: 12.90 | S56: 17.88 | T56: 12.38 | U56: =SUBTOTAL(9,Table4[[#This Row],[18]:[20]]) -> 43.16 | V56: 100 | W56: 100 | X56: https://www.ijs.si/ijsw/Znotraj%20hi%C5%A1e/Desno?action=AttachFile&do=get&target=ARIS_Evidenca_opreme_2024.xlsx | Y56: 3 | Z56: 8 | AA56: 1 | AB56: 4 | AC56: =Table4[[#This Row],[11]] -> Paket 11 | AD56: 0 | AE56: 5 | AF56: 100 | AG56: =Table4[[#This Row],[4]] -> P2-0091 | AH56: =Table4[[#This Row],[5]] -> Danilo Suvorov | AI56: 25 | AJ56: L2-2410 | AK56: Monika Jenko | AL56: 25 | AM56: L2-2185 | AN56: Danilo Suvorov | AO56: 25 | AP56: L2-2373 | AQ56: Miran Gaberšček | AR56: 25
A57: 106 | B57: Institut "Jožef Stefan" | D57: P1-0140 | E57: Boris Turk | F57: 7561 | G57: Preparativna centrifuga | H57: 2002 | I57: Preparative centrifuge | J57: 39,944.91 | K57: Paket 11 | L57: Uporaba in cena cena po dogovoru, za uporabo kontaktirati dr. Iztoka Dolenca (iztok.dolenc@ijs.si) | M57: Centrifugation of liquid samples; separation of liquid and solid phase, primarily biological material | N57: Separacija vzorcev s centrifugiranjem; ločevanje trdne in tekoče faze, pretežno za biološke vzorce | P57: 39167 | Q57: =Table4[[#This Row],[21]] -> 34.10 | R57: 3.84 | S57: 17.88 | T57: 12.38 | U57: =SUBTOTAL(9,Table4[[#This Row],[18]:[20]]) -> 34.10 | V57: 100 | W57: 100 | X57: https://www.ijs.si/ijsw/Znotraj%20hi%C5%A1e/Desno?action=AttachFile&do=get&target=ARIS_Evidenca_opreme_2024.xlsx | Y57: 2 | Z57: 2 | AA57: 2 | AB57: 4 | AC57: =Table4[[#This Row],[11]] -> Paket 11 | AD57: 0 | AE57: 5 | AF57: 100 | AG57: =Table4[[#This Row],[4]] -> P1-0140 | AH57: =Table4[[#This Row],[5]] -> Boris Turk | AI57: 25 | AJ57: P1-0048 | AK57: Dušan Turk | AL57: 25 | AM57: J1-0711 | AN57: Boris Turk | AO57: 25 | AP57: J1-0185 | AQ57: Marko Fonović | AR57: 25
A58: 106 | B58: Institut "Jožef Stefan" | D58: P1-0140 | E58: Boris Turk | F58: 7561 | G58: Pretočni citometer FACSCalibur (argonski laser 488 nm), Becton Dickinson | H58: 2003 | I58: Flow Cytometer FACSCalibur (Argon Laser 488 nm), Becton Dickinson | J58: 49,824.93 | K58: Paket 11 | L58: Uporaba in cena cena po dogovoru, za uporabo kontaktirati dr. Urško Repnik (urska.repnik@ijs.si) | M58: expression of surface or intracellular molecules - antibody binding; Lysotracker / Mitotracker staining; apoptosis analysis - annexin V & PI; cell cycle analysis; analysis of cell proliferation - CFSE staining; further services by agreement | N58: Pretočna citometrija omogoča semikvantitativno in celo kvantitativno analizo fluorescence posameznih celic v suspenziji. Z uporabo protiteles, konjugiranih s fluorokromi, lahko spremljamo izražanje oz. prisotnost posameznih molekul na / v celicah. Z barvili, katerih fluorescenca se spreminja v odvisnosti od pH, oksidativnega stanja, koncentracije določenih ionov,... lahko spremljamo fiziološko stanje celic (mitohondrijski membranski potencial, mikrobicidni potencial nevtrofilcev, prenos signala s površinskih receptorjev). Z barvili, ki se vežejo v DNA, je mogoče analizirati celični ciklus in živost celic. Med pogostejše uporabe sodijo še analiza apoptotskih celic, vrednotenje uspešnosti transfekcije celic s fluorescenčnimi konstrukti in sledenje proliferaciji celic, obarvanih z barvilom CFSE. Najpomembnejše prednosti pretočne citometrije so: hitra priprava vzorcev, hitra analiza velikega števila celic, preučevanje medsebojne povezanosti več lastnosti in možnost statistične obdelave, tako v smislu deleža celic kot intenzitete parametrov. | O58: Argon laser (488 nm) | P58: 37061 | Q58: =Table4[[#This Row],[21]] -> 35.05 | R58: 4.79 | S58: 17.88 | T58: 12.38 | U58: =SUBTOTAL(9,Table4[[#This Row],[18]:[20]]) -> 35.05 | V58: 100 | W58: 100 | X58: https://www.ijs.si/ijsw/Znotraj%20hi%C5%A1e/Desno?action=AttachFile&do=get&target=ARIS_Evidenca_opreme_2024.xlsx | Y58: 2 | Z58: 5 | AA58: 4 | AB58: 11 | AC58: =Table4[[#This Row],[11]] -> Paket 11 | AD58: 0 | AE58: 5 | AF58: 100 | AG58: =Table4[[#This Row],[4]] -> P1-0140 | AH58: =Table4[[#This Row],[5]] -> Boris Turk | AI58: 25 | AJ58: P1-0048 | AK58: Dušan Turk | AL58: 25 | AM58: J1-0711 | AN58: Boris Turk | AO58: 25 | AP58: P1-0207 | AQ58: Igor Križaj | AR58: 25
A59: 106 | B59: Institut "Jožef Stefan" | D59: P2-0001 | E59: Stanislav Strmčnik | F59: 2830 | G59: Računalniška in merilna oprema za upravljanje in diagnosticiranje kompleksnih sistemov | H59: 2004 | I59: Measurement and control modules for the laboratory of fault diagnosis systems | J59: 55,467.40 | K59: Paket 12 | L59: Opremo je možno uporabljati po predhodnem dogovoru s potencialnim uporabnikom in lastnikom opreme. Pogoje, trajanje in način uporabe se določi s pogodbo. | M59: The equipment can be exploited upon precedent agreement between the potential user and the owner. The conditions, duration and modes of the equipment exploitation are to be defined with a contract. | N59: Meritve akustičnih signalov in vibracij; računalniški zajem in analiza električnih signalov | O59: Measurement of acoustic signals and vibration; computer acquisition and analysis of electrical signals | P59: 41202 | Q59: =Table4[[#This Row],[21]] -> 35.59 | R59: 5.33 | S59: 17.88 | T59: 12.38 | U59: =SUBTOTAL(9,Table4[[#This Row],[18]:[20]]) -> 35.59 | V59: 100 | W59: 100 | X59: https://www.ijs.si/ijsw/Znotraj%20hi%C5%A1e/Desno?action=AttachFile&do=get&target=ARIS_Evidenca_opreme_2024.xlsx | Y59: 6 | Z59: 1 | AA59: 5 | AB59: 1 | AC59: =Table4[[#This Row],[11]] -> Paket 12 | AD59: 0 | AE59: 5 | AF59: 100 | AG59: =Table4[[#This Row],[4]] -> P2-0001 | AH59: =Table4[[#This Row],[5]] -> Stanislav Strmčnik | AI59: 25 | AJ59: L2-3504 | AK59: Mina Žele | AL59: 25 | AM59: L2-6554 | AN59: Đani Juričić | AO59: 25 | AP59: L2-7537 | AQ59: Stanislav Strmčnik | AR59: 25
A60: 106 | B60: Institut "Jožef Stefan" | D60: P2-0001 | E60: Stanislav Strmčnik | F60: 2830 | G60: Računalniška in merilno-regulacijska oprema laboratorija za tehnologijo vodenja sistemov | H60: 2002 | I60: Process and control modules for the laboratory of control systems technology | J60: 45,971.96 | K60: Paket 11 | L60: Opremo je možno uporabljati po predhodnem dogovoru s potencialnim uporabnikom in lastnikom opreme. Pogoje, trajanje in način uporabe se določi s pogodbo. | M60: The equipment can be exploited upon precedent agreement between the potential user and the owner. The conditions, duration and modes of the equipment exploitation are to be defined with a contract. | N60: Meritve EM emisij in analiza EM združljivosti naprav v procesnem okolju; preizkušanje metod vodenja na procesni opremi | O60: Measurement of EM emissions of electronic equipment and analysis of EM compatibility in the process environment | P60: 38499.38500,38518,38519,38520,38521,38616,38897,38560,38597,38598,38531,38532,38594,38595,38596,38615, | Q60: =Table4[[#This Row],[21]] -> 34.68 | R60: 4.42 | S60: 17.88 | T60: 12.38 | U60: =SUBTOTAL(9,Table4[[#This Row],[18]:[20]]) -> 34.68 | V60: 100 | W60: 100 | X60: https://www.ijs.si/ijsw/Znotraj%20hi%C5%A1e/Desno?action=AttachFile&do=get&target=ARIS_Evidenca_opreme_2024.xlsx | Y60: 6 | Z60: 4 | AB60: 46 | AC60: =Table4[[#This Row],[11]] -> Paket 11 | AD60: 0 | AE60: 5 | AF60: 100 | AG60: =Table4[[#This Row],[4]] -> P2-0001 | AH60: =Table4[[#This Row],[5]] -> Stanislav Strmčnik | AI60: 33 | AJ60: P2-0001 | AK60: Đani Juričić | AL60: 33 | AM60: L2-4221 | AN60: Stanislav Strmčnik | AO60: 33
A61: 106 | B61: Institut "Jožef Stefan" | D61: P2-0209 | E61: Matjaž Gams | F61: 8501 | G61: Računalniška oprema za raziskave ambientalne inteligence | H61: 2011 | I61: Computer equipment for research in ambient intelligence | J61: 120,704.79 | K61: Paket 14 | L61: Oprema je dostopna po predhodnem dogovoru. Kontakt preko e-pošte na naslovu matjaz.gams@ijs.si | M61: Equipment is available on demand. Please contact matjaz.gams@ijs.si | N61: Oprema je namenjena zajemanju lokacije, orientacije in pospeškov nosljivih značk z namenom rekonstrukcije človeške poze. Na voljo so tudi procesni strežniki za procesiranje zajetih podatkov. | O61: Equipment is used for acquireing location, orientation and acceleration of wearable tags with aim to recunstruct persons gait. Servers for processing acuired data are also available. | P61: 50043,49705,51514-19,51584-89,49881...XIV_186 | Q61: =Table4[[#This Row],[21]] -> 34.60 | R61: =J61*0.25/2080 -> 14.51 | S61: 5.99 | T61: 14.1 | U61: =SUBTOTAL(9,Table4[[#This Row],[18]:[20]]) -> 34.60 | V61: 100 | W61: 100 | X61: https://www.ijs.si/ijsw/Znotraj%20hi%C5%A1e/Desno?action=AttachFile&do=get&target=ARIS_Evidenca_opreme_2024.xlsx | Y61: 6 | Z61: 1 | AA61: 5 | AB61: 14 | AC61: =Table4[[#This Row],[11]] -> Paket 14 | AD61: 0 | AE61: 4 | AF61: 100 | AG61: =Table4[[#This Row],[4]] -> P2-0209 | AH61: =Table4[[#This Row],[5]] -> Matjaž Gams | AI61: 25 | AJ61: PR-03610 | AK61: Mitja Luštrek | AL61: 25 | AM61: PR-04275 | AN61: Domen Marinčič | AO61: 25 | AP61: PR-02778 | AQ61: Aleš Tavčar | AR61: 25
A62: 106 | B62: Institut "Jožef Stefan" | D62: P2-0209 | E62: Ivan Bratko | F62: 2275 | G62: Računalniška oprema za razvoj inteligentnih internetnih storitev | H62: 2003 | I62: Computer equipment for development of intelligent Internet services | J62: 89,787.63 | K62: Paket 11 | L62: Oprema ni več v uporabi (je amortizirana in odpisana). | M62: The equipment is no more in use. | N62: Oprema je obsegala v mrežo povezane strežnike, namizne in prenosne računalnike, periferne in mobilne naprave ter pripadajočo programsko opremo. Namenjena je bila raziskavam in razvoju metod za podporo inteligentnih internetnih storitev, ki so računsko in pomnilniško zahtevne. Uporabljena je bila za dostopanje do informacij na globalnem omrežju, iskanje zakonitosti v velikih porazdeljenih zbirkah podatkov in podpori govornih komunikacij. | O62: The equipment consisted of a network of servers, desktop and laptop computers, peripheral and mobile devices, and related software. It was meant for research and development of methods for intelligent internet services that require high computational and storage capacities. It was used in accessing information on global network, knowledge discovery in large distributed databases, and speech communication support. | P62: 38457 | Q62: =Table4[[#This Row],[21]] -> 41.05 | R62: 10.79 | S62: 17.88 | T62: 12.38 | U62: =SUBTOTAL(9,Table4[[#This Row],[18]:[20]]) -> 41.05 | V62: 100 | W62: 100 | X62: https://www.ijs.si/ijsw/Znotraj%20hi%C5%A1e/Desno?action=AttachFile&do=get&target=ARIS_Evidenca_opreme_2024.xlsx | Y62: 6 | Z62: 1 | AA62: 3 | AB62: 14 | AC62: =Table4[[#This Row],[11]] -> Paket 11 | AD62: 0 | AE62: 4 | AF62: 100 | AG62: =Table4[[#This Row],[4]] -> P2-0209 | AH62: =Table4[[#This Row],[5]] -> Ivan Bratko | AI62: 25 | AJ62: L2-5373 | AK62: Matjaž Gams | AL62: 25 | AM62: V2-0893 | AN62: Tomaž Šef | AO62: 25 | AP62: V2-0894 | AQ62: Matjaž Gams | AR62: 25
A63: 106 | B63: Institut "Jožef Stefan" | D63: P2-0209 | E63: Matjaž Gams | F63: 8501 | G63: Računalniška oprema za razvoj porazdeljenih inteligentnih sistemov | H63: 2004 | I63: Computer equipment for development of distributed intelligent systems | J63: 103,792.37 | K63: Paket 12 | L63: Oprema ni več v uporabi (je amortizirana in odpisana). | M63: The equipment is no more in use. | N63: Oprema je obsegala v mrežo povezane strežnike, namizne in prenosne računalnike, periferne in mobilne naprave ter pripadajočo programsko opremo. Namenjena je bila raziskavam in razvoju metod porazdeljenih inteligentnih sistemov. Z njo smo izvajali raziskovalne in razvojne projekte na področjih strojnega učenja, odkrivanja zakonitosti v podatkih, večagentnih sistemov, semantičnega spleta, evolucijskega računanja in jezikovnih tehnologij. | O63: The equipment consisted of a network of servers, desktop and laptop computers, peripheral and mobile devices, and related software. It was meant for research and development of methods of distributed intelligent systems. It was exploited in research and development projects in the fields of machine learning, data mining, multiagent systems, semantic web, evolutionary computing and language technologies. | P63: 35911 | Q63: =Table4[[#This Row],[21]] -> 42.74 | R63: 12.48 | S63: 17.88 | T63: 12.38 | U63: =SUBTOTAL(9,Table4[[#This Row],[18]:[20]]) -> 42.74 | V63: 100 | W63: 100 | X63: https://www.ijs.si/ijsw/Znotraj%20hi%C5%A1e/Desno?action=AttachFile&do=get&target=ARIS_Evidenca_opreme_2024.xlsx | Y63: 6 | Z63: 1 | AA63: 4 | AB63: 14 | AC63: =Table4[[#This Row],[11]] -> Paket 12 | AD63: 0 | AE63: 4 | AF63: 100 | AG63: =Table4[[#This Row],[4]] -> P2-0209 | AH63: =Table4[[#This Row],[5]] -> Matjaž Gams | AI63: 25 | AJ63: L2-6234 | AK63: Matjaž Gams | AL63: 25 | AM63: M2-0156 | AN63: Matjaž Gams | AO63: 25 | AP63: V2-0130 | AQ63: Matjaž Gams | AR63: 25
A64: 106 | B64: Institut "Jožef Stefan" | D64: P2-0103 | E64: Nada Lavrač | F64: 8949 | G64: Računalniška oprema za semantične informacijske storitve | H64: 2004 | I64: Computer equipment for the semantic information services | J64: 118,827.27 | K64: Paket 12 | L64: Storitve delno ali v celoti producirane na opremi iz paketa so prosto dosegljive preko http://www.videolectures.net (video predavanja), http://nl2.ijs.si/ (storitve za označevanje naravnega jezika in korpusi) | M64: Services partialy or completely produced or running on the equipment can be acessed on http://www.videolectures.net (video lectures), http://nl2.ijs.si/ (natural language tagging and corpora) | N64: Razvoj novih računalniških programov in metod za semantično analizo velikih podatkovnih in tekstovnih zbirk. | O64: Development of new computer programs and methods for semantic analysis of large data and text collections. | P64: 40973 | Q64: =Table4[[#This Row],[21]] -> 44.54 | R64: 14.28 | S64: 17.88 | T64: 12.38 | U64: =SUBTOTAL(9,Table4[[#This Row],[18]:[20]]) -> 44.54 | V64: 100 | W64: 100 | X64: https://www.ijs.si/ijsw/Znotraj%20hi%C5%A1e/Desno?action=AttachFile&do=get&target=ARIS_Evidenca_opreme_2024.xlsx | Y64: 6 | Z64: 1 | AA64: 5 | AB64: 63 | AC64: =Table4[[#This Row],[11]] -> Paket 12 | AD64: 0 | AE64: 4 | AF64: 100 | AG64: =Table4[[#This Row],[4]] -> P2-0103 | AH64: =Table4[[#This Row],[5]] -> Nada Lavrač | AI64: 25 | AJ64: L6-6373 | AK64: Matija Ogrin | AL64: 25 | AM64: ECOGEN QLRT-2001-01666 | AN64: IJS | AO64: 25 | AP64: MEDINET | AQ64: IJS | AR64: 25
A65: 106 | B65: Institut "Jožef Stefan" | D65: P2-0026 | E65: Igor Simonovski | F65: 19910 | G65: Računska računalniška gruča | H65: 2007 | I65: High Performance Compute Cluster Mangrt | J65: 100,000.00 | K65: Paket 13 | L65: Proste kapacitete so na voljo ostalim odsekom Instituta Jožef Stefan. Prošnja za dostop do prostih kapacitet se pošlje na naslov Dr. Igor Simonovski, Odsek za reaktorsko tehniko, ali na elektronski naslov Igor.Simonovski@ijs.si. Prošnja naj navede število potrebnih vozlišč oz. procesorjev, spomina in prostega diska ter predviden čas uporabe. Cena uporabe enega vozlišča z dvema Intel Xeon 5160 procesorjema in 8GB spomina je 10€ za uro uporabe (brez DDV-ja). Dostop do gruče je omogočen preko SSH povezave. | M65: Free capacities are available to other Jožef Stefan Institute departments. The request should be addressed to Dr. Igor Simonovski, Reactor Engineering Division, Jožef Stefan Institute, Jamova cesta 39, Ljubljana or to e-mail address Igor.Simonovski@ijs.si. The request should state the number of required compute nodes and/or processors, memory, disk space and estimated time of usage. 10€ per hour (without VAT) is charged for one compute node with 2 Intel Xeon 5160 processors and 8 GB of memory. SSH connection is used for connecting to the cluster. | N65: Računalniška gruča za izvajanje znanstvenih simulacij. Nadzorno vozlišče ter 18 računskih vozlišč, dva dvo- oz. štiri-jedrna Intel Xeon procesorja na vozlišče, 3GHz, od 8 do 32GB spomina na vozlišče. Gigabitna povezava med vozlišči. 64-bitni Red Hat Enterprise Linux 4 WS, Update 4. Torque čakalni sistem. | O65: High performance compute cluster for performing scientific simulations. Master and 18 compute nodes, two dual- and quad-core Intel Xeon processors per node, 3GHz, from 8 to 32GB of memory per node. Gigabit interconnect. 64-bit Red Hat Enterprise Linux 4 WS, Update 4. Torque queuing system. | P65: 45700,45700 01 XIII_225 | Q65: =Table4[[#This Row],[21]] -> 42.28 | R65: 12.02 | S65: 17.88 | T65: 12.38 | U65: =SUBTOTAL(9,Table4[[#This Row],[18]:[20]]) -> 42.28 | V65: 100 | W65: 100 | X65: https://www.ijs.si/ijsw/Znotraj%20hi%C5%A1e/Desno?action=AttachFile&do=get&target=ARIS_Evidenca_opreme_2024.xlsx | Y65: 6 | Z65: 1 | AA65: 4 | AB65: 14 | AC65: =Table4[[#This Row],[11]] -> Paket 13 | AD65: 0 | AE65: 4 | AF65: 100 | AG65: =Table4[[#This Row],[4]] -> P2-0026 | AH65: =Table4[[#This Row],[5]] -> Igor Simonovski | AI65: 25 | AJ65: PR-01857 | AK65: IJS | AL65: 25 | AM65: PR-02538 | AN65: IJS | AO65: 25 | AP65: J2-9168 | AQ65: Igor Simonovski | AR65: 25
A66: 106 | B66: Institut "Jožef Stefan" | D66: P2-0026 | E66: Iztok Tiselj | F66: 12057 | G66: Računska računalniška gruča | H66: 2010 | I66: Cluster | J66: 179,400.00 | K66: Paket 14 | L66: Računalniška gruča je ob oddobritvi vodij odsekov R4 ali F8, oz. mentorjev z obeh odsekov, dostopna vsem raziskovalcem in študentom omenjenih odsekov. | M66: Cluster is available to all members and students of R4 and F8 departments after approval of department heads or senior researchers. | N66: Oprema se uporablja za simulacije na področjih računalniške fizike (predvsem Monte-Carlo simulacije), jedrske termohidravlike (simulacije v mehaniki tekočin, prenosu toplote in snovi z metodami končnih razlik, končnih volumnov oz. spektralnimi shemami) ter na področju strukturnih analiz (simulacije trdnosti struktur - predvsem z metodami končnih enlementov). | O66: Cluster is being used mainly for simulations in the field of reactor physics (Monte-Carlo simulations), nuclear thermal-hydraulics simulations (finite differences/volumes and pseudospectral methods used for computational fluid dynamics, heat and mass transfer simulations), and structural mechanics (finite element methods). | P66: 51430,51430-1 XIV 177 | Q66: =Table4[[#This Row],[21]] -> 51.82 | R66: 21.56 | S66: 17.88 | T66: 12.38 | U66: =SUBTOTAL(9,Table4[[#This Row],[18]:[20]]) -> 51.82 | V66: 100 | W66: 100 | X66: https://www.ijs.si/ijsw/Znotraj%20hi%C5%A1e/Desno?action=AttachFile&do=get&target=ARIS_Evidenca_opreme_2024.xlsx | Y66: 6 | Z66: 1 | AA66: 4 | AB66: 14 | AC66: =Table4[[#This Row],[11]] -> Paket 14 | AD66: 0 | AE66: 4 | AF66: 100 | AG66: =Table4[[#This Row],[4]] -> P2-0026 | AH66: =Table4[[#This Row],[5]] -> Iztok Tiselj | AI66: 100
A67: 106 | B67: Institut "Jožef Stefan" | D67: P1-0045 | E67: Adolf Jesih | F67: 3317 | G67: Ramanski spektrometer | H67: 2010 | I67: Raman microscope Labram HR | J67: 133,200.00 | K67: Paket 14 | L67: Čas dostopa do opreme vsak delovni dan od 8:00 do 16:00 po predhodnem dogovoru s skrbnikom. Kontakt preko el. Pošte na naslovu melita.tramsek@ijs.si | M67: Acces is posible every working day from 8:00 to 16:00 after agreement on terms of use. Contact on email melita.tramsek@ijs.si | N67: Oprema je v prvi vrsti namenjena karakterizaciji in identifikaciji spojin in materialov in omogoča nedestruktivno analizo praktično brez priprave vzorca. | O67: The equipment is primarily used for the characterization and identification of compounds and materials and allows for the nondestructive analyses with practically no additional sample processing. | P67: 50651 xiv 198 | Q67: =Table4[[#This Row],[21]] -> 43.07 | R67: =J67*0.2/2080 -> 12.81 | S67: 17.88 | T67: 12.38 | U67: =SUBTOTAL(9,Table4[[#This Row],[18]:[20]]) -> 43.07 | V67: 100 | W67: 100 | X67: https://www.ijs.si/ijsw/Znotraj%20hi%C5%A1e/Desno?action=AttachFile&do=get&target=ARIS_Evidenca_opreme_2024.xlsx | Y67: 3 | Z67: 1 | AA67: 1 | AB67: 4 | AC67: =Table4[[#This Row],[11]] -> Paket 14 | AD67: 0 | AE67: 5 | AF67: 100 | AG67: =Table4[[#This Row],[4]] -> P1-0045 | AH67: =Table4[[#This Row],[5]] -> Adolf Jesih | AI67: 100
A68: 106 | B68: Institut "Jožef Stefan" | D68: P2-0095 | E68: Roman Trobec | F68: 6875 | G68: Raziskovalni vzporedni računalnik | H68: 2004 | I68: Parallel computer (34 CPU - toroidal 6-mesh) | J68: 53,344.08 | K68: Paket 12 | L68: Glavni uporabniki vzporednega računalnika so raziskovalci programske skupine P2-0095. Oprema je ob predhodnem dogovoru prosto dostopna za raziskovalne namene. Preostali čas je na voljo tudi dodiplomskim in podiplomskim študentom. Uporaba računalnika je brezplačna. | M68: Main users of the parallel computer are researchers from the Program Group P2-0095. The equipment is available also for research purposes after mutual agreement. The remaining CPU time is available for graduate and postgraduate students. No financial refund requested for the usage. | N68: Vzporedni računalnik je namenjen razvoju in izvajanju računsko zahtevnih programov, študiju zahtevnosti računanja in proučevanju povezovalnih omrežji. | O68: Parallel computer is intended for developing and running of the computationally demanding applications, for studying the computational complexity and for investigating the interconnection networks. | P68: 41068 | Q68: =Table4[[#This Row],[21]] -> 36.67 | R68: =J68*0.25/2080 -> 6.41 | S68: 17.88 | T68: 12.38 | U68: =SUBTOTAL(9,Table4[[#This Row],[18]:[20]]) -> 36.67 | V68: 100 | W68: 100 | X68: https://www.ijs.si/ijsw/Znotraj%20hi%C5%A1e/Desno?action=AttachFile&do=get&target=ARIS_Evidenca_opreme_2024.xlsx | Y68: 6 | Z68: 1 | AA68: 4 | AB68: 25 | AC68: =Table4[[#This Row],[11]] -> Paket 12 | AD68: 0 | AE68: 4 | AF68: =(AI68+AL68+AO68+AR68+AU68+AX68) -> 100 | AG68: =Table4[[#This Row],[4]] -> P2-0095 | AH68: =Table4[[#This Row],[5]] -> Roman Trobec | AI68: 20 | AJ68: V2-0127 | AK68: Boštjan Vilfan | AL68: 20 | AM68: COST IC0805, | AN68: IJS | AO68: 20 | AP68: BI-UA/09-10-001 | AQ68: IJS | AR68: 20 | AS68: (CRP) Računske Grid tehnologije za učinkovitejo uporabo uporabo računalniških virov v podjetjih | AT68: IJS | AU68: 20
A69: 106 | B69: Institut "Jožef Stefan" | D69: P1-0045 | E69: Tomaž Skapin | F69: 2757 | G69: Rentgenski praškovni difraktometer | H69: 2007 | I69: X-ray powder diffractometer | J69: 52,000.00 | K69: Paket 13 | L69: Dostop do opreme je možen. Delo na opremi je možno le z ustreznim izpitom iz varstva pred sevanji. Pogoji dostopa in cena: po dogovoru. Kontakt: T. Skapin | M69: Access to the equipment is possible. Work is possible only with a valid radiation safety certificate. Access conditions and prices: individually appointed. Contact: T. Skapin | N69: Praškovni difraktometer za delo z občutljivimi vzorci, snemanje v kapilari. | O69: Powder diffractometer for sensitive samples, work in capillaries. | P69: 46660 XIV_226 | Q69: =Table4[[#This Row],[21]] -> 35.26 | R69: =J69*0.2/2080 -> 5.00 | S69: 17.88 | T69: 12.38 | U69: =SUBTOTAL(9,Table4[[#This Row],[18]:[20]]) -> 35.26 | V69: 100 | W69: 100 | X69: https://www.ijs.si/ijsw/Znotraj%20hi%C5%A1e/Desno?action=AttachFile&do=get&target=ARIS_Evidenca_opreme_2024.xlsx | Y69: 3 | Z69: 8 | AA69: 1 | AB69: 4 | AC69: =Table4[[#This Row],[11]] -> Paket 13 | AD69: 0 | AE69: 5 | AF69: 100 | AG69: =Table4[[#This Row],[4]] -> P1-0045 | AH69: =Table4[[#This Row],[5]] -> Tomaž Skapin | AI69: 50 | AJ69: Z1-7037 | AK69: Boris Žemva | AL69: 50
A70: 106 | B70: Institut "Jožef Stefan" | D70: P2-0087 | E70: Aleš Dakskobler | F70: 17165 | G70: Reometer (Physica MCR301 Modular Compact) | H70: 2005 | I70: Physica MCR301 Modular Compact Rheometer, Anton Paar | J70: 62,618.40 | K70: Paket 12 | L70: Oprema je na voljo na Institutu Jožef Stefan, na Odseku za inženirsko keramiko | M70: Rotational and oscilation measurement of rheological properties of liquids, suspensions and pastes. | N70: Oprema je namenjena merjenju reoloških lastnosti tekočin, suspenzij in past. Meritve je mogoče opravljati v rotacijskem in oscilacijskem načinu. Omogoča tudi merjenje reoloških lastnosti v magnetnem polju. | O70: The equipment is designed for the measurement of rheological properties of liquids, suspensions and pastes. The measurements can be conducted in rotational or oscilation modes. The measurement of rheologival properties can also be conducted in magnetic field. | P70: 42727,42727 1,42727-1 | Q70: =Table4[[#This Row],[21]] -> 36.28 | R70: 6.02 | S70: 17.88 | T70: 12.38 | U70: =SUBTOTAL(9,Table4[[#This Row],[18]:[20]]) -> 36.28 | V70: 100 | W70: 100 | X70: https://www.ijs.si/ijsw/Znotraj%20hi%C5%A1e/Desno?action=AttachFile&do=get&target=ARIS_Evidenca_opreme_2024.xlsx | Y70: 3 | Z70: 10 | AA70: 2 | AB70: 44 | AC70: =Table4[[#This Row],[11]] -> Paket 12 | AD70: 0 | AE70: 5 | AF70: 100 | AG70: =Table4[[#This Row],[4]] -> P2-0087 | AH70: =Table4[[#This Row],[5]] -> Aleš Dakskobler | AI70: 50 | AJ70: L2-9360 | AK70: Kristoffer Krnel | AL70: 50
A71: 106 | B71: Institut "Jožef Stefan" | D71: P1-0099 | E71: Janez Pirš | F71: 1120 | G71: Sistem za čiščenje substratov | H71: 2007 | I71: System for substrate cleaning | J71: 115,000.00 | K71: Paket 13 | L71: Dostop dovoljen po dogovoru, ni posebnih omejitev | M71: Service available upon request, no special limitation | N71: Oprema omogoča pripravo ultračistih površin za nanos tankih prevlek mehkih in trdnih snovi, predvsem tekočih kristalov. | O71: The equipment provides for preparation of ultra-clean surfaces for deposition of thin films of soft and solid matter, in particular liquid crystals. | P71: 45692,46018,45735,45304,39948,46567,44552,45691,45875,46019,46051 XIII_210 | Q71: =Table4[[#This Row],[21]] -> 41.32 | R71: 11.06 | S71: 17.88 | T71: 12.38 | U71: =SUBTOTAL(9,Table4[[#This Row],[18]:[20]]) -> 41.32 | V71: 100 | W71: 100 | X71: https://www.ijs.si/ijsw/Znotraj%20hi%C5%A1e/Desno?action=AttachFile&do=get&target=ARIS_Evidenca_opreme_2024.xlsx | Y71: 1 | Z71: 2 | AA71: 3 | AB71: 44 | AC71: =Table4[[#This Row],[11]] -> Paket 13 | AD71: 0 | AE71: 5 | AF71: 100 | AG71: =Table4[[#This Row],[4]] -> P1-0099 | AH71: =Table4[[#This Row],[5]] -> Janez Pirš | AI71: 100
A72: 106 | B72: Institut "Jožef Stefan" | D72: P1-0040 | E72: Dragan Mihailović | F72: 4540 | G72: Sistem za ekscitacijsko spektroskopijo neravnovesnih pojavov | H72: 2008 | I72: Excitation spectroscopy system for study of non-equilibrium phenomena | J72: 320,000.00 | K72: Paket 13 | L72: Oprema je dosegljiva po dogovoru s skrbnikom. Dodatni podatki o skrbnikih opreme na razpolago na RO | M72: Equipment is available upon agreement | N72: Razširitev območja dosegljivih experimentalnih parametrov pri ekscitacijski spektroskopiji neravnovesnih pojavov in uvedba novih metod za analizo neravnovesnih sprememb elektronskih stanj in strukture z izboljšano površinsko občutljivostjo. | O72: Broadening the area of achieved experimental parameters at excitation spectroscopy of noequilibrium phenomenas.Introduction of new methods for analizing nonequilibrium changes of electronic states and structure, with improved surface sensitivity. | P72: 46875.46727.47453.46923.47804.48250.48251.48238.47342.47448.46788.47940. XIII_227 | Q72: =Table4[[#This Row],[21]] -> 61.03 | R72: 30.77 | S72: 17.88 | T72: 12.38 | U72: =SUBTOTAL(9,Table4[[#This Row],[18]:[20]]) -> 61.03 | V72: 100 | W72: 100 | X72: https://www.ijs.si/ijsw/Znotraj%20hi%C5%A1e/Desno?action=AttachFile&do=get&target=ARIS_Evidenca_opreme_2024.xlsx | Y72: 3 | Z72: 1 | AA72: 4 | AB72: 30 | AC72: =Table4[[#This Row],[11]] -> Paket 13 | AD72: 0 | AE72: 5 | AF72: 100 | AG72: =Table4[[#This Row],[4]] -> P1-0040 | AH72: =Table4[[#This Row],[5]] -> Dragan Mihailović | AI72: 50 | AJ72: P1-0192 | AK72: Martin Čopič | AL72: 50
A73: 106 | B73: Institut "Jožef Stefan" | D73: P1-0099 | E73: Janez Štrancar | F73: 18273 | G73: Sistem za fluorescenčno mikrospektroskopijo | H73: 2007 | I73: System for fluorescence microspectroscopy | J73: 147,200.00 | K73: Paket 13 | L73: Možnost meritev po ceniku IJS, možnost brezplačne uporabe v primeru izvajanja skupnih RR projektov | M73: Posibility of measurements according to the IJS price-list, possibility for free usage in case of joined projects | N73: Oprema je namenjena raziskovanju celic in interakcij v bioloških sistemih s pomočjo fluorescenčne konfokalne mikrospektroskopije in omogoča zajem fluorescenčnega emisijskega spektra (spektralna ločljivost nekaj nm) znotraj posameznih slikovnih elementov 3D slike ločljivosti 180 nm x 180 nm x 450 nm s časovno ločljivostjo 10 ms. Za raziskave ni potrebna fiksacija biološkega materiala, ker sistem omogoča tudi in-vitro poskuse na vitalnih celičnih linijah direktno v gojilnih posodah z ultra-tankim dnom. | O73: System is devoted for exploration of cells and interactions in biological systems with the usage of fluorescence confocal microspectroscopy and enables detection of fluorescence emmision spectra (spectral resolution of few nm) within individual pixels of 3D picture with the resolution of 180 nm x 180 nm x 450 nm with time resolution of 10 ms. Fixation of biological material is not needed as the system allows in-vitro experimentation on vital cell-lines directly in ultra-thin-bottom flasks in which cell can grow. | P73: 45811 XIV 211 | Q73: =Table4[[#This Row],[21]] -> 44.41 | R73: 14.15 | S73: 17.88 | T73: 12.38 | U73: =SUBTOTAL(9,Table4[[#This Row],[18]:[20]]) -> 44.41 | V73: 100 | W73: 100 | X73: https://www.ijs.si/ijsw/Znotraj%20hi%C5%A1e/Desno?action=AttachFile&do=get&target=ARIS_Evidenca_opreme_2024.xlsx | Y73: 3 | Z73: 1 | AA73: 7 | AB73: 11 | AC73: =Table4[[#This Row],[11]] -> Paket 13 | AD73: 0 | AE73: 5 | AF73: 100 | AG73: =Table4[[#This Row],[4]] -> P1-0099 | AH73: =Table4[[#This Row],[5]] -> Janez Štrancar | AI73: 25 | AJ73: V4-0522 | AK73: Janez Štrancar | AL73: 25 | AM73: J3-2270 | AN73: Milan Petelin | AO73: 25 | AP73: J7-0337 | AQ73: Marjeta Šentjurc | AR73: 25
A74: 106 | B74: Institut "Jožef Stefan" | D74: P1-0143 | E74: Milena Horvat | F74: 5027 | G74: Sistem za karakterizacijo radioaktivnih aerosolov velikosti od 2 do 400 nm | H74: 2008 | I74: System for characterization radioactivity aerosol size from 2 to 400 nm | J74: 58,444.00 | K74: Paket 13 | L74: Po dogovoru; materialni stroški + ure operaterja | M74: Pon agreement; material + personnel costs | N74: Uporablja se za karakterizacijo radioaktivnih aerosolov velikosti od 2 do 400 nm v vzorcih zraka | O74: It is used for characterization radioactivity aerosol size from 2 to 400 nm in air samples | P74: 46078,46662 XIII_224 | Q74: =Table4[[#This Row],[21]] -> 35.88 | R74: 5.62 | S74: 17.88 | T74: 12.38 | U74: =SUBTOTAL(9,Table4[[#This Row],[18]:[20]]) -> 35.88 | V74: 100 | W74: 100 | X74: https://www.ijs.si/ijsw/Znotraj%20hi%C5%A1e/Desno?action=AttachFile&do=get&target=ARIS_Evidenca_opreme_2024.xlsx | Y74: 3 | Z74: 2 | AA74: 2 | AB74: 32 | AC74: =Table4[[#This Row],[11]] -> Paket 13 | AD74: 0 | AE74: 5 | AF74: 100 | AG74: =Table4[[#This Row],[4]] -> P1-0143 | AH74: =Table4[[#This Row],[5]] -> Milena Horvat | AI74: 50 | AJ74: P1-0143 | AK74: Milena Horvat | AL74: 50
A75: 106 | B75: Institut "Jožef Stefan" | D75: P1-0192 | E75: Martin Čopič | F75: 3470 | G75: Sistem za lasersko mikrostrukturiranje in analizo tankoplastnih struktur | H75: 2011 | I75: System for laser microstructuring and thin layer structure analysis | J75: 216,802.64 | K75: Paket 14 | L75: Oprema je dosegljiva po dogovoru s skrbnikom | M75: Equipment is available upon agreement | N75: Hitra prototipna izdelava natančnih mikrostrukur s pomočjo direktne laserske fotolitografije. Karakterizacija tankoplastnih struktur. | O75: Rapid prototypintg of precision microstructures with direct laser photolitography. Characterization of thin layer structures. | P75: 50652, 51353, 52280 01, 53361 XIV 203 | Q75: =Table4[[#This Row],[21]] -> 40.41 | R75: 20.85 | S75: 5.46 | T75: 14.1 | U75: =SUBTOTAL(9,Table4[[#This Row],[18]:[20]]) -> 40.41 | V75: 100 | W75: 100 | X75: https://www.ijs.si/ijsw/Znotraj%20hi%C5%A1e/Desno?action=AttachFile&do=get&target=ARIS_Evidenca_opreme_2024.xlsx | Y75: 3 | Z75: 1 | AA75: 4 | AB75: 30 | AC75: =Table4[[#This Row],[11]] -> Paket 14 | AD75: 0 | AE75: 5 | AF75: 100 | AG75: =Table4[[#This Row],[4]] -> P1-0192 | AH75: =Table4[[#This Row],[5]] -> Martin Čopič | AI75: 50 | AJ75: P1-0040 | AK75: Dragan D. Mihailović | AL75: 50
A76: 106 | B76: Institut "Jožef Stefan" | D76: P1-0099 | E76: Janez Štrancar | F76: 18273 | G76: Sistem za manipulacijo mikrobnih površin | H76: 2007 | I76: System for microbial surface manipulation | J76: 89,750.00 | K76: Paket 13 | L76: Možnost meritev po ceniku IJS, možnost brezplačne uporabe v primeru izvajanja skupnih RR projektov | M76: Posibility of measurements according to the IJS price-list, possibility for free usage in case of joined projects | N76: Oprema je namenjena gojenju nenevarnih mikrobov za študij interakcije z nanomateriali s pomočjo magnetnih resonanc in mikrospektroskopij; še posebej za tiste namene, kjer mora biti kraj gojenja v neposredni bližini navedene eksperimentalne opreme. Oprema je specializirana za gojenje bakterij v tekočih gojiščih in zadošča osnovnim varnostnim standardom. | O76: The system is devoted for bacterial culture production to explore the microbes interacting with nanomaterials via magnetnic resonance methods and microspectroscopies; especially it is useful for those experiments where the growth place must be very close to the mentioned experimental equipment. Equipment is specialized for growing bacteria in liquid media and fulfill basic safety standards (class A). | P76: 45125,44927,44928,44926,44789,45172,45811,45126,45132,45354 XIII_213 | Q76: =Table4[[#This Row],[21]] -> 38.89 | R76: 8.63 | S76: 17.88 | T76: 12.38 | U76: =SUBTOTAL(9,Table4[[#This Row],[18]:[20]]) -> 38.89 | V76: 100 | W76: 100 | X76: https://www.ijs.si/ijsw/Znotraj%20hi%C5%A1e/Desno?action=AttachFile&do=get&target=ARIS_Evidenca_opreme_2024.xlsx | Y76: 2 | Z76: 1 | AA76: 1 | AB76: 11 | AC76: =Table4[[#This Row],[11]] -> Paket 13 | AD76: 0 | AE76: 5 | AF76: 100 | AG76: =Table4[[#This Row],[4]] -> P1-0099 | AH76: =Table4[[#This Row],[5]] -> Janez Štrancar | AI76: 50 | AJ76: V4-0522 | AK76: Janez Štrancar | AL76: 50
A77: 106 | B77: Institut "Jožef Stefan" | D77: P1-0040 | E77: Tomaž Mertelj | F77: 11241 | G77: Sistem za optično femtosekundno spektroskopijo z ultravisoko časovno ločljivostjo | H77: 2010 | I77: System for optical time resolved spectroscopy with ultrahigh time resolution | J77: 167,988.00 | K77: Paket 14 | L77: Elektronsko sporočilo na tomaz.mertelj@ijs.si ali klic na 477 33 88 za dogovor. | M77: E-mail to tomaz.mertelj@ijs.si or call to 477 33 88 to make further arangement. | N77: Časovno ločljiva optična spektroskopija kondenzirane snovi. | O77: Time resolved optical spectroscopy of condensed matter. | P77: 51442 XIV 201 | Q77: =Table4[[#This Row],[21]] -> 46.41 | R77: 16.15 | S77: 17.88 | T77: 12.38 | U77: =SUBTOTAL(9,Table4[[#This Row],[18]:[20]]) -> 46.41 | V77: 100 | W77: 100 | X77: https://www.ijs.si/ijsw/Znotraj%20hi%C5%A1e/Desno?action=AttachFile&do=get&target=ARIS_Evidenca_opreme_2024.xlsx | Y77: 3 | Z77: 1 | AA77: 4 | AB77: 30 | AC77: =Table4[[#This Row],[11]] -> Paket 14 | AD77: 0 | AE77: 5 | AF77: 100 | AG77: =Table4[[#This Row],[4]] -> P1-0040 | AH77: =Table4[[#This Row],[5]] -> Tomaž Mertelj | AI77: 100
A78: 106 | B78: Institut "Jožef Stefan" | D78: P1-0140 | E78: Boris Turk | F78: 7561 | G78: Sistem za proizvodnjo rekombinantnih proteinov | H78: 2008 | I78: System for production of recombinant proteins | J78: 263,938.00 | K78: Paket 13 | L78: Uporaba in cena cena po dogovoru, za uporabo kontaktirati dr. Dušana Turka (dusan.turk@ijs.si) | M78: Expression of recombinant proteins | N78: Sistem predstavlja infrastrukturno osnovo za pridobivanje rekombinantnih proteinov v bakteriji, kvasovki in insektnih celicah. | O78: The system represents an infrastructure platform for the production of recombinant proteins in bacteria, yeasts and insect cells. | P78: 47438,47452,47974,47431,47439,47536,746892,46584,46293,46972,47441,47440,47382,47922,47936, XIII_216 | Q78: =Table4[[#This Row],[21]] -> 55.64 | R78: 25.38 | S78: 17.88 | T78: 12.38 | U78: =SUBTOTAL(9,Table4[[#This Row],[18]:[20]]) -> 55.64 | V78: 100 | W78: 100 | X78: https://www.ijs.si/ijsw/Znotraj%20hi%C5%A1e/Desno?action=AttachFile&do=get&target=ARIS_Evidenca_opreme_2024.xlsx | Y78: 3 | Z78: 11 | AA78: 6 | AB78: 66 | AC78: =Table4[[#This Row],[11]] -> Paket 13 | AD78: 0 | AE78: 5 | AF78: 100 | AG78: =Table4[[#This Row],[4]] -> P1-0140 | AH78: =Table4[[#This Row],[5]] -> Boris Turk | AI78: 25 | AJ78: P1-0140 | AK78: Boris Turk | AL78: 25 | AM78: J1-0733 | AN78: Dušan Turk | AO78: 25 | AP78: J1-9359 | AQ78: Boris Turk | AR78: 25
A79: 106 | B79: Institut "Jožef Stefan" | D79: P1-0099 | E79: Vid Bobnar | F79: 15644 | G79: Sistem za visokotemperaturno dielektrično karakterizacijo | H79: 2007 | I79: System for high-temperature dielectric characterization | J79: 65,087.00 | K79: Paket 13 | L79: Možnost meritev po ceniku IJS, možnost brezplačne uporabe v primeru izvajanja skupnih RR projektov | M79: Posibility of measurements according to the IJS price-list, possibility for free usage in case of joined projects | N79: Oprema je namenjena za meritve dielektričnih lastnosti snovi pri visokih temperaturah, do 1000K | O79: The euipment is used for measurements of dielektric propertiers of matter at hight temperatures, up to 1000K. | P79: 45321,44934, XIII_201 | Q79: =Table4[[#This Row],[21]] -> 36.52 | R79: 6.26 | S79: 17.88 | T79: 12.38 | U79: =SUBTOTAL(9,Table4[[#This Row],[18]:[20]]) -> 36.52 | V79: 100 | W79: 100 | X79: https://www.ijs.si/ijsw/Znotraj%20hi%C5%A1e/Desno?action=AttachFile&do=get&target=ARIS_Evidenca_opreme_2024.xlsx | Y79: 4 | Z79: 2 | AA79: 3 | AB79: 44 | AC79: =Table4[[#This Row],[11]] -> Paket 13 | AD79: 0 | AE79: 5 | AF79: 100 | AG79: =Table4[[#This Row],[4]] -> P1-0099 | AH79: =Table4[[#This Row],[5]] -> Vid Bobnar | AI79: 33 | AJ79: J1-9534 | AK79: Vid Bobnar | AL79: 33 | AM79: J1-2015 | AN79: Zdravko Kutnjak | AO79: 33
A80: 106 | B80: Institut "Jožef Stefan" | D80: P1-0140 | E80: Boris Turk | F80: 7561 | G80: Sistem za vizualizacijo gelov in drugih vzorcev | H80: 2005 | I80: System for visualization of SDS-PAGE gels and other fluorescently labeled samples | J80: 163,744.12 | K80: Paket 12 | L80: Uporaba in cena po dogovoru, za uporabo kontaktirati Dr. Dejana Cagliča (dejan.caglic@ijs.si) | M80: Detection of storage phosphor, fluorescence and chemiluminescence on gels, blots and microarrays | N80: Sistem za vizualizacijo se uporablja za detekcijo radiaktivno označenih (3H, 14C, 125I, 32P, 33P, 35S) in z najrazličnejšimi fluorofori označenih vzorcev tako v poliakrilamidnih, agaroznih gelih, membranah in mikromrežah. S kombinacijo različnih laserjev lahko spremljamo prisotnosti enega, dveh ali več označevalcev hkrati. Sistem je do 20x bolj občutljiv od konkurenčnih sistemov in nekaj velikostnih redov občutljivejši od drugih tehnik za detekcijo. | P80: 44952 | Q80: =Table4[[#This Row],[21]] -> 46.00 | R80: 15.74 | S80: 17.88 | T80: 12.38 | U80: =SUBTOTAL(9,Table4[[#This Row],[18]:[20]]) -> 46.00 | V80: 100 | W80: 100 | X80: https://www.ijs.si/ijsw/Znotraj%20hi%C5%A1e/Desno?action=AttachFile&do=get&target=ARIS_Evidenca_opreme_2024.xlsx | Y80: 2 | Z80: 5 | AA80: 1 | AB80: 67 | AC80: =Table4[[#This Row],[11]] -> Paket 12 | AD80: 0 | AE80: 5 | AF80: 100 | AG80: =Table4[[#This Row],[4]] -> P1-0140 | AH80: =Table4[[#This Row],[5]] -> Boris Turk | AI80: 25 | AJ80: P1-0048 | AK80: Dušan Turk | AL80: 25 | AM80: P1-0207 | AN80: Igor Križaj | AO80: 25 | AP80: P4-0127 | AQ80: Janko Kos | AR80: 25
A81: 106 | B81: Institut "Jožef Stefan" | D81: P1-0135 | E81: Peter Križan | F81: 8725 | G81: Sledilni sistem za SuperBelle | H81: 2011 | I81: Tracking System for SuperBelle | J81: 905,347.69 | K81: Paket 14 | L81: Oprema je dostopna 24 ur na dan po predhodnem dogovoru z prof. dr. Petrom Križanom preko e-maila peter.krizan@ijs.si. Oprema se nahaja v institutu KEK v Tsukubi na Japonskem, dostop je omejen na člane mednarodne raziskovalne skupine Belle. | M81: The equipment is avaliable 24/7, contact person Prof. Dr. Peter Križan; e-mail: peter.krizan@ijs.si. Equipment is avaliable on the institut KEK,Tsukuba,Japan. Access is restricted to the members of the international Belle collaboration. | N81: Oprema je namenjena meritvi sledi nabitih delcev v magnetnem spektometru Belle. | O81: The equipment is dedicated to the measurement of particle tracks in the Belle spectrometer. | P81: 51962 XIV 204 | Q81: =Table4[[#This Row],[21]] -> 106.45 | R81: 87.05 | S81: 5.3 | T81: 14.1 | U81: =SUBTOTAL(9,Table4[[#This Row],[18]:[20]]) -> 106.45 | V81: 100 | W81: 100 | X81: https://www.ijs.si/ijsw/Znotraj%20hi%C5%A1e/Desno?action=AttachFile&do=get&target=ARIS_Evidenca_opreme_2024.xlsx | Y81: 4 | Z81: 2 | AB81: 41 | AC81: =Table4[[#This Row],[11]] -> Paket 14 | AD81: 0 | AE81: 5 | AF81: 100 | AG81: =Table4[[#This Row],[4]] -> P1-0135 | AH81: =Table4[[#This Row],[5]] -> Peter Križan | AI81: 100
A82: 106 | B82: Institut "Jožef Stefan" | D82: P1-0135 | E82: Marko Mikuž | F82: 4763 | G82: TIER-2 demonstrator | H82: 2003 | I82: TIER-2 Demonstrator | J82: 83,616.47 | K82: Paket 11 | L82: Računalniška oprema ni več v uporabi | M82: Obsolete | N82: Oprema vključena v slovensko Grid vozlišče SiGNET | O82: Part of Slovenian Grid node SiGNET | P82: 39887 | Q82: =Table4[[#This Row],[21]] -> 40.31 | R82: =J82*0.25/2080 -> 10.05 | S82: 17.88 | T82: 12.38 | U82: =SUBTOTAL(9,Table4[[#This Row],[18]:[20]]) -> 40.31 | V82: 100 | W82: 100 | X82: https://www.ijs.si/ijsw/Znotraj%20hi%C5%A1e/Desno?action=AttachFile&do=get&target=ARIS_Evidenca_opreme_2024.xlsx | Y82: 6 | Z82: 1 | AA82: 5 | AB82: 14 | AC82: =Table4[[#This Row],[11]] -> Paket 11 | AD82: 0 | AE82: 4 | AF82: 100 | AG82: =Table4[[#This Row],[4]] -> P1-0135 | AH82: =Table4[[#This Row],[5]] -> Marko Mikuž | AI82: 50 | AJ82: P1-0031 | AK82: Danilo Zavrtanik | AL82: 50
A83: 106 | B83: Institut "Jožef Stefan" | D83: P1-0135 | E83: Marko Mikuž | F83: 4763 | G83: TIER-2 grid vozlišče | H83: 2007 | I83: TIER-2 Grid Node | J83: 140,000.00 | K83: Paket 13 | L83: Dostop iz Grid platform LCG in Nordugrid za imetnike akreditiranih virtualnih organizacij | M83: Access for acredited Virtual Organizations of LCG and Nordugrid platforms | N83: Oprema vključena v slovensko Grid vozlišče SiGNET | O83: Part of Slovenian Grid node SiGNET | P83: 46964 XIV 215 | Q83: =Table4[[#This Row],[21]] -> 47.09 | R83: 16.83 | S83: 17.88 | T83: 12.38 | U83: =SUBTOTAL(9,Table4[[#This Row],[18]:[20]]) -> 47.09 | V83: 100 | W83: 100 | X83: https://www.ijs.si/ijsw/Znotraj%20hi%C5%A1e/Desno?action=AttachFile&do=get&target=ARIS_Evidenca_opreme_2024.xlsx | Y83: 6 | Z83: 1 | AA83: 5 | AB83: 14 | AC83: =Table4[[#This Row],[11]] -> Paket 13 | AD83: 0 | AE83: 4 | AF83: 100 | AG83: =Table4[[#This Row],[4]] -> P1-0135 | AH83: =Table4[[#This Row],[5]] -> Marko Mikuž | AI83: 50 | AJ83: P1-0031 | AK83: Danilo Zavrtanik | AL83: 50
A84: 106 | B84: Institut "Jožef Stefan" | D84: P1-0040 | E84: Dragan Mihailović | F84: 4540 | G84: Tipalni mikroskop in risalnik s spremljajočo opremo | H84: 2004 | I84: Atomic force microscope and lithography system with acompanying equipment | J84: 150,337.82 | K84: Paket 12 | L84: Oprema je dosegljiva po dogovoru s skrbnikom | M84: Equipment is available upon agreement | N84: Slikanje topografije površine in manipulacije nanostruktur ter sistem za risanje vezij s pomočjo elektronske litografije. | O84: Surface topography imaging and nanostructure manipulation. Electron litography for drawing circuits. | P84: 43591 | Q84: =Table4[[#This Row],[21]] -> 44.72 | R84: =J84*0.2/2080 -> 14.46 | S84: 17.88 | T84: 12.38 | U84: =SUBTOTAL(9,Table4[[#This Row],[18]:[20]]) -> 44.72 | V84: 100 | W84: 100 | X84: https://www.ijs.si/ijsw/Znotraj%20hi%C5%A1e/Desno?action=AttachFile&do=get&target=ARIS_Evidenca_opreme_2024.xlsx | Y84: 3 | Z84: 6 | AA84: 1 | AB84: 30 | AC84: =Table4[[#This Row],[11]] -> Paket 12 | AD84: 0 | AE84: 5 | AF84: 100 | AG84: =Table4[[#This Row],[4]] -> P1-0040 | AH84: =Table4[[#This Row],[5]] -> Dragan Mihailović | AI84: 50 | AJ84: P1-0192 | AK84: Martin Čopič | AL84: 50
A85: 106 | B85: Institut "Jožef Stefan" | D85: P2-0076 | E85: Leon Žlajpah | F85: 3332 | G85: Večnamenski raziskovalni robot | H85: 2002 | I85: Universal research robot | J85: 65,181.46 | K85: Paket 11 | L85: Robota zaradi kompleksnosti upravljanja in s tem povezane nevarnosti poškodb opreme ne posojamo. Po predhodnem dogovoru se lahko pri nas izvajajo eksperimenti, ki jih sami pripravimo. Delo se zaračunava po ceniku IJS. | M85: The robot can be hired for experimental work providing that the experiments are prepared and executed by our personnel. We charge according to the JSI personnel price list. | N85: Univerzalni robot, 7 stopenj, nosilnost 10 Kg, frekvenca trajektorije do 700 Hz, regulacija sile na vrhu robota, integriran na mobilni ploščadi. | O85: The robot has 7DOF and 10kg payload. The controller is open and enables sampling rate up to 700Hz. The user can control end-effector forces by using the force/torque sensor. The robot can be mounted on a mobile platform. | P85: 38926 | Q85: =Table4[[#This Row],[21]] -> 36.53 | R85: 6.27 | S85: 17.88 | T85: 12.38 | U85: =SUBTOTAL(9,Table4[[#This Row],[18]:[20]]) -> 36.53 | V85: 100 | W85: 100 | X85: https://www.ijs.si/ijsw/Znotraj%20hi%C5%A1e/Desno?action=AttachFile&do=get&target=ARIS_Evidenca_opreme_2024.xlsx | Y85: 6 | Z85: 3 | AA85: 1 | AB85: 46 | AC85: =Table4[[#This Row],[11]] -> Paket 11 | AD85: 0 | AE85: 5 | AF85: 100 | AG85: =Table4[[#This Row],[4]] -> P2-0076 | AH85: =Table4[[#This Row],[5]] -> Leon Žlajpah | AI85: 25 | AJ85: 6.OP PACO+ | AK85: IJS | AL85: 25 | AM85: L2-6562 | AN85: Aleš Ude | AO85: 25 | AP85: L2-6629 | AQ85: Leon Žlajpah | AR85: 25
A86: 106 | B86: Institut "Jožef Stefan" | D86: P2-0089 | E86: Darja Lisjak | F86: 15148 | G86: Vektorski mrežni analizator | H86: 2003 | I86: Vector network analyzer | J86: 130,782.84 | K86: Paket 11 | L86: Oprema je dostopna vsem raziskovalcem na osnovi znanstvene sodelave z RS 42. | M86: The VNA is available to all researchers in the frame of scientific collaboration with RS 42. | N86: Elektromagnetne meritve pri 0.04-40 GHz | O86: Electromagnetic measurements at 0.04-40 GHz | P86: 36637 | Q86: =Table4[[#This Row],[21]] -> 42.84 | R86: 12.58 | S86: 17.88 | T86: 12.38 | U86: =SUBTOTAL(9,Table4[[#This Row],[18]:[20]]) -> 42.84 | V86: 100 | W86: 100 | X86: https://www.ijs.si/ijsw/Znotraj%20hi%C5%A1e/Desno?action=AttachFile&do=get&target=ARIS_Evidenca_opreme_2024.xlsx | Y86: 4 | Z86: 2 | AA86: 2 | AB86: 4 | AC86: =Table4[[#This Row],[11]] -> Paket 11 | AD86: 0 | AE86: 5 | AF86: 100 | AG86: =Table4[[#This Row],[4]] -> P2-0089 | AH86: =Table4[[#This Row],[5]] -> Darja Lisjak | AI86: 25 | AJ86: L2-9151 | AK86: Darko Makovec | AL86: 25 | AM86: E!3451 | AN86: IJS | AO86: 25 | AP86: MATERA ERA-NET, 4302-31/2006/26 | AQ86: IJS | AR86: 25
A87: 106 | B87: Institut "Jožef Stefan" | D87: P1-0099 | E87: Boštjan Zalar | F87: 7527 | G87: Visokoločljivi 500 MHz spectrometer na magnetno resonanco za trdno snov | H87: 2008 | I87: High-resolution 500 MHz magnetic resonance spectrometer for solid state | J87: 667,668.00 | K87: Paket 13 | L87: Možnost meritev po ceniku IJS, možnost brezplačne uporabe v primeru izvajanja skupnih RR projektov | M87: Posibility of measurements according to the IJS price-list, possibility for free usage in case of joined projects | N87: Digitalni visokoločljivi spektrometer omogoča eno- in večddimenzionalne magnetoresonančne meritve lokalnih statičnih in dinamičnih lastnosti na molekularni in atomski skali v mehkih in trdnih snoveh, merjenje difuzijske konstante ter mikroslikanje z magnetno resonanco. | O87: Digital high-resolution spectrometer for one- and multidimensional magnetic resonance measurements of local static and dynamic properties on the molecular and atomic scale in soft and solid matter, measurements of diffusion coefficients as well as magnetic resonance microimaging. | P87: 50097 XIV 212 | Q87: =Table4[[#This Row],[21]] -> 94.46 | R87: 64.20 | S87: 17.88 | T87: 12.38 | U87: =SUBTOTAL(9,Table4[[#This Row],[18]:[20]]) -> 94.46 | V87: 100 | W87: 100 | X87: https://www.ijs.si/ijsw/Znotraj%20hi%C5%A1e/Desno?action=AttachFile&do=get&target=ARIS_Evidenca_opreme_2024.xlsx | Y87: 3 | Z87: 1 | AA87: 3 | AB87: 4 | AC87: =Table4[[#This Row],[11]] -> Paket 13 | AD87: 0 | AE87: 5 | AF87: 100 | AG87: =Table4[[#This Row],[4]] -> P1-0099 | AH87: =Table4[[#This Row],[5]] -> Boštjan Zalar | AI87: 100
A88: 106 | B88: Institut "Jožef Stefan" | D88: P2-0084 | E88: Goran Dražić | F88: 2556 | G88: Visokoločljivi metalografski in polarizacijski optični mikroskop z zajemom slike in dodatki | H88: 2007 | I88: High resolution polarised light optical micros | J88: 62,593.90 | K88: Paket 13 | L88: Opremo uporabljajo šolani operaterji, ki lahko analize izvajajo tudi za druge raziskovalne organizacije. Cena je odvisna od zahtevnosti analiz. | M88: Specific training is required to operate the equipment. Trained operaters can perform analyses for users from other research institutions. Price is dependent on a complexity of analyses. | N88: Optični mikroskop je namenjen opazovanju in slikanju vzorcev s pomočjo vidne | O88: Optical microscope is used for observation and imaging of samples using | P88: 46323 XIII_228 | Q88: =Table4[[#This Row],[21]] -> 36.28 | R88: 6.02 | S88: 17.88 | T88: 12.38 | U88: =SUBTOTAL(9,Table4[[#This Row],[18]:[20]]) -> 36.28 | V88: 100 | W88: 100 | X88: https://www.ijs.si/ijsw/Znotraj%20hi%C5%A1e/Desno?action=AttachFile&do=get&target=ARIS_Evidenca_opreme_2024.xlsx | Y88: 3 | Z88: 4 | AA88: 3 | AB88: 44 | AC88: =Table4[[#This Row],[11]] -> Paket 13 | AD88: 0 | AE88: 5 | AF88: 100 | AG88: =Table4[[#This Row],[4]] -> P2-0084 | AH88: =Table4[[#This Row],[5]] -> Goran Dražić | AI88: 25 | AJ88: J2-7432 | AK88: Aleksander Rečnik | AL88: 25 | AM88: L2-9175 | AN88: Slavko Bernik | AO88: 25 | AP88: J2-7133 | AQ88: Johannes Teun Van Elteren | AR88: 25
A89: 106 | B89: Institut "Jožef Stefan" | D89: P2-0084 | E89: Miran Čeh | F89: 3937 | G89: Vrstični elektronski mikroskop s FEG izvorom elektronov (FEG SEM) | H89: 2008 | I89: Scanning electron microscope with field emission gun (FEG) electron source (Jeol JEM-7600F) | J89: 676,014.00 | K89: Paket 13 | L89: Opremo uporabljajo šolani operaterji, ki lahko analize izvajajo tudi za druge raziskovalne organizacije. Cena je odvisna od zahtevnosti analiz. | M89: Specific training is required to operate the equipment. Trained operaters can perform analyses for users from other research institutions. Price is dependent on a complexity of analyses. | N89: Oprema je namenjena mikrostrukturni karakterizaciji materialov. Gre za vrhunsko aparaturo, ki omogoča slikovne ločljivosti nekaj nm, kvalitativno in kvantitativno kemijsko analizo z mikronskega področja z metodama EDXS in WDXS ter elektronsko litografijo. | O89: The FEG-SEM is state-of-art scanning electron microscope that enables complete microstructural characterization of materials: image resolution of few nm, qualitative and quantitative chemical analysis on micron scale and electron litography. | P89: 50259 50259 02 50259 04 50259 06 50259 08 50259 10 50259 12 50259 14 50259 16 50259 18 47615 01 XIII_220 | Q89: =Table4[[#This Row],[21]] -> 95.26 | R89: 65.00 | S89: 17.88 | T89: 12.38 | U89: =SUBTOTAL(9,Table4[[#This Row],[18]:[20]]) -> 95.26 | V89: 100 | W89: 100 | X89: https://www.ijs.si/ijsw/Znotraj%20hi%C5%A1e/Desno?action=AttachFile&do=get&target=ARIS_Evidenca_opreme_2024.xlsx | Y89: 3 | Z89: 5 | AA89: 1 | AB89: 44 | AC89: =Table4[[#This Row],[11]] -> Paket 13 | AD89: 0 | AE89: 5 | AF89: 100 | AG89: =Table4[[#This Row],[4]] -> P2-0084 | AH89: =Table4[[#This Row],[5]] -> Miran Čeh | AI89: 25 | AJ89: J2-6705 | AK89: Miran Čeh | AL89: 25 | AM89: Z2-6621 | AN89: Spomenka Kobe | AO89: 25 | AP89: J2-7133 | AQ89: Johannes Teun Van Elteren | AR89: 25
A90: 106 | B90: Institut "Jožef Stefan" | D90: P1-0125 | E90: Maja Remškar | F90: 7560 | G90: Vrstični tunelski mikroskop | H90: 2005 | I90: Scanning tunneling microscope | J90: 210,353.15 | K90: Paket 12 | L90: Dostop dovoljen po dogovoru, ni posebnih omejitev | M90: Service available upon request, no special limitation | N90: Fizika površin | O90: Surface physics | P90: 43890 | Q90: =Table4[[#This Row],[21]] -> 50.49 | R90: 20.23 | S90: 17.88 | T90: 12.38 | U90: =SUBTOTAL(9,Table4[[#This Row],[18]:[20]]) -> 50.49 | V90: 100 | W90: 100 | X90: https://www.ijs.si/ijsw/Znotraj%20hi%C5%A1e/Desno?action=AttachFile&do=get&target=ARIS_Evidenca_opreme_2024.xlsx | Y90: 3 | Z90: 5 | AA90: 1 | AB90: 44 | AC90: =Table4[[#This Row],[11]] -> Paket 12 | AD90: 0 | AE90: 5 | AF90: 100 | AG90: =Table4[[#This Row],[4]] -> P1-0125 | AH90: =Table4[[#This Row],[5]] -> Maja Remškar | AI90: 25 | AJ90: EU projekt Nanosafe | AK90: IJS | AL90: 25 | AM90: EU projekt Foremeost | AN90: IJS | AO90: 25 | AP90: EU projekt Impart | AQ90: IJS | AR90: 25
A91: 106 | B91: Institut "Jožef Stefan" | D91: P2-0082 | E91: Janez Kovač | F91: 15703 | G91: XPS spektrometer | H91: 2005 | I91: XPS spectrometer | J91: 395,000.00 | K91: Paket 9 | L91: Uporaba je možna za zunanje uporabnike. Kontaktirati dr. Janeza Kovača. | M91: Application for external users is possible, contact person dr. Janez Kovač | N91: Preiskava površin in tankih plasti z rentgensko fotoelektronsko spektroskopijo - XPS (ESCA). Spektrometer XPS omogoča kvantitativno analizo sestave površine in določitev valenčnega stanja, oziroma tipa kemijske vezi v plasti debeline 3 - 5 nm. Vzorci so lahko kovinski, oksidni, kompozitni, praškasti, keramični, polimerni... Možna je preiskava porazdelitve elementov po globini vzorca v smeri od površine proti notranjosti do globine okoli 200 nm. | O91: Characterization of surfaces and thin films with X-Ray photoelectron spectroscopy – XPS (ESCA). XPS spectrometer provides quantitative data on surface composition and type of chemical bonds of elements in the thin surface layer of thickness of 3 – 5 nm. Analysed samples can be metals, oxides, composites, powders, ceramics, polymers… By ion sputtering it is possible to analyse depth distribution of elements in subsurface region and in thin films up to depth of about 200 nm. | P91: 41908 | Q91: =Table4[[#This Row],[21]] -> 68.24 | R91: 37.98 | S91: 17.88 | T91: 12.38 | U91: =SUBTOTAL(9,Table4[[#This Row],[18]:[20]]) -> 68.24 | V91: 100 | W91: 100 | X91: https://www.ijs.si/ijsw/Znotraj%20hi%C5%A1e/Desno?action=AttachFile&do=get&target=ARIS_Evidenca_opreme_2024.xlsx | Y91: 3 | Z91: 1 | AA91: 6 | AB91: 44 | AC91: =Table4[[#This Row],[11]] -> Paket 9 | AD91: 40 | AE91: 5 | AF91: 100 | AG91: =Table4[[#This Row],[4]] -> P2-0082 | AH91: =Table4[[#This Row],[5]] -> Janez Kovač | AI91: 100
A92: 106 | B92: Institut "Jožef Stefan" | D92: P2-0087 | E92: Tomaž Kosmač | F92: 3477 | G92: Zeta meter | H92: 2002 | I92: ZETAPals, Zeta potential Analyser, Brookhaven Instruments Corporation | J92: 72,502.00 | K92: Paket 10 | L92: Oprema je na voljo na Institutu Jožef Stefan, na Odseku za inženirsko keramiko | M92: Measurement of zeta potential of particles in aqueous and non-aqueous media. | N92: Oprema je namenjena merjenju zeta potenciala delcev v vodnih in nevodnih medijih v ombočju pH vrednosti od 1-14. | O92: The equipment is designed for the measurement of the zeta potential of the particles in aqueous and non-aqueous media in the pH range from 1-14. | P92: 367626,37626 01 | Q92: =Table4[[#This Row],[21]] -> 37.23 | R92: 6.97 | S92: 17.88 | T92: 12.38 | U92: =SUBTOTAL(9,Table4[[#This Row],[18]:[20]]) -> 37.23 | V92: 100 | W92: 100 | X92: https://www.ijs.si/ijsw/Znotraj%20hi%C5%A1e/Desno?action=AttachFile&do=get&target=ARIS_Evidenca_opreme_2024.xlsx | Y92: 3 | Z92: 7 | AA92: 1 | AB92: 44 | AC92: =Table4[[#This Row],[11]] -> Paket 10 | AD92: 0 | AE92: 5 | AF92: 100 | AG92: =Table4[[#This Row],[4]] -> P2-0087 | AH92: =Table4[[#This Row],[5]] -> Tomaž Kosmač | AI92: 50 | AJ92: L2-9360 | AK92: Kristoffer Krnel | AL92: 50
A93: 106 | B93: Institut "Jožef Stefan" | D93: P2-0073 | E93: Luka Snoj | F93: 27819 | G93: Nadgradnja računalniške gruče po sistemu >>na ključ << | H93: 2015 | I93: Upgrade of the HPC computer cluster | J93: 123,789.21 | K93: P_XVI_160 | L93: Oprema je na voljo na reaktorskem centru Instituta Jožef Stefan, na Odseku za reaktorsko fiziko. Uporaba je možna za zunanje uporabnike. Kontaktirati dr. Luko Snoja. | M93: Cluster is available at reactor center of Jožef Stefan Institute. Application for external users is possible, contact person dr. Luka Snoj. | N93: Oprema je namenjena numerično intenzivnim računom. Oprema vsebuje računska vozlišča, vsako ima 2 procesorja, vsak s 14 jedri in 256GB spomina. | O93: Cluster is intended for numerical intensive calculations. Equipment consists of compute nodes, with 2 socket processors each, with 14 cores and 256GB of memory. | P93: 56866 02 56866 03 56866 04 56866 05 | Q93: =Table4[[#This Row],[21]] -> 0.00 | R93: 0 | S93: 0.01 Eur/cpu hour | T93: 0.01 Eur/cpu hour | U93: =SUBTOTAL(9,Table4[[#This Row],[18]:[20]]) -> 0.00 | V93: 100 | W93: 100 | X93: https://www.ijs.si/ijsw/Znotraj%20hi%C5%A1e/Desno?action=AttachFile&do=get&target=ARIS_Evidenca_opreme_2024.xlsx | Y93: 6 | Z93: 1 | AA93: 4 | AB93: 14 | AC93: =Table4[[#This Row],[11]] -> P_XVI_160 | AD93: 0 | AE93: 4 | AF93: 100 | AG93: =Table4[[#This Row],[4]] -> P2-0073 | AH93: =Table4[[#This Row],[5]] -> Luka Snoj | AI93: 10 | AJ93: PR-05877 (JET3) | AK93: Luka Snoj | AL93: 60 | AM93: J2-6752 | AN93: Luka Snoj | AO93: 10 | AP93: J2-6756 | AQ93: Igor Lengar | AR93: 10 | AS93: PR-06286 (CEA) | AT93: Gašper Žerovnik | AU93: 10
A94: 106 | B94: Institut "Jožef Stefan" | D94: P2-0026 | E94: Sandi Cimerman | F94: 3841 | G94: Nadgradnja računalniške gruče | H94: 2015 | I94: UPGRADE OF HIGH PERFORMANCE COMPUTE CLUSTER | J94: 142,656.55 | K94: P_XVI_005 | L94: Oprema je na voljo glede na proste kapacitete in ob predhodnem dogovoru preko naslova r4@ijs.si. | M94: The equipment is available for usage during free resource times and upon previous arrangement at r4@ijs.si. | N94: Računalniška gruča za izvajanje znanstvenih računskih simulacij. Hitra mrežna komunikacija med računskimi vozlišči omogoča dobro skaliranje večprocesnih izračunov. Oprema vsebuje 10 računskih vozlišč po 2 procesorja, vsak z 14 jedri in 256GB spomina. | O94: Compute cluster for fast scientific calculations. Fast interconnect enables a good calculation scalability of multinode multicore jobs. Equipment consists of 10 compute nodes with 2 socket processors. each with 14 cores and 256GB of memory. | P94: 56866 06 56866 07 | Q94: =Table4[[#This Row],[21]] -> 0.00 | R94: 0 | S94: 0.01 EUR/jedro/ura | T94: 0.01 EUR/jedro/ura | U94: =SUBTOTAL(9,Table4[[#This Row],[18]:[20]]) -> 0.00 | V94: 100 | W94: 100 | X94: https://www.ijs.si/ijsw/Znotraj%20hi%C5%A1e/Desno?action=AttachFile&do=get&target=ARIS_Evidenca_opreme_2024.xlsx | Y94: 6 | Z94: 1 | AA94: 4 | AB94: 14 | AC94: =Table4[[#This Row],[11]] -> P_XVI_005 | AD94: 0 | AE94: 4 | AF94: 100 | AG94: =Table4[[#This Row],[4]] -> P2-0026 | AH94: =Table4[[#This Row],[5]] -> Sandi Cimerman | AI94: 50 | AJ94: PR-06291 | AK94: Matjaž Leskovar | AL94: 25 | AM94: PR-06292 | AN94: Samir El Shawish | AO94: 25
A95: 106 | B95: Institut "Jožef Stefan" | D95: P2-0082 | E95: Miha Čekada | F95: 18271 | G95: Visokotemperaturni tribometer | H95: 2016 | I95: high-temperature tribometer | J95: 122,179.01 | K95: P_XVI_193 | L95: Po predhodnem dogovoru na naslov miha.cekada@ijs.si. Zaradi dolgotrajnih meritev je treba računati z zamikom enega tedna | M95: Advance contact to the address miha.cekada@ijs.si. Due to long-term measurements a waiting time of one week is anticipated. | N95: Instrument omogoča meritev koeficienta trenja pri visokih temperaturah (do 1000 °C). Geometrijske zahteve za vzorce so ozko zastavljene, za detajle se obrnite na kontaktni naslov. | O95: The instrument enables the measurement of friction coefficient at elavated temperatures (up to 1000 °C). The geometrical constrains for the samples are very narrow; for details please ask the contact address. | P95: 60700 | Q95: =Table4[[#This Row],[21]] -> 42.01 | R95: =J95*0.2/2080 -> 11.75 | S95: 17.88 | T95: 12.38 | U95: =SUBTOTAL(9,Table4[[#This Row],[18]:[20]]) -> 42.01 | V95: 100 | W95: 100 | X95: https://www.ijs.si/ijsw/Znotraj%20hi%C5%A1e/Desno?action=AttachFile&do=get&target=ARIS_Evidenca_opreme_2024.xlsx | Y95: 3 | Z95: 10 | AA95: 5 | AB95: 44 | AC95: =Table4[[#This Row],[11]] -> P_XVI_193 | AD95: 0 | AE95: 5 | AF95: 100 | AG95: =Table4[[#This Row],[4]] -> P2-0082 | AH95: =Table4[[#This Row],[5]] -> Miha Čekada | AI95: 50 | AJ95: PR-05012 | AK95: Aljaž Drnovšek | AL95: 50
A96: 106 | B96: Institut "Jožef Stefan" | D96: P2-0082 | E96: Miha Čekada | F96: 18271 | G96: Digitalni mikroskop | H96: 2016 | I96: digital microscope | J96: 56,211.50 | K96: P_XVI_106 | L96: Po predhodnem dogovoru na naslov miha.cekada@ijs.si. Brez posebnih časovnih omejitev | M96: Advance contact to the address miha.cekada@ijs.si. No specific time constrains. | N96: Namenjen je opazovanju in slikanju velikih vzorcev kompliciranih geometrij pri srednje veliki povečavi (35x-350x). Največja višina vzorca je 120 mm, največja masa pa 4 kg. | O96: The instruement is dedicated to observation and imaging of large samples with complicated geometry in medium range of magnification (35x-350x). Maximum sample height is 120 mm, maximum mass is 4 kg. | P96: 60492 | Q96: =Table4[[#This Row],[21]] -> 35.66 | R96: 5.40 | S96: 17.88 | T96: 12.38 | U96: =SUBTOTAL(9,Table4[[#This Row],[18]:[20]]) -> 35.66 | V96: 100 | W96: 100 | X96: https://www.ijs.si/ijsw/Znotraj%20hi%C5%A1e/Desno?action=AttachFile&do=get&target=ARIS_Evidenca_opreme_2024.xlsx | Y96: 3 | Z96: 4 | AA96: 4 | AB96: 44 | AC96: =Table4[[#This Row],[11]] -> P_XVI_106 | AD96: 0 | AE96: 5 | AF96: 100 | AG96: =Table4[[#This Row],[4]] -> P2-0082 | AH96: =Table4[[#This Row],[5]] -> Miha Čekada | AI96: 50 | AJ96: L2-5470 | AK96: Peter Panjan | AL96: 25 | AM96: L2-6770 | AN96: Miha Čekada | AO96: 25
A97: 106 | B97: Institut "Jožef Stefan" | D97: P1-0140 | E97: Miha Butinar | F97: 3776 | G97: Mikro CT sistem za in vivo pred-kemično slikanje laboratorijskih živali | H97: 2016 | I97: microCT scanner | J97: 284,507.45 | K97: P_XVI_096 | L97: po predhodnem dogovoru na naslov miha.butinar@ijs.si. Zaradi narave poskusov je potrebno računati na 1 teden zamika. | M97: Advance contact to the address miha.butinar@ijs.si. Due to the nature of the experiment, waiting time of one week is expected. | N97: Namenjen je računalniško vodenem tomografskemu 3D rentegenskem slikanju miši in podgan (CT slikanje). Omogoča longitudinalne študije zaradi nizkih energijskih vrednosti rentgenskih žarkov. | O97: The instrument enables computed tomographic 3D X-ray scanning of rodents (CT scan). Enables long term experiments, due to the low energy of the X-ray beam. | P97: 60664 | Q97: =Table4[[#This Row],[21]] -> 57.62 | R97: 27.36 | S97: 17.88 | T97: 12.38 | U97: =SUBTOTAL(9,Table4[[#This Row],[18]:[20]]) -> 57.62 | V97: 100 | W97: 100 | X97: https://www.ijs.si/ijsw/Znotraj%20hi%C5%A1e/Desno?action=AttachFile&do=get&target=ARIS_Evidenca_opreme_2024.xlsx | Y97: 4 | Z97: 5 | AA97: 4 | AB97: 10 | AC97: =Table4[[#This Row],[11]] -> P_XVI_096 | AD97: 0 | AE97: 5 | AF97: 100 | AG97: =Table4[[#This Row],[4]] -> P1-0140 | AH97: =Table4[[#This Row],[5]] -> Miha Butinar | AI97: 75 | AJ97: J1-6739 | AK97: Boris Turk | AL97: 25
A98: 106 | B98: Institut "Jožef Stefan" | D98: P2-0103 | E98: Igor Mozetič | F98: 2013 | G98: Oprema za analitiko tokov tekstov in podatkov za KT računalniški oblak | H98: 2016 | I98: Text analytics servers | J98: 134,836.21 | K98: P_XVI_026 | L98: Čas dostopa do opreme vsak delovni dan od 8:00 do 16:00 po predhodnem dogovoru s skrbnikom. Glede pogojev dostopa in razpoložljivosti kontaktirati skrbnika igor.mozetic@ijs.si | M98: The equipment is avaliable upon request every day from 8 am to 4 pm. For access conditions and availabilty contact igor.mozetic@ijs.si | N98: Supermicro strežnik | O98: Supermicro server | P98: 60632 60638 60616 60809 60443 60442 61553 60240 60239 60433 61843 61794 61915 62024 62072 62118 62161 62375 62374 62373 | Q98: =Table4[[#This Row],[21]] -> 46.47 | R98: =J98*0.25/2080 -> 16.21 | S98: 17.88 | T98: 12.38 | U98: =SUBTOTAL(9,Table4[[#This Row],[18]:[20]]) -> 46.47 | V98: 100 | W98: 100 | X98: https://www.ijs.si/ijsw/Znotraj%20hi%C5%A1e/Desno?action=AttachFile&do=get&target=ARIS_Evidenca_opreme_2024.xlsx | Y98: 6 | Z98: 2021-01-06 | AA98: 2005-01-06 | AB98: 25 | AC98: =Table4[[#This Row],[11]] -> P_XVI_026 | AD98: 0 | AE98: 4 | AF98: 100 | AG98: =Table4[[#This Row],[4]] -> P2-0103 | AH98: =Table4[[#This Row],[5]] -> Igor Mozetič
A99: 106 | B99: Institut "Jožef Stefan" | D99: P1-0040 | E99: Dragan D. Mihailović | F99: 4540 | G99: NADGRADNJA MBE SISTEMA | H99: 2016 | I99: UPGRADE MBE SISTEM | J99: 94,056.41 | K99: P_XVI_158 | L99: Po predhodnem dogovoru na naslov jure.strle@ijs.si. Zaradi daljših časov priprave sistema na rasti drugih kristalov je potrebno računati na večtedenske zamike. | M99: Advance contact to the address jure.strle@ijs.si. Due to long times of preparing the growth of different crystals waiting time of several weeks is expected. | N99: Namenjen je sintezi kristalnih tankih plasti dihalkogenidov prehodnih kovin. Velikost substratov je omejena na 9 mm x 9 mm, temperatura rasti doseže 800 °C. Na voljo so rasti s halkogenima elementoma S in Se ter prehodnimi kovinami Ta, Mo, Nb, W. | O99: The instrument is dedicated to the synthesis of transition metal dichalcogenides. Substrate size is limited to 9 mm x 9 mm, growth temperature reaches 800 °C. Available chalcogens are S and Se, available transition metals are Ta, Mo, Nb, W. | P99: 60865 62494 60235 60149 60480 | Q99: =Table4[[#This Row],[21]] -> 39.30 | R99: =J99*0.2/2080 -> 9.04 | S99: 17.88 | T99: 12.38 | U99: =SUBTOTAL(9,Table4[[#This Row],[18]:[20]]) -> 39.30 | V99: 100 | W99: 100 | X99: https://www.ijs.si/ijsw/Znotraj%20hi%C5%A1e/Desno?action=AttachFile&do=get&target=ARIS_Evidenca_opreme_2024.xlsx | AC99: =Table4[[#This Row],[11]] -> P_XVI_158 | AD99: 0 | AE99: 5 | AF99: =(AI99+AL99+AO99+AR99+AU99+AX99) -> 100 | AG99: =Table4[[#This Row],[4]] -> P1-0040 | AH99: =Table4[[#This Row],[5]] -> Dragan D. Mihailović | AI99: 100
A100: 106 | B100: Institut "Jožef Stefan" | D100: P1-0125 | E100: Janez Dolinšek | F100: 3939 | G100: MAGNETOMETER SQUID | H100: 2016 | I100: SQUID magnetometer | J100: 595,580.86 | K100: P_XVI_008 | L100: Kontaktna oseba je prof. dr. Janez Dolinšek (jani.dolinsek@ijs.si) na IJS. Meritve izvajajo raziskovalci, usposobljeni za rokovanje z MPMS3 magnetometrom (člani raziskovalne skupine prof. Dolinška). Zunanji uporabniki prinesejo vzorce materiala in lahko sodelujejo pri meritvah. | M100: Contact person is prof. dr. Janez Dolinšek (jani.dolinsek@ijs.si) at JSI. Measurements are preformed by members of the research group of prof. dr. Janez Dolinšek. External users need to bring samples of materials and can participate in the measerements. | N100: Osnova magnetometra je SQUID detektor, ki omogoča delovanje magnetometra v klasičnem načinu in kot VSM (»vibrating sample magnetometer«). Možno je meriti istosmerno (dc) magnetizacijo, izmenično (ac) magnetizacijo, magnetizacijske M(H) krivulje ter časovni razpad termoremanentne magnetizacije na dolgih časovnih skalah. | O100: The magnetometer is based on a SQUID detector, which enables operation of the device in a classical dc mode and as a VSM (vibrating sample magnetometer). The measurements include determination of the dc and ac magnetizations, the magnetization vs. the magnetic field M(H) curves and the time-decay of the remanent magnetization on long time scales. | P100: 60901 | Q100: =Table4[[#This Row],[21]] -> 128.27 | R100: 57.27 | S100: 53.73 | T100: 17.27 | U100: =SUBTOTAL(9,Table4[[#This Row],[18]:[20]]) -> 128.27 | V100: 100 | W100: 100 | X100: https://www.ijs.si/ijsw/Znotraj%20hi%C5%A1e/Desno?action=AttachFile&do=get&target=ARIS_Evidenca_opreme_2024.xlsx | Y100: 3 | Z100: 9 | AA100: 2 | AB100: 44 | AC100: =Table4[[#This Row],[11]] -> P_XVI_008 | AD100: / | AE100: 5 | AF100: 100 | AG100: =Table4[[#This Row],[4]] -> P1-0125 | AH100: =Table4[[#This Row],[5]] -> Janez Dolinšek | AI100: 75 | AJ100: J1-7032 | AK100: Andreja Jelen | AL100: 25
A101: 106 | B101: Institut "Jožef Stefan" | D101: P1-0135 | E101: Dejan Lesjak | F101: 3438 | G101: NADRGRADNJA DISTRIBUIRANEGA RAČUNSKEGA VOZLIŠČA SIGNET ZA HTC | H101: 2016 | I101: Upgrade of SiGNET grid center | J101: 155,049.95 | K101: P_XVI_169 | L101: Oprema je vključena v grid vozlišče SIGNET in dostopna preko infrastrukture EGI/NGI. Uporaba je omogočena z uporabo vmesne programske opreme gLite in ARC. | M101: The equipment is integrated into SiGNET grid site and provides the access through EGI/NGI infrastructure. The access is provided by using the gLite and ARC grid middleware. | N101: Oprema je namenjena izvajanju računskih nalog in shranjevanju podatkov pri mednarodnih eksperimentih ATLAS, Pierre Auger in Belle. Po dogovoru je na voljo tudi slovenskim raziskovalnim in akademskim ustanovam. | O101: The purpose of the equipment is to provide the computing and storage resources to international experiments ATLAS, Pierre Auger and Belle. The access is also provided to slovenian research and academic institutions. | P101: 61648 - 61627, 61692 - 61686 | Q101: =Table4[[#This Row],[21]] -> 48.90 | R101: =J101*0.25/2080 -> 18.64 | S101: 17.88 | T101: 12.38 | U101: =SUBTOTAL(9,Table4[[#This Row],[18]:[20]]) -> 48.90 | V101: 100 | W101: 100 | X101: https://www.ijs.si/ijsw/Znotraj%20hi%C5%A1e/Desno?action=AttachFile&do=get&target=ARIS_Evidenca_opreme_2024.xlsx | Y101: 6 | Z101: 6 | AA101: 6 | AB101: 14 | AC101: =Table4[[#This Row],[11]] -> P_XVI_169 | AD101: 0 | AE101: 4 | AF101: 100 | AG101: =Table4[[#This Row],[4]] -> P1-0135 | AH101: =Table4[[#This Row],[5]] -> Dejan Lesjak | AI101: 100
A102: 106 | B102: Institut "Jožef Stefan" | D102: P1-0099 | E102: Igor Muševič | F102: 9089 | G102: Dvofotonski 3D STED superločljivi mikroskop | H102: 2017 | I102: Two-photon STED microscope | J102: 834,346.88 | K102: P_XVI_170 | L102: Kontaktirati prof. J.Štrancarja, janez.strancar@ijs.si, predlagati kratek opis problema z utemeljitvijo, zakaj se potrebuje ločljivost med 30 in 200 nm pri fizioloških pogojih | M102: to contact prof. J.Štrancar, janez.strancar@ijs.si, propose short desription of planned work with argumentation why resolution is needed in 30 to 200 nm range under physiological conditions | N102: Superločljivo fluorescenčno slikanje pri fizioloških pogojih , 2-kanalno slikanje v x/y/z/t ter slikanje s spektralno ločljivostjo in ločljivostjo po življenjskem času fluorescence, eno ali dvofotonska ekscitacija | O102: Superresolution fluorescent imaging under physiological conditions, 2-channel imaging x/y/z/t as well as spectral-lifetime imaging, one or two-photon excitation | P102: 62061 | Q102: =Table4[[#This Row],[21]] -> 80.23 | R102: =J102*0.2/2080 -> 80.23 | S102: 28 EUR/h | T102: 36 EUR/h | U102: =SUBTOTAL(9,Table4[[#This Row],[18]:[20]]) -> 80.23 | V102: 100 | W102: 100 | X102: https://www.ijs.si/ijsw/Znotraj%20hi%C5%A1e/Desno?action=AttachFile&do=get&target=ARIS_Evidenca_opreme_2024.xlsx | AC102: =Table4[[#This Row],[11]] -> P_XVI_170 | AD102: 0 | AE102: 5 | AF102: 100 | AG102: =Table4[[#This Row],[4]] -> P1-0099 | AH102: =Table4[[#This Row],[5]] -> Igor Muševič | AI102: 5, 15, 15, 15, 15, 15, 15, 5
A103: 106 | B103: Institut "Jožef Stefan" | D103: P2-0026 | E103: Andrej Sušnik | F103: 3111 | G103: Eksperimentalna oprema za merilno tehniko PIV (Particle Image Velocimetry, v nadaljevanju: PIV tehnika, sistem PIV) | H103: 2017 | I103: Experimental device for PIV tehnique | J103: 173,296.16 | K103: P_XVI_187 | L103: Raziskovalna oprema je instalirana na namensko eksperimentalno napravo v laboratoriju odseka R4, kjer je tudi predvidena njena uporaba. Prošnja za celodnevni dostop in uporabo raziskovalne opreme, se pošlje na naslov blaz.mikuz@ijs.si. | M103: The equipment is installed in special test facility within the laboratory r4, where its use is foreseen. Request for all-day access to the said equipment shall be sent to blaz.mikuz@ijs.si. | N103: Raziskovalna oprema je namenjena predvsem meritvam v termohidravliki; torej merjenju hitrostnega polja na različnih skalah in v različnih sistemih ter spremljanju medfazne površine dvo-faznega toka. | O103: The main purpose of the equipment is focused on thermohydroulic and fluid flow measurements, i.e., on measurements of velocity field on different scales and in different systems and tracking of liquid-vapor interface. | P103: 62555 | Q103: =Table4[[#This Row],[21]] -> 46.92 | R103: 16.66 | S103: 17.88 | T103: 12.38 | U103: =SUBTOTAL(9,Table4[[#This Row],[18]:[20]]) -> 46.92 | V103: 100 | W103: 100 | X103: https://www.ijs.si/ijsw/Znotraj%20hi%C5%A1e/Desno?action=AttachFile&do=get&target=ARIS_Evidenca_opreme_2024.xlsx | Y103: 6 | Z103: 4 | AA103: 1 | AB103: 46 | AC103: =Table4[[#This Row],[11]] -> P_XVI_187 | AD103: 12.38 | AE103: 5 | AF103: 100 | AG103: =Table4[[#This Row],[4]] -> P2-0026 | AH103: =Table4[[#This Row],[5]] -> Andrej Sušnik | AI103: 100
A104: 106 | B104: Institut "Jožef Stefan" | D104: P1-0192 | E104: Boris Majaron | F104: 2885 | G104: Modularni spektrofluorometer s priborom | H104: 2017 | I104: Modular spectrofluorometer | J104: 152,286.88 | K104: P_XVI_023 | L104: Po dogovoru z odgovorno osebo (boris.majaron@ijs.si) | M104: Please contact responsible person (boris.majaron@ijs.si) | N104: Samostojni instrument modularne sestave, ki omogoča polarizacijsko razločene meritve transmisije in emisijskih spektrov v UV, vidnem in bližnjem IR spektralnem območju, fluorescenčnih časov (od nekaj mikrosekund navzgor) ter kvantnega izkoristka fluorescence. Primeren je za meritve na tekočih vzorcih (z možnostjo termostatiranja), filmih in praških. | O104: A stand-alone modular instrument, which allows polarization-resolved measurements of transmission and emission spectra in UV, visible, and near-IR spectral range, fluorescent times (longer than a few microseconds) and fluorescence quantum yields. Measurements can be performed in liquid samples (with a programmable thermostat), films, and powders. | P104: 62960 62575 62392 61954 62400 | Q104: =Table4[[#This Row],[21]] -> 51.42 | R104: 14.64 | S104: 17.88 | T104: 18.9 | U104: =SUBTOTAL(9,Table4[[#This Row],[18]:[20]]) -> 51.42 | V104: 100 | W104: 100 | X104: https://www.ijs.si/ijsw/Znotraj%20hi%C5%A1e/Desno?action=AttachFile&do=get&target=ARIS_Evidenca_opreme_2024.xlsx | Y104: 3 | Z104: 1 | AA104: 7 | AB104: 30 | AC104: =Table4[[#This Row],[11]] -> P_XVI_023 | AD104: 0 | AE104: 5 | AF104: 100 | AG104: =Table4[[#This Row],[4]] -> P1-0192 | AH104: =Table4[[#This Row],[5]] -> Boris Majaron
A105: 106 | B105: Institut "Jožef Stefan" | D105: P1-0125 | E105: Vid Bobnar | F105: 2935 | G105: Dvožarkovni laserski interferometer | H105: 2017 | I105: Double beam laser interferometer | J105: 254,512.59 | K105: P_XVI_061 | L105: Dostop dovoljen po dogovoru, ni posebnih omejitev. Kontakt: dr. Vid Bobnar, (01) 477-3172, vid.bobnar@ijs.si. | M105: Service available upon request, no special limitation. Contact: dr. Vid Bobnar, (01) 477-3172, vid.bobnar@ijs.si. | N105: Hkratne meritve elektromehanskih in električnih lastnosti tankih dielektričnih plasti in nanostrukturiranih materialov. Laserski žarek, ki zadane vzorec z zgornje in spodnje strani izloči vpliv upogibanja podlage. Sistem omogoča (i) hkratne meritve elektromehanskega raztezka in električne polarizacije pri velikem vzbujevalnem signalu, (ii) meritve piezoelektričnega koeficienta in dielektrične konstante pri majhnem vzbujevalnem signalu, tudi ob pritisnjeni dc napetosti in (iii) meritve utrujanja električnih in elektromehanskih lastnosti. | O105: Parallel measurements of electromechanical and electrical properties of thin dielectric films and nanostructured materials. The beam that hits the sample from the top and bottom side eliminates the influence of sample bending. The system enables (i) simultaneous electromechanical large signal strain and electrical polarization measurements, (ii) piezoelectric small signal coefficient and dielectric constant vs. bias voltage measurements, and (iii) measurements of the fatigue of electrical and electromechanical properties. | P105: 62378 | Q105: =Table4[[#This Row],[21]] -> 54.73 | R105: 24.47 | S105: 17.88 | T105: 12.38 | U105: =SUBTOTAL(9,Table4[[#This Row],[18]:[20]]) -> 54.73 | V105: 100 | W105: 100 | X105: https://www.ijs.si/ijsw/Znotraj%20hi%C5%A1e/Desno?action=AttachFile&do=get&target=ARIS_Evidenca_opreme_2024.xlsx | Y105: 4 | Z105: 4 | AA105: 3 | AB105: 44 | AC105: =Table4[[#This Row],[11]] -> P_XVI_061 | AD105: 46.2 | AE105: 5 | AF105: 100 | AG105: =Table4[[#This Row],[4]] -> P1-0125 | AH105: =Table4[[#This Row],[5]] -> Vid Bobnar | AI105: 100
A106: 106 | B106: Institut "Jožef Stefan" | D106: P2-0082 | E106: Matjaž Panjan | F106: 26463 | G106: Visokohitrostna kamera za opazovanje pojavov na mikrosekundnem nivoju | H106: 2018 | I106: High-speed camera for observing processes at the microsecond level | J106: 82,381.83 | K106: P_XVII_022 | L106: Po predhodnem dogovoru na naslov matjaz.panjan@ijs.si. | M106: Advance contact to the address matjaz.panjan@ijs.si. | N106: Visokohitrostna kamera je v splošnem namenjena opazovanju hitrih pojavov v različnih fizikalnih, kemijskih in bioloških procesih. | O106: High-speed camera can be used for observing fast changes in physical, chemical and biological processes. | P106: 64188 | Q106: =Table4[[#This Row],[21]] -> 38.18 | R106: 7.92 | S106: 17.88 | T106: 12.38 | U106: =SUBTOTAL(9,Table4[[#This Row],[18]:[20]]) -> 38.18 | V106: 100 | W106: 100 | X106: https://www.ijs.si/ijsw/Znotraj%20hi%C5%A1e/Desno?action=AttachFile&do=get&target=ARIS_Evidenca_opreme_2024.xlsx | Y106: 4 | Z106: 5 | AA106: 5 | AB106: 44 | AC106: =Table4[[#This Row],[11]] -> P_XVII_022 | AD106: 0 | AE106: 5 | AF106: 100 | AG106: =Table4[[#This Row],[4]] -> P2-0082 | AH106: =Table4[[#This Row],[5]] -> Matjaž Panjan | AI106: 75 | AJ106: PR-08349 | AK106: Nastja Mahne | AL106: 25
A107: 106 | B107: Institut "Jožef Stefan" | D107: P2-0103 | E107: Igor Mozetič | F107: 2013 | G107: Oprema za globoko učenje in aplikacije strojnega učenja za raziskovanje vesolja, analizo tekstovnih podatkov in semantičnih grafov | H107: 2018 | I107: Facilities for deep learning and applications of machine learning to space explorations, text mining and semantic graphs | J107: 43,274.99 | K107: P_XVII_071 | L107: Čas dostopa do opreme vsak delovni dan od 8:00 do 16:00 po predhodnem dogovoru s skrbnikom. Glede pogojev dostopa in razpoložljivosti kontaktirati skrbnika igor.mozetic@ijs.si | M107: The equipment is avaliable upon request every day from 8 am to 4 pm. For access conditions and availabilty contact igor.mozetic@ijs.si | N107: Supermicro strežnik | O107: Supermicro server | P107: 64111 | Q107: =Table4[[#This Row],[21]] -> 41.98 | R107: =J107*0.25/2080 -> 5.20 | S107: 17.88 | T107: 18.9 | U107: =SUBTOTAL(9,Table4[[#This Row],[18]:[20]]) -> 41.98 | V107: 100 | W107: 100 | X107: https://www.ijs.si/ijsw/Znotraj%20hi%C5%A1e/Desno?action=AttachFile&do=get&target=ARIS_Evidenca_opreme_2024.xlsx | Y107: 6 | Z107: 1 | AA107: 1 | AB107: 25 | AC107: =Table4[[#This Row],[11]] -> P_XVII_071 | AD107: 0 | AE107: 4 | AF107: 100 | AG107: =Table4[[#This Row],[4]] -> P2-0103 | AH107: =Table4[[#This Row],[5]] -> Igor Mozetič
A108: 106 | B108: Institut "Jožef Stefan" | D108: P1-0192 | E108: Irena Drevenšek Olenik | F108: 10373 | G108: Dopolnilni elementi za nadgradnjo sistema za pripravo in nanašanje Langmuir-Blodgett filmov | H108: 2018 2019 | I108: Components for the upgrade of the system for preparing and applying Lanmuir-Blodgett films | J108: 85,582.16 | K108: P_XVII_079 | L108: Po dogovoru z odgovorno osebo (irena.drevensek@ijs.si) | M108: Please contact responsible person (irena.drevensek@ijs.si) | N108: Sistem za pripravo in nanašanje Langmuir-Blodgett filmov je modularna naprava namenjena pripravi in proučevanju zelo tankih plasti različnih amfifilnih molekul na površini vode in drugih tekočih podfaz ter prenosu teh plasti iz površine tekočine na trdne substrate, kot so steklo, sljuda, silicij...Dopolnilni elementi obstoječemu sistemu omogočajo večjo variabilnost pri pripravi Langmuirjevih slojev in boljšo karakterizacijo. | O108: The Langmuir-Blodgett film preparation and application system is a modular device designed for the preparation and study of very thin layers of various amphiphilic molecules on the surface of water and other liquid sub-phases, and transferring these layers from the surface of the liquid onto solid substrates such as glass, mica, silicon ... Supplementary elements to the existing system allow for greater variability in the preparation of Langmuir layers and better characterization. | P108: 51536 64175 64340 64414 64413 64412 64411 64416 64415 64527 64526 64758 65029 64898 65027 | Q108: =Table4[[#This Row],[21]] -> 45.01 | R108: =J108*0.2/2080 -> 8.23 | S108: 17.88 | T108: 18.9 | U108: =SUBTOTAL(9,Table4[[#This Row],[18]:[20]]) -> 45.01 | V108: 100 | W108: 100 | X108: https://www.ijs.si/ijsw/Znotraj%20hi%C5%A1e/Desno?action=AttachFile&do=get&target=ARIS_Evidenca_opreme_2024.xlsx | Y108: 1 | Z108: 1 | AA108: 6 | AB108: 47 | AC108: =Table4[[#This Row],[11]] -> P_XVII_079 | AD108: 0 | AE108: 5 | AF108: 100 | AG108: =Table4[[#This Row],[4]] -> P1-0192 | AH108: =Table4[[#This Row],[5]] -> Irena Drevenšek Olenik
A109: 106 | B109: Institut "Jožef Stefan" | D109: P2-0209 | E109: Matjaž Gams | F109: 1896 | G109: AI ASIC sistem za raziskave v umetni inteligenci | H109: 2019 | I109: AI ASIC - artificial intelligence research system- Artificial Intelligence Application- Specific Integrated Circuit) | J109: 32,963.63 | K109: P_XVII_115 | L109: Oprema je dostopna po predhodnem dogovoru. Kontakt preko e-pošte na naslovu matjaz.gams@ijs.si | M109: Equipment is available on demand. Please contact matjaz.gams@ijs.si | N109: Sistem z namenskim pospeševalnikom za signifikantno pohitritev izvajanja računskih operacij. | O109: A system with a dedicated accelerator to significantly speed up the execution of computational operations. | P109: 65004 01 65008 01 65009 01 65010 01 65011 01 65007 01 65006 01 65005 01 65013 01 65014 01 65015 01 65077 02 01 65012 01 | Q109: =Table4[[#This Row],[21]] -> 34.22 | R109: =J109*0.25/2080 -> 3.96 | S109: 17.88 | T109: 12.38 | U109: =SUBTOTAL(9,Table4[[#This Row],[18]:[20]]) -> 34.22 | V109: 100 | W109: 100 | X109: https://www.ijs.si/ijsw/Znotraj%20hi%C5%A1e/Desno?action=AttachFile&do=get&target=ARIS_Evidenca_opreme_2024.xlsx | Y109: 6 | Z109: 1 | AA109: 4 | AB109: 14 | AC109: =Table4[[#This Row],[11]] -> P_XVII_115 | AD109: 0 | AE109: 4 | AF109: 100 | AG109: =Table4[[#This Row],[4]] -> P2-0209 | AH109: =Table4[[#This Row],[5]] -> Matjaž Gams | AI109: 100
A110: 106 | B110: Institut "Jožef Stefan" | D110: P2-0082 | E110: Miha Čekada | F110: 18271 | G110: Masni spektrometer z možnostjo merjenja energijske porazdelitve ionov | H110: 2019 | I110: Mass spectrometer with the ability to measure the energy distribution of the ions | J110: 121,274.62 | K110: P_XVII_151 | L110: Po predhodnem dogovoru na naslov matjaz.panjan@ijs.si. | M110: Advance contact to the address matjaz.panjan@ijs.si. | N110: Masni spektrometer je namenjen študiju masne in energijske porazdelitve ionov v nizkotlačnih plazmah (do tlaka 10 Pa). | O110: Mass spectrometer is used for measurements of mass and energy distribution of ions in low-pressure plasmas (up to 10 Pa). | P110: 64430 | Q110: =Table4[[#This Row],[21]] -> 41.92 | R110: =J110*0.2/2080 -> 11.66 | S110: 17.88 | T110: 12.38 | U110: =SUBTOTAL(9,Table4[[#This Row],[18]:[20]]) -> 41.92 | V110: 100 | W110: 100 | X110: https://www.ijs.si/ijsw/Znotraj%20hi%C5%A1e/Desno?action=AttachFile&do=get&target=ARIS_Evidenca_opreme_2024.xlsx | Y110: 3 | Z110: 2 | AA110: 3 | AB110: 44 | AC110: =Table4[[#This Row],[11]] -> P_XVII_151 | AD110: 0 | AE110: 5 | AF110: 100 | AG110: =Table4[[#This Row],[4]] -> P2-0082 | AH110: =Table4[[#This Row],[5]] -> Miha Čekada | AI110: 75 | AJ110: PR-08349 | AK110: Nastja Mahne | AL110: 25
A111: 106 | B111: Institut "Jožef Stefan" | D111: P2-0026 | E111: Leon Cizelj | F111: 7025 | G111: Visokozmogljiva računska gruča | H111: 2019 | I111: High Performance Compute Cluster | J111: 365,948.95 | K111: P_XVII_008 | L111: Oprema je na voljo glede na proste kapacitete in ob predhodnem dogovoru preko naslova r4@ijs.si. Več informacij na voljo na http://r4.ijs.si/Gruce | M111: The equipment is available for usage during free resource times and upon previous arrangement at r4@ijs.si. More information available on http://r4.ijs.si/Gruce | N111: Računalniška gruča za izvajanje znanstvenih računskih simulacij. Hitra mrežna komunikacija med računskimi vozlišči omogoča dobro skaliranje večprocesnih izračunov. Oprema vsebuje 22 računskih vozlišč po 2 procesorja, vsak z 20 jedri in 192 GB spomina. | O111: Compute cluster for fast scientific calculations. Fast interconnect enables a good calculation scalability of multinode multicore jobs. Equipment consists of 22 compute nodes with 2 socket processors. each with 20 cores and 192 GB of memory. | P111: 65270 65616 | Q111: =Table4[[#This Row],[21]] -> 35.19 | R111: 35.19 | S111: 0.01 EUR/jedro/ura | T111: 0.01 EUR/jedro/ura | U111: =SUBTOTAL(9,Table4[[#This Row],[18]:[20]]) -> 35.19 | V111: 100 | W111: 100 | X111: https://www.ijs.si/ijsw/Znotraj%20hi%C5%A1e/Desno?action=AttachFile&do=get&target=ARIS_Evidenca_opreme_2024.xlsx | Y111: 6 | Z111: 1 | AA111: 4 | AB111: 14 | AC111: =Table4[[#This Row],[11]] -> P_XVII_008 | AD111: 0 | AE111: 5 | AF111: 100 | AG111: =Table4[[#This Row],[4]] -> P2-0026 | AH111: =Table4[[#This Row],[5]] -> Leon Cizelj | AI111: 80 | AJ111: PR-07882 | AK111: Leon Cizelj | AL111: 20
A112: 106 | B112: Institut "Jožef Stefan" | D112: P2-0073 | E112: Luka Snoj | F112: 27819 | G112: računalniška gruča po sistemu »na ključ« | H112: 2019 | I112: High Performance Compute Cluster Mangrt | J112: 365,948.95 | K112: P_XVII_029 | L112: Po predhodnem dogovoru na naslov bojan.zefran@ijs.si ali sandi.cimerman@ijs.si | M112: Advance contact to address bojan.zefran@ijs.si or sandi.cimerman@ijs.si | N112: Računska gruča z Linux operacijskim sistemom vsebuje 15 računskih vozlišč, ki vsako vsebuje dva procesorja Intel Xeon in vsaj 192 GB highperformance ECC registered DDR4 DIMM pomnilnika, eno vozlišče pa vsaj 768 TB highperformance ECC registered DDR4 DIMM pomnilnika. Zmogljivi procesorji in velike količine delovnega pomnilnika omogočajo računsko zahtevne izračune, obsežne simulacije z visoko ločljivostjo in obdelavo velike količine podatkov, kakršne izvajamo za potrebe obstoječih in prihodnjih projektov. | O112: Cluster with Linux operational system consists of 15 computer nodes with two Intel Xeon processors and at least 192 GB high performance ECC registered DDR4 DIMM memory and one node with at least 768 TB high performance ECC registered DDR4 DIMM memory. High performance processors and high working memory capacity enable the performance of computational difficult calculations, extensive simulations with high resolution and large data processing, which are made for carrying out the ongoing and future project tasks. | P112: 65270 65616 | Q112: =Table4[[#This Row],[21]] -> 35.19 | R112: 35.19 | S112: 0.01 EUR/jedro/ura | T112: 0.01 EUR/jedro/ura | U112: =SUBTOTAL(9,Table4[[#This Row],[18]:[20]]) -> 35.19 | V112: 100 | W112: 100 | X112: https://www.ijs.si/ijsw/Znotraj%20hi%C5%A1e/Desno?action=AttachFile&do=get&target=ARIS_Evidenca_opreme_2024.xlsx | Y112: 6 | Z112: 1 | AA112: 4 | AB112: 14 | AC112: =Table4[[#This Row],[11]] -> P_XVII_029 | AD112: 0 | AE112: 5 | AF112: 100 | AG112: =Table4[[#This Row],[4]] -> P2-0073 | AH112: =Table4[[#This Row],[5]] -> Luka Snoj | AI112: 10 | AJ112: PR-05877 (JET3) | AK112: Luka Snoj, raziskovalci odseka F-8 | AL112: 60 | AM112: PR-08098 | AN112: Aljaž Čufar | AO112: 10 | AP112: L2-8163 | AQ112: Raziskovalci odseka F-8 | AR112: 10 | AS112: NC-0001 | AT112: Luka Snoj, raziskovalci odseka F-8 | AU112: 5 | AV112: NC-0005 | AW112: Gašper Žerovnik | AX112: 5
A113: 106 | B113: Institut "Jožef Stefan" | D113: P1-0135 | E113: Rok Pestotnik | F113: 16354 | G113: Hitri 4 kanalni osciloskop s hitrostjo vzorcenja 80Gs/s | H113: 2019 | I113: 4 channel high bandwidth 80 Gs/s osciloscope Teledyne LeCroy LABMASTER 10-36ZIA | J113: 140,324.81 | K113: P_XVII_035 | L113: Oprema je na voljo glede na proste kapacitete in ob predhodnem dogovoru z odgovorno osebo rok.pestotnik@ijs.si. | M113: The equipment is available for usage during free resource times and upon previous arrangement at rok.pestotnik@ijs.si. | N113: Osciloskop za meritev hitrih elektronskih signalov. | O113: Osilloscope for measurement of fast electronic signals | P113: 65412 | Q113: =Table4[[#This Row],[21]] -> 45.67 | R113: 13.49 | S113: 17.88 | T113: 14.3 | U113: =SUBTOTAL(9,Table4[[#This Row],[18]:[20]]) -> 45.67 | V113: 100 | W113: 100 | X113: https://www.ijs.si/ijsw/Znotraj%20hi%C5%A1e/Desno?action=AttachFile&do=get&target=ARIS_Evidenca_opreme_2024.xlsx | Y113: 4 | Z113: 2 | AA113: 4 | AB113: 38 | AC113: =Table4[[#This Row],[11]] -> P_XVII_035 | AD113: 47.47 | AE113: 5 | AF113: 100 | AG113: =Table4[[#This Row],[4]] -> P1-0135 | AH113: =Table4[[#This Row],[5]] -> Rok Pestotnik | AI113: 100
A114: 106 | B114: Institut "Jožef Stefan" | D114: P2-0091 | E114: Marjeta Maček Kržmanc | F114: 13311 | G114: Visokotlačni reactor (avtoklav) | H114: 2019 | I114: High pressure reactor vessel | J114: 27,848.21 | K114: P_XVII_158 | L114: Visokotlačni reaktor (avtoklav) je nameščen na odseku K-9 (Institut Jožef Stefan). Morebitna uporaba po dogovoru z odgovorno osebo (marjeta.macek@ijs.si) | M114: High pressure reactor vessel is positioned at K-9 (Jožef Stefan Institute). An eventual usage can be agreed with the responsible person (marjeta.macek@ijs.si) | N114: Visokotlačni reaktor (avtoklav) je namenjen za sintezo anorganskih nanodelcev pretežno v vodnem mediju pri povišani temperaturi (s teflonskim (PTFE) vložkom-do 230°C-v jekleni (SS T316 TI) posodi-do 300°C) in tlaku do največ 200 barov. PTFE zaščita pokrova, mešala in PTFE vložek omogočajo sintezo v zelo alkalnem mediju. | O114: High pressure reactor vessel is meant for the synthesis of inorganic (nano)particles in aqueous media at high temperature (with PTFE insert-up to 230°C, with stainless steel (SS 316 Ti) reactor vessel up to 300°C) and pressure up to 200 bar. PTFE protection of the cover, PTFE stirrer and PTFE insert enable performing reactions under highly alkaline conditions. | P114: 65574 65724 | Q114: =Table4[[#This Row],[21]] -> 43.06 | R114: 2.68 | S114: 17.88 | T114: 22.5 | U114: =SUBTOTAL(9,Table4[[#This Row],[18]:[20]]) -> 43.06 | V114: 100 | W114: 100 | X114: https://www.ijs.si/ijsw/Znotraj%20hi%C5%A1e/Desno?action=AttachFile&do=get&target=ARIS_Evidenca_opreme_2024.xlsx | Y114: 1 | Z114: 7 | AA114: 1 | AB114: 44 | AC114: =Table4[[#This Row],[11]] -> P_XVII_158 | AD114: 0 | AE114: 5 | AF114: 100 | AG114: =Table4[[#This Row],[4]] -> P2-0091 | AH114: =Table4[[#This Row],[5]] -> Marjeta Maček Kržmanc | AI114: 100
A115: 106 | B115: Institut "Jožef Stefan" | D115: P2-0082 | E115: Miran Mozetič | F115: 10429 | G115: Naprava za merjenje površinske energije na mikroskopskem nivoju | H115: 2019 | I115: Device for measuring surface tension on microscopic scale | J115: 83,271.60 | K115: P_XVII_176 | L115: Oprema je dostopna po predhodnem dogovoru. Kontakt preko e-pošte na naslovu alenka.vesel@ijs.si | M115: Equipment is available on demand. Please contact alenka.vesel@ijs.si | N115: Naprava je namenjena predvsem merjenju omočljivosti trdnih snovi | O115: The device is particularly useful for measuring wettability of solid materials | P115: 65071 | Q115: =Table4[[#This Row],[21]] -> 32.14 | R115: 8.01 | S115: 2.15 | T115: 21.98 | U115: =SUBTOTAL(9,Table4[[#This Row],[18]:[20]]) -> 32.14 | V115: 100 | W115: 100 | X115: https://www.ijs.si/ijsw/Znotraj%20hi%C5%A1e/Desno?action=AttachFile&do=get&target=ARIS_Evidenca_opreme_2024.xlsx | Y115: 3 | Z115: 7 | AB115: 44 | AC115: =Table4[[#This Row],[11]] -> P_XVII_176 | AD115: 0 | AE115: 5 | AF115: 100 | AG115: =Table4[[#This Row],[4]] -> P2-0082 | AH115: =Table4[[#This Row],[5]] -> Miran Mozetič | AI115: 75 | AJ115: L2-8179 | AK115: pof. dr. Miran Mozetič | AL115: 25
A116: 106 | B116: Institut "Jožef Stefan" | D116: P1-0135 | E116: Andrej Filipčič | F116: 7525 | G116: Nadgradnja distribuiranega računskega vozlišča SiGNET Tier-2. | H116: 2019 | I116: Upgrade of distributed computing center SiGNET Tier-2 | J116: 151,040.29 | K116: P_XVII_154 | L116: Oprema je vključena v grid vozlišče SIGNET in dostopna preko infrastrukture SLINGI. Uporaba je omogočena z uporabo vmesne programske opreme gLite in ARC. | M116: The equipment is integrated into SiGNET grid site and provides the access through SLING infrastructure. The access is provided by using the gLite and ARC grid middleware. | N116: Oprema je namenjena izvajanju računskih nalog in shranjevanju podatkov pri mednarodnih eksperimentih ATLAS, Pierre Auger in Belle II. Po dogovoru je na voljo tudi slovenskim raziskovalnim in akademskim ustanovam. | O116: The purpose of the equipment is to provide the computing and storage resources to international experiments ATLAS, Pierre Auger and Belle II. The access is also provided to slovenian research and academic institutions. | P116: 65553 65552 65554 65551 65550 65549 65548 65547 | Q116: =Table4[[#This Row],[21]] -> 49.84 | R116: =J116*0.25/2080 -> 18.15 | S116: 19.31 | T116: 12.38 | U116: =SUBTOTAL(9,Table4[[#This Row],[18]:[20]]) -> 49.84 | V116: 100 | W116: 100 | X116: https://www.ijs.si/ijsw/Znotraj%20hi%C5%A1e/Desno?action=AttachFile&do=get&target=ARIS_Evidenca_opreme_2024.xlsx | Y116: 6 | Z116: 6 | AA116: 6 | AB116: 30 | AC116: =Table4[[#This Row],[11]] -> P_XVII_154 | AD116: 0 | AE116: 4 | AF116: 100 | AG116: =Table4[[#This Row],[4]] -> P1-0135 | AH116: =Table4[[#This Row],[5]] -> Andrej Filipčič | AI116: 100
A117: 106 | B117: Institut "Jožef Stefan" | D117: P1-0040 | E117: Dragan D. Mihailović | F117: 4540 | G117: Linija za mikro in nanolitografijo z opremo za čisto sobo in analitično opremo | H117: 2020 | I117: Clean room for micro and nanolithography technologies and analytical equipment | J117: 387,869.06 | K117: P_XVII_014 | L117: Oprema je dostopa po predhodnem dogovoru.Za uporabo zahtevnejše opreme je omogočeno šolanje. Cena storitev je odvisna od zahtevnosti meritev. Kontakt damjan.svetin@ijs.si | M117: Equipment is available on demand. Training can be arranged. The price of services depends on complexity of the measurements. Contact damjan.svetin@ijs.si | N117: Raziskovalna oprema je namenjena postavitvi čiste izdelavne linije in meritvenega sistema za mikro in nanolitografijo z izboljšanjem končne ločljivosti nanolitografije. Gre za sistem suhih komor, evaporator in sistema za vzdrževanje pogojev čiste sobe. | O117: The research equipment for clean production line and measurement system for micro and nanolithography by improving the final resolution of nanolithography. It is a system of dry-box chambers, an evaporator and a system for maintaining the conditions of a clean room. | P117: 65037, 65502, 65928, 65939, 66657, 67389, 67736, 69104 | Q117: =Table4[[#This Row],[21]] -> 67.20 | R117: 36.94 | S117: 17.88 | T117: 12.38 | U117: =SUBTOTAL(9,Table4[[#This Row],[18]:[20]]) -> 67.20 | V117: 100 | W117: 80 | X117: https://www.ijs.si/ijsw/Znotraj%20hi%C5%A1e/Desno?action=AttachFile&do=get&target=ARIS_Evidenca_opreme_2024.xlsx | Y117: 1 | Z117: 2 | AA117: 1 | AB117: 47 | AC117: =Table4[[#This Row],[11]] -> P_XVII_014 | AD117: 0 | AE117: 5 | AF117: 100 | AG117: =Table4[[#This Row],[4]] -> P1-0040 | AH117: =Table4[[#This Row],[5]] -> Dragan D. Mihailović | AI117: 100
A118: 106 | B118: Institut "Jožef Stefan" | D118: P2-0084 | E118: Spomenka Kobe | F118: 1515 | G118: XJET, Izrael 3D tiskalnik za kovinske materiale in keramiko | H118: 2020 | I118: XJET, Israel 3D Printer for metalic and ceramic materials | J118: 146,081.33 | K118: Paket 17 | L118: Do opreme dostopajo vsi sodelavci, ki to metodo uporabljajo pri raziskavah kovinskih, intermetalnih in keramičnih materialov. Oprema je polno zasedena. | M118: 3D Printer is used by all researchers who need this equipment in their research tematics: metalic, intermetallic and ceramic materials. The equipment is fully occupied. | N118: 3D tiskalnik se uporablja za izvajanje ARRS projektov. V prijavi je projekt za EIT Manufacturing, ki temelji na 3D tiskanju. | O118: The 3D Printer is used for execution of research in the frame of ARRS projects. We are applying a new project in EIT Manufacturing, the project is based solely on 3D printing. | P118: 65499 | Q118: =Table4[[#This Row],[21]] -> 61.99 | R118: 13.96 | S118: 25.52 | T118: 22.51 | U118: =SUBTOTAL(9,Table4[[#This Row],[18]:[20]]) -> 61.99 | V118: 100 | W118: 80 | X118: https://www.ijs.si/ijsw/Znotraj%20hi%C5%A1e/Desno?action=AttachFile&do=get&target=ARIS_Evidenca_opreme_2024.xlsx | AC118: =Table4[[#This Row],[11]] -> Paket 17 | AD118: 0 | AE118: 5 | AF118: 100 | AG118: =Table4[[#This Row],[4]] -> P2-0084 | AH118: =Table4[[#This Row],[5]] -> Spomenka Kobe | AJ118: P2-0084 | AK118: Kobe | AM118: P2-0087 | AN118: Kocjan | AP118: P2-0405-5 | AQ118: Kocjan
A119: 106 | B119: Institut "Jožef Stefan" | D119: P1-0125 | E119: Denis Arčon | F119: 14080 | G119: NV magnetometer za NMR spektroskopijo nanometrskih vzorcev in za površinsko določanje magnetnih polj z nanometrsko ločljivostjo | H119: 2020 | I119: NV magnetometer for NMR spectroscopy of nanoscopic samples | J119: 112,769.76 | K119: P_XVII_189 | L119: Oprema je dostopna po predhodnem dogovoru na e-mail arcon.denis@ijs.si | M119: The equipment is available upon request at arcon.denis@ijs.si | N119: oprema je namenjena merjenju izredno šibkih magnetnih polj na površini vzorcev | O119: The purpose of the equipment is to measure extremely weak magnetic fields at the surface of samples | P119: 66003, 66049, 66066, 66067, 66103, 66269, 66547, 66655, 66656, 66963, 66964, 68613, 68622, 68625, 68626, 68743, 68744, 68742 | Q119: =Table4[[#This Row],[21]] -> 15.37 | R119: 10.67 | S119: 4.7 | T119: 36 EUR/h | U119: =SUBTOTAL(9,Table4[[#This Row],[18]:[20]]) -> 15.37 | V119: 100 | W119: 80 | X119: https://www.ijs.si/ijsw/Znotraj%20hi%C5%A1e/Desno?action=AttachFile&do=get&target=ARIS_Evidenca_opreme_2024.xlsx | Y119: 3 | Z119: 1 | AA119: 3 | AC119: =Table4[[#This Row],[11]] -> P_XVII_189 | AD119: 0 | AE119: 5 | AF119: 100 | AG119: =Table4[[#This Row],[4]] -> P1-0125 | AH119: =Table4[[#This Row],[5]] -> Denis Arčon | AI119: 100
A120: 106 | B120: Institut "Jožef Stefan" | D120: P1-0044 | E120: Rok Žitko | F120: 23567 | G120: Računalniška oprema za opravljanje numeričnih izračunov na področju teoretične fizike | H120: 2020 | I120: Compter equipment for calculations in the field of theoretical physics | J120: 171,441.48 | K120: P_XVII_030 | L120: Uporaba je možna preko vmesne programske opreme ARC po predhodnem dogovru (rok.zitko@ijs.si). | M120: Access is possible using ARC middleware upon demand (rok.zitko@ijs.si). | N120: Izvajanje računskih nalog na področjih fizike trdne snovi, fizike osnovnih delcev in biofizke. | O120: Computing in the fields of solid state physics, particle physics and biophysics. | P120: 66166, 66243, 66244, 66245, 66246, 66247, 66248, 67395, 67396, 67397, 67398 | Q120: =Table4[[#This Row],[21]] -> 45.42 | R120: 20.42 | S120: 15 | T120: 10 | U120: =SUBTOTAL(9,Table4[[#This Row],[18]:[20]]) -> 45.42 | V120: 100 | W120: 100 | X120: https://www.ijs.si/ijsw/Znotraj%20hi%C5%A1e/Desno?action=AttachFile&do=get&target=ARIS_Evidenca_opreme_2024.xlsx | Y120: 6 | Z120: 1 | AA120: 4 | AB120: 14 | AC120: =Table4[[#This Row],[11]] -> P_XVII_030 | AD120: 0 | AE120: 4 | AF120: 100 | AG120: =Table4[[#This Row],[4]] -> P1-0044 | AH120: =Table4[[#This Row],[5]] -> Rok Žitko | AI120: 33.3 | AJ120: P1-0035 | AK120: Jernej F. Kamenik | AL120: 33.3 | AM120: P1-0055 | AN120: Primož Ziherl | AO120: 33.3
A121: 106 | B121: Institut "Jožef Stefan" | D121: P2-0001 | E121: Gregor Dolanc | F121: 15735 | G121: Oprema za raziskave in aplikacije na področju tehnologije vodenja | H121: 2020 | I121: Equipment for research and development of the field of process control technology | J121: 56,127.44 | K121: P_XVIII_161 | L121: Oprema je dostopna po predhodnem dogovoru (gregor.dolanc@ijs.si) | M121: The equipment is available upon prior agreement (gregor.dolanc@ijs.si) | N121: Oprema obsega industrijski krmilnik Siemens, funkcijski generator ter razne merilne elementi za meritve v elektroniki. | O121: Equipment contains industrial controller Siemens, function generator and various elements for measurements in electronics. | P121: 66420, 66457, 66537, 66543, 66546, 66589, 66714, 66728, 66796, 66797, 66838, 66907, 67099, 67767, 67768, 67769 | Q121: =Table4[[#This Row],[21]] -> 37.12 | R121: 6.86 | S121: 17.88 | T121: 12.38 | U121: =SUBTOTAL(9,Table4[[#This Row],[18]:[20]]) -> 37.12 | V121: 100 | W121: 80 | X121: https://www.ijs.si/ijsw/Znotraj%20hi%C5%A1e/Desno?action=AttachFile&do=get&target=ARIS_Evidenca_opreme_2024.xlsx | Y121: 6 | Z121: 1 | AA121: 5 | AB121: 4 | AC121: =Table4[[#This Row],[11]] -> P_XVIII_161 | AD121: 0 | AE121: 5 | AF121: 100 | AG121: =Table4[[#This Row],[4]] -> P2-0001 | AH121: =Table4[[#This Row],[5]] -> Gregor Dolanc | AI121: 100
A122: 106 | B122: Institut "Jožef Stefan" | D122: P2-0103 | E122: Martin Žnidaršič | F122: 23582 | G122: Oprema za raziskave in aplikacije na področju umetne inteligence | H122: 2020 | I122: Equipment for research and applied work in the field of artificial intelligence | J122: 156,188.59 | K122: P_XVIII_076 | L122: Čas dostopa do opreme vsak delovni dan od 8:00 do 16:00 po predhodnem dogovoru s skrbnikom. Glede pogojev dostopa in razpoložljivosti kontaktirati skrbnika martin.znidarsic@ijs.si | M122: The equipment is avaliable upon request every day from 8 am to 4 pm. For access conditions and availabilty contact martin.znidarsic@ijs.si | N122: GPU in CPU strežniki za razvoj, testiranje in uporabo metod umetne inteligence | O122: GPU and CPU servers for the development, testing and application of AI methods | P122: 67054, 67339, 67606, 67951, 67952, 68378, 68499, 68500, 68627 | Q122: =Table4[[#This Row],[21]] -> 57.35 | R122: 19.05 | S122: 17.88 | T122: 20.42 | U122: =SUBTOTAL(9,Table4[[#This Row],[18]:[20]]) -> 57.35 | V122: 100 | W122: 100 | X122: https://www.ijs.si/ijsw/Znotraj%20hi%C5%A1e/Desno?action=AttachFile&do=get&target=ARIS_Evidenca_opreme_2024.xlsx | Y122: 6 | Z122: 1 | AA122: 1 | AB122: 25 | AC122: =Table4[[#This Row],[11]] -> P_XVIII_076 | AD122: 0 | AE122: 4 | AF122: 100 | AG122: =Table4[[#This Row],[4]] -> P2-0103 | AH122: =Table4[[#This Row],[5]] -> Martin Žnidaršič
A123: 106 | B123: Institut "Jožef Stefan" | D123: P1-0044 | E123: Rok Žitko | F123: 23567 | G123: Pospeševalniki za vzporedno računanje na področju teoretične fizike | H123: 2021 | I123: Accelerators for parallel computing in the field of theoretical physics | J123: 99,043.45 | K123: P_XVIII_028 | L123: Uporaba je možna preko vmesne programske opreme ARC po predhodnem dogovru (rok.zitko@ijs.si). | M123: Access is possible using ARC middleware upon demand (rok.zitko@ijs.si). | N123: Izvajanje računskih nalog na področjih fizike trdne snovi, fizike osnovnih delcev in biofizke. | O123: Computing in the fields of solid state physics, particle physics and biophysics. | P123: 69539, 69540, 69541, 69542, 69543, 69544, 69545, 69546 | Q123: =Table4[[#This Row],[21]] -> 18.90 | R123: =Table4[[#This Row],[10]]*0.25/2080 -> 11.90 | S123: 4 | T123: 3 | U123: =SUBTOTAL(9,Table4[[#This Row],[18]:[20]]) -> 18.90 | V123: 100 | W123: 60 | X123: https://www.ijs.si/ijsw/Znotraj%20hi%C5%A1e/Desno?action=AttachFile&do=get&target=ARIS_Evidenca_opreme_2024.xlsx | Y123: 6 | Z123: 1 | AA123: 4 | AB123: 14 | AC123: =Table4[[#This Row],[11]] -> P_XVIII_028 | AD123: 0 | AE123: 4 | AF123: 100 | AG123: =Table4[[#This Row],[4]] -> P1-0044 | AH123: =Table4[[#This Row],[5]] -> Rok Žitko | AI123: 33.3 | AJ123: P1-0035 | AK123: Jernej F. Kamenik | AL123: 33.3 | AM123: P1-0055 | AN123: Primož Ziherl | AO123: 33.3
A124: 106 | B124: Institut "Jožef Stefan" | D124: P2-0082 | E124: Uroš Cvelbar | F124: 22289 | G124: Reaktorska komora z elektronsko kolono za in-situ opazovanje procesov in reakcij | H124: 2020 | I124: Reactor chamber with electronic column for in-situ observation of processes and reactions | J124: 191,680.00 | K124: P_XVIII_134 | L124: Oprema je dostopna po predhodnem dogovoru . Kontakt preko e-pošte na uros.cvelbar@ijs.si | M124: Equipment is available by prior arrangement. Please contact uros.cvelbar@ijs.si | N124: raziskovalna oprema z uporabo diferencialnega črpanja omogoča prosto preklapljanje med tremi vakuumskimi režimi, ob potencialni sočani uporabi različnih reaktivnih plinov. Omogoča insitu in operando opazovanje mikroskopskih vzorcev pri različnih talkih in atmosferah. | O124: Research equipment using differential pumping allows free switching between three vacuum modes, with the potential simultaneous use of different reactive gases. | P124: 67260 | Q124: =Table4[[#This Row],[21]] -> 39.25 | R124: 18.21 | S124: 3.2 | T124: 17.84 | U124: =SUBTOTAL(9,Table4[[#This Row],[18]:[20]]) -> 39.25 | V124: 100 | W124: 80 | X124: https://www.ijs.si/ijsw/Znotraj%20hi%C5%A1e/Desno?action=AttachFile&do=get&target=ARIS_Evidenca_opreme_2024.xlsx | Y124: 3 | Z124: 1, 5 | AA124: 6, 1 | AB124: 47 | AC124: =Table4[[#This Row],[11]] -> P_XVIII_134 | AD124: 43.46 | AE124: 5 | AF124: 100 | AG124: =Table4[[#This Row],[4]] -> P2-0082 | AH124: =Table4[[#This Row],[5]] -> Uroš Cvelbar | AI124: 100 | AJ124: PR-09455 | AK124: prof. dr. Uroš Cvelbar, raziskovalci, ki delajo na projektu | AL124: 100
A125: 106 | B125: Institut "Jožef Stefan" | D125: P2-0026 | E125: Blaž Mikuž | F125: 34279 | G125: Termografska kamera za raziskovalne namene | H125: 2020 | I125: High-speed infrared camera for research | J125: 218,586.66 | K125: P_XVII_069 | L125: Po dogovoru z odgovorno osebo (blaz.mikuz@ijs.si) | M125: Please contact responsible person (blaz.mikuz@ijs.si) | N125: Kamera je namenjena termografskim meritvam hitrih procesov, tj. dolgovalovni IR 7.5 - 12.0 µm, 640 x 512 pixels, 1 kHz. Oprema ni prenosljiva in je na voljo le v laboratoriju. | O125: Camera is specialized for thermography of fast phenomena, i.e. long wave IR 7.5 - 12.0 µm, 640 x 512 pixels, 1 kHz. The equipment is available in our laboratory and it is not portable. | P125: 67241 | Q125: =Table4[[#This Row],[21]] -> 49.67 | R125: 20.77 | S125: 10 | T125: 18.9 | U125: =SUBTOTAL(9,Table4[[#This Row],[18]:[20]]) -> 49.67 | V125: 100 | W125: 80 | X125: https://www.ijs.si/ijsw/Znotraj%20hi%C5%A1e/Desno?action=AttachFile&do=get&target=ARIS_Evidenca_opreme_2024.xlsx | Y125: 4 | Z125: 5 | AA125: 5 | AB125: 46 | AC125: =Table4[[#This Row],[11]] -> P_XVII_069 | AD125: 0 | AE125: 5 | AF125: 100 | AG125: =Table4[[#This Row],[4]] -> P2-0026 | AH125: =Table4[[#This Row],[5]] -> Blaž Mikuž | AI125: 100
A126: 106 | B126: Institut "Jožef Stefan" | D126: I0-0005 | E126: Miran Čeh | F126: 3937 | G126: Visokoločljivostni vrstični elektronski mikroskop s FEG izvorom, EDX sistemom in STEM detektorjem | H126: 2020 | I126: High-resolution FES SEM with EDX and STEM detector | J126: 588,237.64 | K126: P_XVII_076 | L126: Vrstični elektronski mikroskop v okviru Centra za elektronsko mikroskopijo in mikroanalizo (CEMM) je dostopen na podlagi on-line rezervacijskega sistem vsem tistim operaterjem IJS, ki so uspešno opravili tečaj, ki ga brezplačno organizira in izvaja kader CEMM. Za tiste odseke IJS, druge raziskovalne in izobraževalne institucije in industrijske partnerje, ki nimajo svojih operaterjev, izvede zahtevane analize kader CEMM. | M126: The scanning electron microscope within the Center for Electron Microscopy and Microanalysis (CEMM) is accessible via the on-line reservation system to all JSI operators who have successfully completed a teaching course organized and conducted free of charge by the CEMM personnel . For those departments of the JSI, other research and educational institutions and industrial partners that do not have their own operators, the required analyses are performed by the CEMM personnel. | N126: Visokoločljivostni vrstični elektronski mikroskop FEG SEM omogoča morfološko karakterizacijo različnih anorganskih in organskih materialov na nanometrskem nivoju, tudi pri zelo nizkih vzbujevalnih napetostih. Poleg tega omogoča mikroskop določevanje kemijske sestave, saj je mikroskop opremljen s sistemom EDX. Novo kvaliteto pa predstavlja detektor za preiskave vzorcev v presevnem načinu. | O126: The high-resolution FEG SEM scanning electron microscope enables the morphological characterization of various inorganic and organic materials at the nanometer level, even at very low excitation voltages. In addition, the microscope allows the determination of the chemical composition of materials since the microscope is equipped with the EDX system. A new quality is a detector for examining samples in transmission mode. | P126: 67334 | Q126: =Table4[[#This Row],[21]] -> 90.86 | R126: 55.84 | S126: 31.72 | T126: 35.02 | U126: =SUBTOTAL(9,Table4[[#This Row],[18]:[20]]) -> 90.86 | V126: 100 | W126: 80 | X126: https://www.ijs.si/ijsw/Znotraj%20hi%C5%A1e/Desno?action=AttachFile&do=get&target=ARIS_Evidenca_opreme_2024.xlsx | Y126: 3 | Z126: 5 | AA126: 1 | AB126: 4 | AC126: =Table4[[#This Row],[11]] -> P_XVII_076 | AD126: 35.02 | AE126: 5 | AF126: 100 | AG126: =Table4[[#This Row],[4]] -> I0-0005 | AH126: =Table4[[#This Row],[5]] -> Miran Čeh | AI126: 100
A127: 106 | B127: Institut "Jožef Stefan" | D127: P1-0040 | E127: Dragan D. Mihailović | F127: 4540 | G127: Kombiniran sistem za nanofabrikacijo | H127: 2020 | I127: Nanofabrication system | J127: 84,104.09 | K127: P_XVIII_072 | L127: Oprema je dostopa po predhodnem dogovoru.Za uporabo zahtevnejše opreme je omogočeno šolanje. Cena storitev je odvisna od zahtevnosti meritev. Kontakt damjan.svetin@ijs.si | M127: Equipment is available on demand. Training can be arranged. The price of services depends on complexity of the measurements. Contact damjan.svetin@ijs.si | N127: Kombiniran sistem za nanofabrikacijo omogoča izdelavo nanometrskih elektronskih vezij z dvodimenzionalnimi in enodimenzionalnimi nanomateriali. Sestavlja ga optični stereo mikroskop visoke ločljivosti in AFM, ki sta funkcionalno sklopljena in vgrajena v posebno komoro, ki vsebuje elektronski evaporator in drugo opremo za izdelavo funkcionalnih vezij. | O127: The combined nanofabrication system enables the fabrication of nanometer electronic circuits with two-dimensional and one-dimensional nanomaterials. It consists of a high-resolution optical stereo microscope and AFM, which are functionally coupled and built into a special chamber containing an electronic evaporator and other equipment for functional circuits manufacturing. | P127: 66717, 66727, 66831, 66875, 66876, 67144, 67786, 68992, 68993 | Q127: =Table4[[#This Row],[21]] -> 38.60 | R127: 8.34 | S127: 17.88 | T127: 12.38 | U127: =SUBTOTAL(9,Table4[[#This Row],[18]:[20]]) -> 38.60 | V127: 100 | W127: 80 | X127: https://www.ijs.si/ijsw/Znotraj%20hi%C5%A1e/Desno?action=AttachFile&do=get&target=ARIS_Evidenca_opreme_2024.xlsx | Y127: 3 | Z127: 6 | AA127: 1 | AB127: 47 | AC127: =Table4[[#This Row],[11]] -> P_XVIII_072 | AD127: 0 | AE127: 5 | AF127: 100 | AG127: =Table4[[#This Row],[4]] -> P1-0040 | AH127: =Table4[[#This Row],[5]] -> Dragan D. Mihailović | AI127: 100
A128: 106 | B128: Institut "Jožef Stefan" | D128: P2-0082 | E128: Janez Kovač | F128: 15703 | G128: SNOM mikroskop | H128: 2020 | I128: SNOM Microscope | J128: 101,290.90 | K128: P_XVIII_136 | L128: Oprema je dostopna po predhodnem dogovoru. Kontakt preko e-pošte janez.kovac@ijs.si | M128: Equipment is available on demand. Please contact janez.kovac@ijs.si | N128: Mikroskop omogoča karakterizacijo optičnih in morfoloških lastnosti površin trdnih materialov na nanometrskem nivoju | O128: Microscope allows characterization of optical and morphological properties of surfaces of solid materials on nanoscale | P128: 67390 | Q128: =Table4[[#This Row],[21]] -> 39.86 | R128: 0 | S128: 17.88 | T128: 21.98 | U128: =SUBTOTAL(9,Table4[[#This Row],[18]:[20]]) -> 39.86 | V128: 100 | W128: 80 | X128: https://www.ijs.si/ijsw/Znotraj%20hi%C5%A1e/Desno?action=AttachFile&do=get&target=ARIS_Evidenca_opreme_2024.xlsx | Y128: 3 | Z128: 6 | AA128: 1 | AB128: 44 | AC128: =Table4[[#This Row],[11]] -> P_XVIII_136 | AD128: 40 | AE128: 5 | AF128: 100 | AG128: =Table4[[#This Row],[4]] -> P2-0082 | AH128: =Table4[[#This Row],[5]] -> Janez Kovač | AI128: 100
A129: 106 | B129: Institut "Jožef Stefan" | D129: P1-0048 | E129: Dušan Turk | F129: 4988 | G129: Prometheus NT.48, Nano diferenčni dinamični fluorimeter (angl. nanoDSF, nano differential scanning fluorimetry) | H129: 2020 | I129: Prometheus NT.48, nano differential scanning fluorometry (nanoDSF) | J129: 148,540.02 | K129: P_XVIII_087 | L129: Oprema je dostopna po predhodnem dogovoru preko e-pošte: dusan.turk@ijs.si ali aleksandra.usenik@ijs.si | M129: The equipment is available upon e-mail request: dusan.turk@ijs.si or aleksandra.usenik@ijs.si | N129: Oprema je namenjena meritvam termične in kemične stabilnosti proteinov na osnovi njihove intrinzične fluorescence ter agregacije proteinov na osnovi upada intenzitete svetlobe, ki potuje skozi vzorec. Oprema omogoča paralelne meritve 48 vzorcev v kapilarah po 10 µL. | O129: The equipment is used for measuring thermal and chemical stability of proteins based on their intrinsic fluorescence as well as aggregation of proteins based on attenuation of the light going through the sample. Paralel measurements of 48 samples in 10µL capillaries are possible. | P129: 67130 | Q129: =Table4[[#This Row],[21]] -> 32.68 | R129: 14.1 | S129: 14,59 EUR (0.5 EUR/standardna kapilara ali 2 EUR/visoko občutljiva kapilara) | T129: 18.58 | U129: =SUBTOTAL(9,Table4[[#This Row],[18]:[20]]) -> 32.68 | V129: 100 | W129: 80 | X129: https://www.ijs.si/ijsw/Znotraj%20hi%C5%A1e/Desno?action=AttachFile&do=get&target=ARIS_Evidenca_opreme_2024.xlsx | Y129: 2 | Z129: 5 | AA129: 1 | AB129: 4 | AC129: =Table4[[#This Row],[11]] -> P_XVIII_087 | AD129: 0 | AE129: 5 | AF129: 100 | AG129: =Table4[[#This Row],[4]] -> P1-0048 | AH129: =Table4[[#This Row],[5]] -> Dušan Turk | AI129: 90 | AJ129: P1-0140 | AK129: Boris Turk | AL129: 5 | AS129: Neformalno sodelovanje | AT129: Stipan Jonjič (Univerza v Rijeki) | AU129: 5
A130: 106 | B130: Institut "Jožef Stefan" | D130: P2-0082 | E130: Matjaž Panjan | F130: 26463 | G130: Pulzni napajalnik za magnetronsko naprševanje pri visoki pulzni moči | H130: 2020 | I130: Power supply for high impulse power magnetron sputtering | J130: 54,018.90 | K130: P_XVIII_142 | L130: Po predhodnem dogovoru na naslov matjaz.panjan@ijs.si. | M130: Advance contact to the address matjaz.panjan@ijs.si. | N130: Napajalnik deluje v sklopu vakuumskega sistema in magnetronskega izvira (katode). Zagotavlja kratke pulze (10-1000 µs) pri visoki vršni moči, kar omogoča popolno ionizacijo razpršenih atomov tarče | O130: The power supply is operational in line with a vacuum system and magnetron source (cathode). It provides short pulses (10-1000 µs) at high peak power which allows for a complete ionization of the sputtered target atoms. | P130: 67506 | Q130: =Table4[[#This Row],[21]] -> 35.39 | R130: 5.13 | S130: 17.88 | T130: 12.38 | U130: =SUBTOTAL(9,Table4[[#This Row],[18]:[20]]) -> 35.39 | V130: 100 | W130: 80 | X130: https://www.ijs.si/ijsw/Znotraj%20hi%C5%A1e/Desno?action=AttachFile&do=get&target=ARIS_Evidenca_opreme_2024.xlsx | Y130: 1 | Z130: 1 | AA130: 3 | AB130: 44 | AC130: =Table4[[#This Row],[11]] -> P_XVIII_142 | AD130: 0 | AE130: 5 | AF130: =(AI130+AL130+AO130+AR130+AU130+AX130) -> 100 | AG130: =Table4[[#This Row],[4]] -> P2-0082 | AH130: =Table4[[#This Row],[5]] -> Matjaž Panjan | AI130: 40 | AJ130: PR-08349 | AK130: Nastja Mahne | AL130: 20 | AM130: J2-2509 | AN130: dr. Matjaž Panjan | AO130: 20 | AP130: J2-2513 | AQ130: dr. Matjaž Panjan | AR130: 20
A131: 106 | B131: Institut "Jožef Stefan" | D131: I0-0005 | E131: Miran Čeh | F131: 3937 | G131: Okoljski vrstični elektronski mikroskop (ESEM) z veliko komoro, sistemom za analizo morfologije površin in EDX sistemom | H131: 2020 | I131: Environmental scanning electron microscope | J131: 264,395.71 | K131: P_XVIII_157 | L131: Vrstični elektronski mikroskop v okviru Centra za elektronsko mikroskopijo in mikroanalizo (CEMM) je dostopen na podlagi on-line rezervacijskega sistem vsem tistim operaterjem IJS, ki so uspešno opravili tečaj, ki ga brezplačno organizira in izvaja kader CEMM. Za tiste odseke IJS, druge raziskovalne in izobraževalne institucije in industrijske partnerje, ki nimajo svojih operaterjev, izvede zahtevane analize kader CEMM. | M131: The scanning electron microscope within the Center for Electron Microscopy and Microanalysis (CEMM) is accessible via the on-line reservation system to all JSI operators who have successfully completed a teaching course organized and conducted free of charge by the CEMM personnel . For those departments of the JSI, other research and educational institutions and industrial partners that do not have their own operators, the required analyses are performed by the CEMM personnel. | N131: Okoljski vrstični elektronski mikroskop (ESEM) omogoča morfološko in kemijsko karakterizacijo različnih anorganskih in organskih materialov. Mikroskop je opremljen z veliko komoro za vzorce, sistemom EDX in programsko opremo za 3D predstavitev morfologije površine. Omogoča tudi opazovanje vzorcev pri nizkem vakuumu (do 4000 Pa) in je kot tak primeren za opazovanje vlažnih vzorcev. | O131: The environmental scanning electron microscope (ESEM) enables morphological and chemical characterization of various inorganic and organic materials. The microscope is equipped with large specimen chamber, EDX system and software for 3D surface morphology presentation. It also enables observation of specimens at low vacuum (up to 4000 Pa) and is as such suitable for observation of not completely dried specimens. | P131: 67643 | Q131: =Table4[[#This Row],[21]] -> 78.33 | R131: 25.11 | S131: 18.2 | T131: 35.02 | U131: =SUBTOTAL(9,Table4[[#This Row],[18]:[20]]) -> 78.33 | V131: 100 | W131: 80 | X131: https://www.ijs.si/ijsw/Znotraj%20hi%C5%A1e/Desno?action=AttachFile&do=get&target=ARIS_Evidenca_opreme_2024.xlsx | Y131: 3 | Z131: 5 | AA131: 1 | AB131: 4 | AC131: =Table4[[#This Row],[11]] -> P_XVIII_157 | AD131: 35.02 | AE131: 5 | AF131: 100 | AG131: =Table4[[#This Row],[4]] -> I0-0005 | AH131: =Table4[[#This Row],[5]] -> Miran Čeh | AI131: 100
A132: 106 | B132: Institut "Jožef Stefan" | D132: P2-0405 | E132: Sabina Markelj | F132: 25624 | G132: Spektrometer za spektroskopijo Augerjevih elektronov | H132: 2020 | I132: Spectrometer for Auger electron spectroscopy | J132: 97,019.32 | K132: P_XVIII_057 | L132: Nacin dostopa je po predhodnem dogovoru. Kontakt sabina.markelj@ijs.si. | M132: The method of access is by prior arrangement. Contact sabina.markelj@ijs.si. | N132: Spektrometer za spektroskopijo Augerjevih elektronov je namenjen za analizo površine različnih materialov, še posebej pa omogoča: določitev kontaminacije vzorcev z ogljikovodiki, oksidi; analizo količine adsorbiranh molekul na preučevanih vzorcih ter analizno sestavo tankih plasti. | O132: The spectrometer for Auger electron spectroscopy is intended for the analysis of the surface of various materials, and in particular allows: determination of contamination of samples with hydrocarbons, oxides; analysis of the amount of adsorbed molecules on the studied samples and analytical composition of thin layers. | P132: 67679 | Q132: =Table4[[#This Row],[21]] -> 50.51 | R132: 9.22 | S132: 19.31 | T132: 21.98 | U132: =SUBTOTAL(9,Table4[[#This Row],[18]:[20]]) -> 50.51 | V132: 100 | W132: 80 | X132: https://www.ijs.si/ijsw/Znotraj%20hi%C5%A1e/Desno?action=AttachFile&do=get&target=ARIS_Evidenca_opreme_2024.xlsx | Y132: 3 | Z132: 5 | AA132: 4 | AB132: 60 | AC132: =Table4[[#This Row],[11]] -> P_XVIII_057 | AD132: 12.38 | AE132: 5 | AF132: 100 | AG132: =Table4[[#This Row],[4]] -> P2-0405 | AH132: =Table4[[#This Row],[5]] -> Sabina Markelj | AI132: 80 | AJ132: P1-0112 | AK132: Matjaž Žitnik, Primož Pelicon | AL132: 20
A133: 106 | B133: Institut "Jožef Stefan" | D133: P2-0082 | E133: Rok Zaplotnik | F133: 31618 | G133: Generator za vzbujanje induktivno sklopljene plazme velike moči | H133: 2020 | I133: Generator with a high nominal power for the excitation of inductively coupled plasma | J133: 67,507.32 | K133: P_XVIII_150 | L133: Oprema je običajno dostopna od ponedeljka do petka med 8:00 in 14:00. Za dogovor o uporabi se je potrebno dogovoriti z vodjo Odseka za tehnologijo površin prof. Miranom Mozetičem. | M133: Equipment is usually available Monday through Friday between 8:00 and 14:00. It is necessary to talk about the use beforehand with the head of the Department of Surface Engineering prof. Miran Mozetič. | N133: Oprema se bo uporabljala za vzbujanje induktivno sklopljene plazme. Nominalna moč generatorja je velika, predvsem zaradi potrebe velike gostote moči plazme v H-načinu. Pri veliki gostoti moči namreč lahko plazmo vzdržujemo pri višjih tlakih (srednji vakuum), kar posledično pomeni večjo gostoto reaktivnih delcev. | O133: The equipment will be used for excitation of inductively coupled plasma. The nominal power of the generator is high, mainly due to the need for high plasma power density in H-mode. At high power densities, the plasma can be maintained at higher pressures (medium vacuum), which consequently means a higher density of reactive particles. | P133: 67836 | Q133: =Table4[[#This Row],[21]] -> 41.42 | R133: 6.42 | S133: 7 | T133: 28 | U133: =SUBTOTAL(9,Table4[[#This Row],[18]:[20]]) -> 41.42 | V133: 100 | W133: 80 | X133: https://www.ijs.si/ijsw/Znotraj%20hi%C5%A1e/Desno?action=AttachFile&do=get&target=ARIS_Evidenca_opreme_2024.xlsx | Y133: 1 | Z133: 3 | AA133: 2 | AB133: 60 | AC133: =Table4[[#This Row],[11]] -> P_XVIII_150 | AD133: 35 | AE133: 5 | AF133: 100 | AG133: =Table4[[#This Row],[4]] -> P2-0082 | AH133: =Table4[[#This Row],[5]] -> Rok Zaplotnik | AI133: 50 | AJ133: L2-1834 | AK133: Alenka Vesel | AL133: 35 | AM133: L2-2617 | AN133: Gregor Primc | AO133: 15
A134: 106 | B134: Institut "Jožef Stefan" | D134: P2-0098 | E134: Gregor Papa | F134: 18291 | G134: Visokozmogljiv hibridni adaptivni računski sistem | H134: 2020 | I134: High-performance hybrid adaptive computing system | J134: 194,017.64 | K134: P_XVIII_064 | L134: Oprema je dostopna preko infrastrukture SLING, po predhodnem dogovoru s skrbnikom. | M134: The equipment is available through SLING infrastructure, upon agreement with the administrator. | N134: Oprema je namenjena hitri obdelavi kompleksnih podatkov. Hibridna oprema omogoča razvoj in testiranje sodobnih adaptivnih metod, ki temeljijo na računsko zahtevnih umetni in računski inteligenci. | O134: The equipment is intended for fast processing of complex data. Hybrid equipment allows the development and testing of modern adaptive methods based on computationally demanding artificial and computational intelligence. | P134: 67501, 67502, 67503, 67504, 68882, 68944, 68945, 68991, 69027 | Q134: =Table4[[#This Row],[21]] -> 53.38 | R134: 23.12 | S134: 17.88 | T134: 12.38 | U134: =SUBTOTAL(9,Table4[[#This Row],[18]:[20]]) -> 53.38 | V134: 100 | W134: 100 | X134: https://www.ijs.si/ijsw/Znotraj%20hi%C5%A1e/Desno?action=AttachFile&do=get&target=ARIS_Evidenca_opreme_2024.xlsx | Y134: 6 | Z134: 1 | AA134: 4 | AB134: 26 | AC134: =Table4[[#This Row],[11]] -> P_XVIII_064 | AD134: 25 | AE134: 4 | AF134: 100 | AG134: =Table4[[#This Row],[4]] -> P2-0098 | AH134: =Table4[[#This Row],[5]] -> Gregor Papa | AI134: 100
A135: 106 | B135: Institut "Jožef Stefan" | D135: P1-0102 | E135: Matjaž Vencelj | F135: 20207 | G135: Segmentirani detektor z velikim prostorskim kotom | H135: 2020 | I135: Large solid angle segmented detector | J135: 119,560.42 | K135: P_XVII_187 | L135: Komunikacija z opisom zahtev meritve, tipa ionskega žarka na E-mail skrbnika. Za tujce tudi v okviru mednarodnega dostopa na pospeševalnik IJS, H2020 Radiate: https://www.ionbeamcenters.eu/ | M135: Communication with the description of the measurement specifics to the E-mail of the responsible person. Alternatively, transnational Access via the H2020 Radiate:https://www.ionbeamcenters.eu/ | N135: Segmentni detektor rentgenskih žarkov SDD je vgrajen v merilno postajo z ionskim mikrožarkom za mikro-PIXE. Omogoča elementno mapiranje vzorcev s pokrivanjem ekstremno velikega prostorskega kota 1 strd. | O135: The segmented X-ray SDD is mounted at the ion microprobe measuring chamber. It enables elemental mapping with micro_PIXE with extremely large solid angle 1 strd. | P135: 67867 | Q135: =Table4[[#This Row],[21]] -> 71.34 | R135: 11.36 | S135: 38 | T135: 21.98 | U135: =SUBTOTAL(9,Table4[[#This Row],[18]:[20]]) -> 71.34 | V135: 100 | W135: 80 | X135: https://www.ijs.si/ijsw/Znotraj%20hi%C5%A1e/Desno?action=AttachFile&do=get&target=ARIS_Evidenca_opreme_2024.xlsx | Y135: 3 | Z135: 2 | AA135: 2 | AB135: 50 | AC135: =Table4[[#This Row],[11]] -> P_XVII_187 | AD135: 24.76 | AE135: 5 | AF135: 100 | AG135: =Table4[[#This Row],[4]] -> P1-0102 | AH135: =Table4[[#This Row],[5]] -> Matjaž Vencelj | AI135: 50 | AJ135: P1-0112 | AK135: Pelicon | AL135: 50
A136: 106 | B136: Institut "Jožef Stefan" | D136: P1-0125 | E136: Janez Dolinšek | F136: 3939 | G136: Hladilnik QD 3He/4He za ultranizke temperature | H136: 2020 | I136: 3He/4He dilution refrigerator for ultra-low temperatures | J136: 239,360.40 | K136: P_XVII_021 | L136: Za uporabo opreme kontaktirajte prof. dr. Janeza Dolinška (janez.dolinsek@ijs.si) na Institutu Jožefa Stefana kadarkoli. Meritve izvajajo člani naše raziskovalne skupine, zunanji uporabniki lahko prisostvujejo meritvam. | M136: To use the equipment, please contact prof. dr. Janez Dolinšek (janez.dolinsek@ijs.si) at the Jožef Stefan Institute anytime. The measurements are executed by our trained researchers. External users can take part in the measurements. | N136: Hladilnik 3He/4He za ultranizke temperature omogoča meritve fizikalnih lastnosti materialov (električna upornost, magnetoupornost, specifična toplota in Hallov koeficient) v območju temperatur do 50 mK nad absolutno ničlo v magnetnih poljih do 9 T. | O136: Dilution refrigerator 3He/4He for ultralow temperatures enables measurements of physical properties of materials (electrical resistivity, magnetoresistance, specific heat, Hall coefficient) in the range of temperatures down to 50 mK above absolute zero at magnetic fields up to 9 T. | P136: 67114 | Q136: =Table4[[#This Row],[21]] -> 52.99 | R136: 22.73 | S136: 17.88 | T136: 12.38 | U136: =SUBTOTAL(9,Table4[[#This Row],[18]:[20]]) -> 52.99 | V136: 100 | W136: 80 | X136: https://www.ijs.si/ijsw/Znotraj%20hi%C5%A1e/Desno?action=AttachFile&do=get&target=ARIS_Evidenca_opreme_2024.xlsx | Y136: 4 | Z136: 1 | AA136: 5 | AB136: 44 | AC136: =Table4[[#This Row],[11]] -> P_XVII_021 | AD136: 47.47 | AE136: 5 | AF136: 100 | AG136: =Table4[[#This Row],[4]] -> P1-0125 | AH136: =Table4[[#This Row],[5]] -> Janez Dolinšek | AI136: 100
A137: 106 | B137: Institut "Jožef Stefan" | D137: P2-0073 | E137: Luka Snoj | F137: 27819 | G137: Računske gruča | H137: 2020 | I137: HPC computer cluster | J137: 195,737.00 | K137: P_XVIII_014 | L137: Po predhodnem dogovoru na naslov bojan.zefran@ijs.si ali sandi.cimerman@ijs.si | M137: Advance contact to address bojan.zefran@ijs.si or sandi.cimerman@ijs.si | N137: Računska gruča z Linux operacijskim sistemom vsebuje 15 računskih vozlišč, ki vsako vsebuje dva procesorja Intel Xeon in vsaj 192 GB highperformance ECC registered DDR4 DIMM pomnilnika, eno vozlišče pa vsaj 768 TB highperformance ECC registered DDR4 DIMM pomnilnika. Zmogljivi procesorji in velike količine delovnega pomnilnika omogočajo računsko zahtevne izračune, obsežne simulacije z visoko ločljivostjo in obdelavo velike količine podatkov, kakršne izvajamo za potrebe obstoječih in prihodnjih projektov. | O137: Cluster with Linux operational system consists of 15 computer nodes with two Intel Xeon processors and at least 192 GB high performance ECC registered DDR4 DIMM memory and one node with at least 768 TB high performance ECC registered DDR4 DIMM memory. High performance processors and high working memory capacity enable the performance of computational difficult calculations, extensive simulations with high resolution and large data processing, which are made for carrying out the ongoing and future project tasks. | P137: 65270 06 | Q137: =Table4[[#This Row],[21]] -> 23.23 | R137: 23.23 | S137: 0.01 EUR/jedro/ura | T137: 0.01 EUR/jedro/ura | U137: =SUBTOTAL(9,Table4[[#This Row],[18]:[20]]) -> 23.23 | V137: 100 | W137: 100 | X137: https://www.ijs.si/ijsw/Znotraj%20hi%C5%A1e/Desno?action=AttachFile&do=get&target=ARIS_Evidenca_opreme_2024.xlsx | Y137: 6 | Z137: 1 | AA137: 4 | AB137: 14 | AC137: =Table4[[#This Row],[11]] -> P_XVIII_014 | AD137: 0 | AE137: 4 | AF137: 100 | AG137: =Table4[[#This Row],[4]] -> P2-0073 | AH137: =Table4[[#This Row],[5]] -> Luka Snoj | AI137: 28 | AJ137: P1-0389 | AK137: Raziskovalci odseka F-8 | AL137: 25 | AM137: PR-05883-1 (EUROfusion, Education) | AN137: Igor Lengar, Ivo Kodeli, Bor Kos, Domen Kotnik, Andrej Žohar | AO137: 14 | AP137: NC-0001 | AQ137: Luka Snoj, raziskovalci odseka F-8 | AR137: 15 | AS137: NC-0005 | AT137: Gašper Žerovnik, raziskovalci odseka F-8 | AU137: 4 | AV137: L2-8163, PR-08098, PR-05877 | AW137: Raziskovalci odseka F-8 | AX137: 14
A138: 106 | B138: Institut "Jožef Stefan" | D138: P2-0082 | E138: Miran Mozetič | F138: 10429 | G138: Močnostni plazemski sistem za depozicijo nanosov tankih plasti s plazmo molekularnih plinov na vzorce večjih dimenzij | H138: 2020 | I138: Plasma system for the deposition of thin films with plasma of molecular gases on larger samples | J138: 73,318.80 | K138: P_XVIII_037 | L138: Oprema je običajno dostopna od ponedeljka do petka med 8:00 in 14:00. Za dogovor o uporabi se je potrebno dogovoriti z vodjo Odseka za tehnologijo površin. | M138: Equipment is usually available Monday through Friday between 8:00 and 14:00. It is necessary to talk about the use beforehand with the head of the Department of Surface Engineering. | N138: Sistem je primeren za pripravo vzorcev industrijsko pomembnih dimenzij. Posebnost naprave je v tem, da omogoča nanos plasti z uporabo različnih prekurzorjev na vzorce premera do 0.4 m ter regulacijo moči za vzbujanje nizkotlačne plazme do 12 kW. | O138: The system is designed for preparation of industrial-size samples. The device enables thin film coatings by using various precursors on samples up to 0.4 m in diameter and power regulation for sustaining low-pressure plasma up to 12 kW. | P138: 68079 | Q138: =Table4[[#This Row],[21]] -> 49.97 | R138: 6.97 | S138: 15 | T138: 28 | U138: =SUBTOTAL(9,Table4[[#This Row],[18]:[20]]) -> 49.97 | V138: 100 | W138: 80 | X138: https://www.ijs.si/ijsw/Znotraj%20hi%C5%A1e/Desno?action=AttachFile&do=get&target=ARIS_Evidenca_opreme_2024.xlsx | Y138: 1 | Z138: 1 | AA138: 5 | AB138: 60 | AC138: =Table4[[#This Row],[11]] -> P_XVIII_037 | AD138: 35 | AE138: 5 | AF138: 100 | AG138: =Table4[[#This Row],[4]] -> P2-0082 | AH138: =Table4[[#This Row],[5]] -> Miran Mozetič | AI138: 30 | AJ138: J2-1720 | AK138: Gregor Primc | AL138: 35 | AM138: L2-2616 | AN138: Alenka Vesel | AO138: 35
A139: 106 | B139: Institut "Jožef Stefan" | D139: P2-0091 | E139: Matjaž Spreitzer | F139: 24273 | G139: UHV sistema za premikanje grelnika in tarč | H139: 2020 | I139: UHV heater- and target stage | J139: 102,014.50 | K139: P_XVIII_170 | L139: Po predhodnem dogovoru s skrbnikom (matjaz.spreitzer@ijs.si) | M139: By prior arrangement with corresponding persopn (matjaz.spreitzer@ijs.si) | N139: UHV sistema za premikanje grelnika in tarč v sistemu za pulzno lasersko nanašanje. | O139: UHV heater- and target stage for a pulsed laser depostion system. | P139: 68368 | Q139: =Table4[[#This Row],[21]] -> 68.70 | R139: 9.7 | S139: 20 | T139: 39 | U139: =SUBTOTAL(9,Table4[[#This Row],[18]:[20]]) -> 68.70 | V139: 100 | W139: 80 | X139: https://www.ijs.si/ijsw/Znotraj%20hi%C5%A1e/Desno?action=AttachFile&do=get&target=ARIS_Evidenca_opreme_2024.xlsx | Y139: 1 | Z139: 1 | AA139: 4 | AB139: 47 | AC139: =Table4[[#This Row],[11]] -> P_XVIII_170 | AD139: 39 | AE139: 5 | AF139: 100 | AG139: =Table4[[#This Row],[4]] -> P2-0091 | AH139: =Table4[[#This Row],[5]] -> Matjaž Spreitzer | AI139: 50 | AJ139: N2-0149 | AK139: Matjaž Spreitzer | AL139: 25 | AM139: N2-0187 | AN139: Matjaž Spreitzer | AO139: 25
A140: 106 | B140: Institut "Jožef Stefan" | D140: P2-0091 | E140: Matjaž Spreitzer | F140: 24273 | G140: Manjši sistem za pulzno lasersko nanašanje | H140: 2020 | I140: Small pulsed laser deposition system | J140: 157,515.66 | K140: P_XVII_188 | L140: Po predhodnem dogovoru s skrbnikom (matjaz.spreitzer@ijs.si) | M140: By prior arrangement with corresponding persopn (matjaz.spreitzer@ijs.si) | N140: Manjši sistem za pulzno lasersko nanašanje je namenjen pripravi visoko-kakovostnih tankih plasti in heterostruktur. | O140: Small pulsed laser depostion system is used for the preparation of high-quality thin films and heterostructures. | P140: 68369 | Q140: =Table4[[#This Row],[21]] -> 85.97 | R140: 14.97 | S140: 32 | T140: 39 | U140: =SUBTOTAL(9,Table4[[#This Row],[18]:[20]]) -> 85.97 | V140: 100 | W140: 80 | X140: https://www.ijs.si/ijsw/Znotraj%20hi%C5%A1e/Desno?action=AttachFile&do=get&target=ARIS_Evidenca_opreme_2024.xlsx | Y140: 1 | Z140: 1 | AA140: 4 | AB140: 47 | AC140: =Table4[[#This Row],[11]] -> P_XVII_188 | AD140: 39 | AE140: 5 | AF140: 100 | AG140: =Table4[[#This Row],[4]] -> P2-0091 | AH140: =Table4[[#This Row],[5]] -> Matjaž Spreitzer | AI140: 50 | AJ140: N2-0149 | AK140: Matjaž Spreitzer | AL140: 25 | AM140: N2-0187 | AN140: Matjaž Spreitzer | AO140: 25
A141: 106 | B141: Institut "Jožef Stefan" | D141: P2-0105 | E141: Hana Uršič Nemevšek | F141: 26468 | G141: Mikroskop na atomsko silo z moduli za piezoelektrične, električne in magnetne meritve | H141: 2020 | I141: Atomic force microscopy (AFM) with piezo-response force microscopy, conductive-atomic force microscopy and magnetic-force microscopy moduli | J141: 423,533.10 | K141: P_XVIII_010 | L141: po dogovoru: hana.ursic@ijs.si | M141: by agreement: hana.ursic@ijs.si | N141: Mikroskop na atomsko silo z različnimi moduli je zelo uporabno orodje za raziskovanje feroelektrične domenske strukture, feroelektričnih, piezoelektričnih in magnetnih lastnosti na lokalni (nanometrski) ravni. | O141: An atomic force microscope with various modules is a very useful tool for investigating the ferroelectric domain structure, ferroelectric, piezoelectric, and magnetic properties at the local (nanometer) level. | P141: 68381 | Q141: =Table4[[#This Row],[21]] -> 98.38 | R141: 40.3 | S141: 14.62 | T141: 43.46 | U141: =SUBTOTAL(9,Table4[[#This Row],[18]:[20]]) -> 98.38 | V141: 100 | W141: 80 | X141: https://www.ijs.si/ijsw/Znotraj%20hi%C5%A1e/Desno?action=AttachFile&do=get&target=ARIS_Evidenca_opreme_2024.xlsx | Y141: 3 | Z141: .6 | AA141: .1 | AB141: 44 | AC141: =Table4[[#This Row],[11]] -> P_XVIII_010 | AD141: 43.46 | AE141: 5 | AF141: 100 | AG141: =Table4[[#This Row],[4]] -> P2-0105 | AH141: =Table4[[#This Row],[5]] -> Hana Uršič Nemevšek
A142: 106 | B142: Institut "Jožef Stefan" | D142: P1-0135 | E142: Igor Mandić | F142: 12313 | G142: Sistem za meritve tranzientov v silicijevih detektorjih z dvofotonsko absorpcijo | H142: 2020 | I142: System for measurements of transients in silicon detectors caused by two photon abosrption. | J142: 136,492.17 | K142: P_XVIII_107 | L142: Oprema se nahaja na IJS, v laboratoriju odseka F9, Jamova 39, Ljubljana. Dostop do opreme je možen po dogovoru. Kontakt: igor.mandic@ijs.si | M142: The system is installed in the laboratory of F9 department at JSI, Jamova 39, Ljubljana. Equipment is available, for posibility of usage please contact igor.mandic@ijs.si | N142: Sistem je namenjen meritvam tranzientov, ki jih v silicijevih detektorjih povzročimo z dvofotonsko absorpcijo s ~ 100 fs pulzi laserske svetlobe z valovno dolžino 1560 nm. | O142: The system enables measruements of transients in silicon detectors caused by two photon absorption with ~100 fs pulses of laser light with wavelength of 1560 nm. | P142: 69009 | Q142: =Table4[[#This Row],[21]] -> 83.65 | R142: 13.03 | S142: 17.88 | T142: 52.74 | U142: =SUBTOTAL(9,Table4[[#This Row],[18]:[20]]) -> 83.65 | V142: 100 | W142: 80 | X142: https://www.ijs.si/ijsw/Znotraj%20hi%C5%A1e/Desno?action=AttachFile&do=get&target=ARIS_Evidenca_opreme_2024.xlsx | Y142: 4 | Z142: 4 | AA142: 7 | AB142: 41 | AC142: =Table4[[#This Row],[11]] -> P_XVIII_107 | AD142: 0 | AE142: 5 | AF142: 100 | AG142: =Table4[[#This Row],[4]] -> P1-0135 | AH142: =Table4[[#This Row],[5]] -> Igor Mandić | AI142: 100
A143: 106 | B143: Institut "Jožef Stefan" | D143: I0-0005 | E143: Matic Lozinšek | F143: 30880 | G143: Integriran sistem za sintezo in karakterizacijo spojin pod inertnimi pogoji, pri nizkih temperaturah in pod visokimi tlaki | H143: 2021 | I143: Integrated system for synthesis and characterisation of compounds under inert conditions, at low temperatures, and at high pressure | J143: 165,083.95 | K143: P_XIX_001 | L143: Uporaba je možna po predhodnem dogovoru (matic.lozinsek@ijs.si) | M143: Access is possible upon demand (matic.lozinsek@ijs.si) | N143: Sistem suhih celic omogoča delo v inertni atmosferi N2 (O2, H2O < 1 ppm), ATR-FTIR karakterizacijo, pregled vzorcev s stereomikroskopom, in sušenje topil | O143: Glovebox system enables the work in inert N2 atomsphere (O2, H2O < 1 ppm), ATR-FTIR characterization, stereomicroscopy, and solvent drying | P143: 69217 70673 70674 71180 71313 70677 70676 69720 69976 69193 69816 69817 69818 70271 70272 71941 71940 71939 71938 | Q143: =Table4[[#This Row],[21]] -> 18.07 | R143: =J143*0.2/2080 -> 15.87 | S143: 1.2 | T143: 1 | U143: =SUBTOTAL(9,Table4[[#This Row],[18]:[20]]) -> 18.07 | V143: 100 | W143: 60 | X143: https://www.ijs.si/ijsw/Znotraj%20hi%C5%A1e/Desno?action=AttachFile&do=get&target=ARIS_Evidenca_opreme_2024.xlsx | Y143: 6 | Z143: 4 | AA143: 3 | AB143: 60 | AC143: =Table4[[#This Row],[11]] -> P_XIX_001 | AD143: 0 | AE143: 5 | AF143: 100 | AG143: =Table4[[#This Row],[4]] -> I0-0005 | AH143: =Table4[[#This Row],[5]] -> Matic Lozinšek | AI143: 35 | AJ143: N1-0225 | AK143: Matic Lozinšek | AL143: 35 | AM143: ERC StG HiPeR-F | AN143: Matic Lozinšek | AO143: 30
A144: 106 | B144: Institut "Jožef Stefan" | D144: P2-0026 | E144: Leon Cizelj | F144: 7025 | G144: Nadgradnja visokozmogljive računske gruče | H144: 2021 | I144: UPGRADE OF HIGH PERFORMANCE COMPUTE CLUSTER | J144: 358,879.83 | K144: P_XIX_002 | L144: Po predhodnem dogovoru na naslov bojan.zefran@ijs.si ali sandi.cimerman@ijs.si | M144: Advance contact to address bojan.zefran@ijs.si or sandi.cimerman@ijs.si | N144: Računalniška gruča za izvajanje znanstvenih računskih simulacij. Hitra mrežna komunikacija med računskimi vozlišči omogoča dobro skaliranje večprocesnih izračunov. Oprema vsebuje 24 računskih vozlišč po 2 procesorja, vsak z 28 jedri in 196GB spomina. | O144: Compute cluster for fast scientific calculations. Fast interconnect enables a good calculation scalability of multinode multicore jobs. Equipment consists of 23 compute nodes with 2 socket processors. each with 28 cores and 196GB of memory. | P144: 65270 | Q144: =Table4[[#This Row],[21]] -> 43.13 | R144: =J144*0.25/2080 -> 43.13 | S144: 0.01 EUR/jedro/ura | T144: 0.01 EUR/jedro/ura | U144: =SUBTOTAL(9,Table4[[#This Row],[18]:[20]]) -> 43.13 | V144: 100 | W144: 75 | X144: https://www.ijs.si/ijsw/Znotraj%20hi%C5%A1e/Desno?action=AttachFile&do=get&target=ARIS_Evidenca_opreme_2024.xlsx | Y144: 6 | Z144: 1 | AA144: 4 | AB144: 26 | AC144: =Table4[[#This Row],[11]] -> P_XIX_002 | AD144: 0 | AE144: 4 | AF144: 100 | AG144: =Table4[[#This Row],[4]] -> P2-0026 | AH144: =Table4[[#This Row],[5]] -> Leon Cizelj | AI144: 50 | AJ144: P2-0405-1 | AK144: Boštjan Končar | AL144: 10 | AM144: L2-1827 | AN144: Boštjan Končar | AO144: 10 | AP144: L2-1828 | AQ144: Matjaž Leskovar | AR144: 10 | AS144: NC-0026 | AT144: Iztok Tiselj | AU144: 10 | AV144: PR-10884 | AW144: Boštjan Končar | AX144: 10
A145: 106 | B145: Institut "Jožef Stefan" | D145: P2-0073 | E145: Luka Snoj | F145: 27819 | G145: Nadgradnja računalniške gruče po sistemu »na ključ« | H145: 2021 | I145: Upgrade of the HPC computer cluster | J145: 300,536.27 | K145: P_XIX_003 | L145: Glede na proste kapacitete in ob predhodnem dogovoru je oprema na voljo preko bojan.zefran@ijs.si. Več informacij je na: https://f8.ijs.si/gruce-f8/. | M145: Depending on the availability of the resources the arrangements can be made through bojan.zefran@ijs.si. More information on: https://f8.ijs.si/gruce-f8/. | N145: Računalniška gruča z večjim številom jeder, namenjena izračunom, ki kjer lahko uporabimo paralelno računanje za pospešitev računanja. Nadgradnja gruče vsebuje 20 računskih vozlišč, ki vsebujejo po 2 28 jedrna procesorja in vsaj 192 GB spomina. | O145: Compute cluster with large number of CPU cores for simulations that can take advantage of parallel computing. Cluster upgrade consists of 20 nodes with 2 28-core processors and at least 192 GB of memory. | P145: 65270 | Q145: =Table4[[#This Row],[21]] -> 28.90 | R145: =J145*0.2/2080 -> 28.90 | S145: 0.01 EUR/jedro/ura | T145: 0.01 EUR/jedro/ura | U145: =SUBTOTAL(9,Table4[[#This Row],[18]:[20]]) -> 28.90 | V145: 100 | W145: 60 | X145: https://www.ijs.si/ijsw/Znotraj%20hi%C5%A1e/Desno?action=AttachFile&do=get&target=ARIS_Evidenca_opreme_2024.xlsx | Y145: 6 | Z145: 1 | AA145: 4 | AB145: 26 | AC145: =Table4[[#This Row],[11]] -> P_XIX_003 | AD145: 0 | AE145: 5 | AF145: 100 | AG145: =Table4[[#This Row],[4]] -> P2-0073 | AH145: =Table4[[#This Row],[5]] -> Luka Snoj | AI145: 35 | AJ145: PR-11716-1 (EUROfusion) | AK145: Raziskovalci odseka F-8 | AL145: 30 | AM145: P2-0405-23 (EUROfusion education) | AN145: Domen Kotnik, Andrej Žohar | AO145: 35
A146: 106 | B146: Institut "Jožef Stefan" | D146: P1-0044 | E146: Rok Žitko | F146: 23567 | G146: Razširitev računske gruče s hitrimi rezinami z veliko pomnilnika | H146: 2021 | I146: Expansion of the computer cluster with fast high-memory nodes | J146: 169,404.39 | K146: P_XIX_023 | L146: Uporaba je možna preko vmesne programske opreme ARC po predhodnem dogovru (rok.zitko@ijs.si). | M146: Uporaba je možna preko vmesne programske opreme ARC po predhodnem dogovru (rok.zitko@ijs.si). | N146: Izvajanje računskih nalog na področjih fizike trdne snovi, fizike osnovnih delcev in biofizke. | O146: Computing in the fields of solid state physics, particle physics, biophysics and quantum physics. | P146: 71881, 71882 | Q146: =Table4[[#This Row],[21]] -> 27.36 | R146: =J146*0.25/2080 -> 20.36 | S146: 4.00 | T146: 3.00 | U146: =SUBTOTAL(9,Table4[[#This Row],[18]:[20]]) -> 27.36 | V146: 100 | W146: 75 | X146: https://www.ijs.si/ijsw/Znotraj%20hi%C5%A1e/Desno?action=AttachFile&do=get&target=ARIS_Evidenca_opreme_2024.xlsx | Y146: 6 | Z146: 1 | AA146: 4 | AB146: 26 | AC146: =Table4[[#This Row],[11]] -> P_XIX_023 | AD146: 0 | AE146: 4 | AF146: 100 | AG146: =Table4[[#This Row],[4]] -> P1-0044 | AH146: =Table4[[#This Row],[5]] -> Rok Žitko | AI146: 30 | AJ146: P1-0035 | AK146: Jernej F. Kamenik | AL146: 30 | AM146: P1-0055 | AN146: Primož Ziherl | AO146: 30 | AP146: P1-0416 | AQ146: Rok Žitko | AR146: 10
A147: 106 | B147: Institut "Jožef Stefan" | D147: P1-0125 | E147: Janez Dolinšek | F147: 3939 | G147: Hladilnik 3He za SQUID magnetometer 7T | H147: 2021 | I147: 3He refrigerator for SQUID magnetometer 7T | J147: 241,996.00 | K147: P_XIX_024 | L147: Za uporabo opreme kontaktirajte prof. dr. Janeza Dolinška (janez.dolinsek@ijs.si) na Institutu Jožefa Stefana kadarkoli. Meritve izvajajo člani naše raziskovalne skupine, zunanji uporabniki lahko prisostvujejo meritvam. | M147: To use the equipment, please contact prof. dr. Janez Dolinšek (janez.dolinsek@ijs.si) at the Jožef Stefan Institute anytime. The measurements are executed by our trained researchers. External users can take part in the measurements. | N147: Hladilnik 3He za SQUID magnetometer omogoča meritve magnetnih lastnosti materialov v območju temperatur do 400 mK nad absolutno ničlo v magnetnih poljih do 7 T. | O147: 3He refrigerator for SQUID magnetometer enables measurements of magnetic properties of materials in the range of temperatures down to 400 mK above absolute zero at magnetic fields up to 7 T. | P147: 60901 | Q147: =Table4[[#This Row],[21]] -> 60.00 | R147: =J147*0.2/2080 -> 23.27 | S147: 24.35 | T147: 12.38 | U147: =SUBTOTAL(9,Table4[[#This Row],[18]:[20]]) -> 60.00 | V147: 100 | W147: 60 | X147: https://www.ijs.si/ijsw/Znotraj%20hi%C5%A1e/Desno?action=AttachFile&do=get&target=ARIS_Evidenca_opreme_2024.xlsx | Y147: 4 | Z147: 1 | AA147: 4 | AB147: 44 | AC147: =Table4[[#This Row],[11]] -> P_XIX_024 | AD147: 0 | AE147: 5 | AF147: 100 | AG147: =Table4[[#This Row],[4]] -> P1-0125 | AH147: =Table4[[#This Row],[5]] -> Janez Dolinšek | AI147: 100
A148: 106 | B148: Institut "Jožef Stefan" | D148: P6-0282 | E148: Marijan Nečemer | F148: 10677 | G148: Mikro-XRF analitski mikroskop | H148: 2021 | I148: Mikro XRF for elemental imaging | J148: 207,498.39 | K148: P_XIX_036 | L148: po dogovoru marijan.necemer@ijs.si | M148: by agreement marijan.necemer@ijs.si | N148: elementni imaging z micro XRF | O148: elemental imaging by XRF microscop | P148: 71646 | Q148: =Table4[[#This Row],[21]] -> 78.03 | R148: =J148*0.2/2080 -> 19.95 | S148: 14.62 | T148: 43.46 | U148: =SUBTOTAL(9,Table4[[#This Row],[18]:[20]]) -> 78.03 | V148: 100 | W148: 60 | X148: https://www.ijs.si/ijsw/Znotraj%20hi%C5%A1e/Desno?action=AttachFile&do=get&target=ARIS_Evidenca_opreme_2024.xlsx | Y148: 3 | Z148: 1 | AA148: 6 | AB148: 4 | AC148: =Table4[[#This Row],[11]] -> P_XIX_036 | AD148: 0 | AE148: 5 | AF148: 100 | AG148: =Table4[[#This Row],[4]] -> P6-0282 | AH148: =Table4[[#This Row],[5]] -> Marijan Nečemer | AI148: 100
A149: 106 | B149: Institut "Jožef Stefan" | D149: P2-0076 | E149: Igor Mekjavić | F149: 14676 | G149: Klimatska komora | H149: 2021 | J149: 153,428.63 | K149: P_XIX_041 | P149: 69769, 71260 | Q149: =Table4[[#This Row],[21]] -> 14.75 | R149: =J149*0.2/2080 -> 14.75 | U149: =SUBTOTAL(9,Table4[[#This Row],[18]:[20]]) -> 14.75 | V149: 100 | W149: 60 | X149: https://www.ijs.si/ijsw/Znotraj%20hi%C5%A1e/Desno?action=AttachFile&do=get&target=ARIS_Evidenca_opreme_2024.xlsx | Y149: 6 | Z149: 4 | AA149: 3 | AB149: 34 | AC149: =Table4[[#This Row],[11]] -> P_XIX_041 | AD149: 0 | AE149: 5 | AF149: 100 | AG149: =Table4[[#This Row],[4]] -> P2-0076 | AH149: =Table4[[#This Row],[5]] -> Igor Mekjavić | AI149: 100
A150: 106 | B150: Institut "Jožef Stefan" | D150: P2-0082 | E150: Miran Mozetič | F150: 10429 | G150: Plazemska naprava za in-situ meritve VUV in UV sevanja med obdelavo površin trdnih materialov | H150: 2021 | I150: Plasma device for in-situ measurements of VUV and UV radiation during treatment of solid materials | J150: 139,243.54 | K150: P_XIX_042 | L150: Oprema je običajno dostopna od ponedeljka do petka med 8:00 in 14:00. Za dogovor o uporabi se je potrebno dogovoriti z vodjo Odseka za tehnologijo površin in skrbnikom. Opravljanje analiz glede n.a ceno po dogovoru | M150: Equipment is usually available Monday through Friday between 8:00 and 14:00. It is necessary to talk about the use beforehand with the head of the Department of Surface Engineering and equipment's caretaker. Upon agreement, performing price-based analyzes. | N150: Sistem je primeren za obdelavo trdnih vzorcev, ki so nameščeni v plazemsko komoro ali pa padajo skoznjo. Sistem omogoča obdelavo s plazmo nizke (nekaj 100 W) in visoke (nekaj 10 kW) moči. Omogoča tudi sprotno spremljenje optičnih spektrov v UV in VUV področju. | O150: The system is suitable for processing solid samples that are placed in the plasma chamber or fall through it. The system allows plasma processing of low (some 100 W) and high (some 10 kW) power. It also enables real-time monitoring of optical spectra in the UV and VUV range. | P150: 71454 | Q150: =Table4[[#This Row],[21]] -> 50.39 | R150: 13.39 | S150: 7 | T150: 30 | U150: =SUBTOTAL(9,Table4[[#This Row],[18]:[20]]) -> 50.39 | V150: 100 | W150: 60 | X150: https://www.ijs.si/ijsw/Znotraj%20hi%C5%A1e/Desno?action=AttachFile&do=get&target=ARIS_Evidenca_opreme_2024.xlsx | Y150: 1 | Z150: 3 | AA150: 2 | AB150: 4 | AC150: =Table4[[#This Row],[11]] -> P_XIX_042 | AD150: 70 | AE150: 5 | AF150: 100 | AG150: =Table4[[#This Row],[4]] -> P2-0082 | AH150: =Table4[[#This Row],[5]] -> Miran Mozetič | AI150: 25 | AJ150: P2-0405 | AK150: Rok Zaplotnik | AL150: 30 | AM150: L2-2617 | AN150: Rok Zaplotnik, Gregor Primc | AO150: 25 | AP150: L2-2616 | AQ150: Miran Mozetič | AR150: 20
A151: 106 | B151: Institut "Jožef Stefan" | D151: P1-0135 | E151: Vladimir Cindro | F151: 9081 | G151: Avtomatska preskuševalna postaja elektronskih komponent | H151: 2021 | I151: Automatic probe station for testing of electronic components | J151: 70,839.93 | K151: P_XIX_046 | L151: Oprema je dostopna po predhodnem dogovoru. Kontakt preko e-pošte na naslovu vladimir.cindro@ijs.si | M151: Eqiuipment is available on demand. Please contact vladimir. cindro@ijs.si | N151: Oprema je namenjena testiranju mikrovezij in merjenju lastnosti strukturiranih polprevodnikov. Kontaktiranje je pogojeno s probno kartico, ki je posebej izdelana za merjeno vezje. | O151: The equipment is intended for testing microcircuits and measuring the properties of structured semiconductors. Contacting is conditioned by a test card, which is specially designed for the measured circuit. | P151: 71574 | Q151: =Table4[[#This Row],[21]] -> 26.81 | R151: 6.81 | S151: 10 | T151: 10 | U151: =SUBTOTAL(9,Table4[[#This Row],[18]:[20]]) -> 26.81 | V151: 100 | W151: 60 | X151: https://www.ijs.si/ijsw/Znotraj%20hi%C5%A1e/Desno?action=AttachFile&do=get&target=ARIS_Evidenca_opreme_2024.xlsx | Y151: 3 | Z151: 12 | AA151: 5 | AB151: 38 | AC151: =Table4[[#This Row],[11]] -> P_XIX_046 | AD151: 0 | AE151: 5 | AF151: 100 | AG151: =Table4[[#This Row],[4]] -> P1-0135 | AH151: =Table4[[#This Row],[5]] -> Vladimir Cindro | AI151: 100
A152: 106 | B152: Institut "Jožef Stefan" | D152: P1-0102 | E152: Benjamin Zorko | F152: 15811 | G152: 320 kV rentgenski sistem za realizacijo dozimetričnih standardov | H152: 2021 | I152: 320 kV X - ray system for realization of dosimetric standards | J152: 104,285.90 | K152: P_XIX_060 | L152: Oprema je nameščena v Laboratoriju za dozimetrične standarde na IJS. Ker gre za prostore, ki so pod stalnim video sevalnim nadzorom, se je potrebno predhodno dogovoriti z vodjem laboratorija, Boštjanom Črničem, mag. med. fiz. Delo v laboratoriju lahko poteka le pod nadzorom vodje laboratorija. | M152: The equipment is installed in the Laboratory for Dosimetric Standards at the JSI. The facilities are under permanent video and radiation surveillance. Prior the use of the equipment, the arrangements must be made with the head of the laboratory, Boštjan Črnič, mag. med. phys. The work in the laboratory can only take place under the supervision of the head of the laboratory. | N152: Predmet javnega naročila je bila dobava, montaža in zagon 320 kV rentgenskega sistema za realizacijo dozimetričnih standardov, ki ga bomo uporabljali za razširitev obsega kalibracij nacionalnega meroslovnega sistema in raziskovalne študije na različnih raziskovalnih področjih fizike, tehnike in drugih ved. 320 kV rentgenski sistem z rentgensko cevjo MXR-320/26 bo omogočal emisijo fotonov z energijami od 15 do 320 KeV. | O152: The subject of public tender is supply, installation and start up of of the 320 kV X-ray system for the realization of dosimetric standards, which will be used to broaden the scope of calibrations in the framework of the national metrology system and research studies in various research fields of physics, engineering and other sciences. The 320 kV X-ray system with X-ray tube MXR 320/26 will enable the emission of photons with energies from 15 to 320 KeV. | P152: 70035 | Q152: =Table4[[#This Row],[21]] -> 32.05 | R152: 10.03 | S152: 6.02 | T152: 16 | U152: =SUBTOTAL(9,Table4[[#This Row],[18]:[20]]) -> 32.05 | V152: 100 | W152: 60 | X152: https://www.ijs.si/ijsw/Znotraj%20hi%C5%A1e/Desno?action=AttachFile&do=get&target=ARIS_Evidenca_opreme_2024.xlsx | Y152: 1 | Z152: 3 | AA152: 1 | AB152: 60 | AC152: =Table4[[#This Row],[11]] -> P_XIX_060 | AD152: 0 | AE152: 5 | AF152: 100 | AG152: =Table4[[#This Row],[4]] -> P1-0102 | AH152: =Table4[[#This Row],[5]] -> Benjamin Zorko | AI152: 85 | AJ152: PR-00608 | AK152: Klara Poiškruh | AL152: 5 | AM152: PR-11529 | AN152: Boštjan Črnič | AO152: 10
A153: 106 | B153: Institut "Jožef Stefan" | D153: P2-0103 | E153: Sašo Džeroski | F153: 11130 | G153: Oprema za uporabo metod umetne inteligence v znanosti | H153: 2021 | I153: Equipment for use of AI methods in science | J153: 243,001.63 | K153: P_XIX_068 | L153: Čas dostopa do opreme vsak delovni dan od 8:00 do 16:00 po predhodnem dogovoru s skrbnikom. Glede pogojev dostopa in razpoložljivosti kontaktirati Martina Žnidaršiča (martin.znidarsic@ijs.si) | M153: The equipment is avaliable upon request every day from 8 am to 4 pm. For access conditions and availabilty contact Martin Žnidaršič (martin.znidarsic@ijs.si) | N153: GPU in CPU strežniki za razvoj, testiranje in uporabo metod umetne inteligence | O153: GPU and CPU servers for the development, testing and application of AI methods | P153: 71713 | Q153: =Table4[[#This Row],[21]] -> 67.51 | R153: =J153*0.25/2080 -> 29.21 | S153: 17.88 | T153: 20.42 | U153: =SUBTOTAL(9,Table4[[#This Row],[18]:[20]]) -> 67.51 | V153: 100 | W153: 75 | X153: https://www.ijs.si/ijsw/Znotraj%20hi%C5%A1e/Desno?action=AttachFile&do=get&target=ARIS_Evidenca_opreme_2024.xlsx | Y153: 6 | Z153: 1 | AA153: 5 | AB153: 25 | AC153: =Table4[[#This Row],[11]] -> P_XIX_068 | AD153: 0 | AE153: 4 | AF153: 100 | AG153: =Table4[[#This Row],[4]] -> P2-0103 | AH153: =Table4[[#This Row],[5]] -> Sašo Džeroski | AI153: 100
A154: 106 | B154: Institut "Jožef Stefan" | D154: P1-0102 | E154: Matjaž Vencelj | F154: 20207 | G154: Vakuumska eksperimentalna postaja za jedrsko astrofiziko | H154: 2021 | I154: Experimental vacuum station for nuclear astrophysics | J154: 147,972.62 | K154: P_XIX_077 | L154: Oprema je dostopna po predhodnem dogovoru na naši lokaciji. Kontakt preko e-pošte na naslovu matjaz.vencelj@ijs.si | M154: Equipment available on demand, at our location only. Please contact matjaz.vencelj@ijs.si | N154: Oprema je namenjena za rekonfigurabilne merilne postavitve v nizkoenergijski jedrski astrofiziki. | O154: The equipment serves as a reconfigurable experimental station for low-energy nuclear astrophysics experiments. | P154: 71714 | Q154: =Table4[[#This Row],[21]] -> 44.23 | R154: 14.23 | S154: 20 | T154: 10 | U154: =SUBTOTAL(9,Table4[[#This Row],[18]:[20]]) -> 44.23 | V154: 100 | W154: 60 | X154: https://www.ijs.si/ijsw/Znotraj%20hi%C5%A1e/Desno?action=AttachFile&do=get&target=ARIS_Evidenca_opreme_2024.xlsx | Y154: 6 | Z154: 4 | AA154: 3 | AB154: 50 | AC154: =Table4[[#This Row],[11]] -> P_XIX_077 | AD154: 0 | AE154: 5 | AF154: 100 | AG154: =Table4[[#This Row],[4]] -> P1-0102 | AH154: =Table4[[#This Row],[5]] -> Matjaž Vencelj | AI154: 100
A155: 106 | B155: Institut "Jožef Stefan" | D155: P2-0105 | E155: Tadej Rojac | F155: 24272 | G155: Merilni sistemi za karakterizacijo kompleksnih termo-elektro-mehanskih lastnosti feroelektričnih materialov | H155: 2021 | I155: Measurement systems for characterization of complex thermo-electro-mechanical properties of ferroelectric materials | J155: 199,703.91 | K155: P_XIX_080 | L155: Oprema je dostopna po predhodnem dogovoru preko email naslova tadej.rojac@ijs.si. Uporaba večjega dela opreme zahteva predhodno učenje in demonstracijo, ki se jo izvede po predhodnem dogovoru na isti email naslov.. | M155: The equipment can be booked by contacting the reponsible person (tadej.rojac@ijs.si). The usage of a great part of the equipment requires training and demonstration , which can be arranged through the same contact. | N155: Oprema je namenjena celoviti karakterizaciji elektro-termo-mehanskih lastnosti feroelektirčnih in sorodnih materialov, kar vključuje dielektričnost, piezoelektričnost, piroelektričnost, električno prevodnost in termoelektrični odziv. Meritve je možno opraviti na raznih vzorcih raznih oblik, kot so volumenska kermika, debele in tanke plasti. | O155: The equipment is intended for a complete set of electro-thermo-mechanical measurements of ferroelectric and related materials, including dielectric permittivity, pyezoelectricity, piroelectricity, electrical conductivity and thermoelectric effect. The measurements can be performed on samples of different shapes, such as ceramics, thick and thin films. | P155: 69662, 69766, 69767, 69795, 69765, 70303, 70302, 70452, 70576, 70631, 70630, 70629, 70628,70627, 71154, 71146, 70622, 70621, 70620, 70619, 70618, 71187, 54036, 71453, 71458, 71586 | Q155: =Table4[[#This Row],[21]] -> 81.74 | R155: 19.20 | S155: 20 | T155: 42.54 | U155: =SUBTOTAL(9,Table4[[#This Row],[18]:[20]]) -> 81.74 | V155: 100 | W155: 60 | X155: https://www.ijs.si/ijsw/Znotraj%20hi%C5%A1e/Desno?action=AttachFile&do=get&target=ARIS_Evidenca_opreme_2024.xlsx | Y155: 1 | Z155: 4 | AA155: 2 | AB155: 44 | AC155: =Table4[[#This Row],[11]] -> P_XIX_080 | AD155: 42.54 | AE155: 5 | AF155: 100 | AG155: =Table4[[#This Row],[4]] -> P2-0105 | AH155: =Table4[[#This Row],[5]] -> Tadej Rojac | AI155: 100
A156: 106 | B156: Institut "Jožef Stefan" | D156: P1-0125 | E156: Mirela Dragomir | F156: 31976 | G156: Oprema za študij lastnosti in strukture materialov pod visokimi tlaki | H156: 2021 | I156: Equipment for the investigation of structure and properties of materials under high pressure | J156: 74,522.09 | K156: P_XIX_083 | L156: Oprema se nahaja v »Laboratoriju za kemijo pod ekstremnimi pogoji« (http://eccl.ijs.si) ECCL. Uporaba opreme je omogočena samo za strokovno usposobljene uporabnike. Dostop se uredi preko dogovora s kontaktno osebo, dr. Mirelo Dragomir. Cena meritev je odvisna od zahtevnosti eksperimentov in interpretacije podatkov. Informacijo o ceni dobite od skrbnika ob dogovoru za izvedbo eksperimentov. Čas dostopa je odvisen od zasedenosti opreme. | M156: The equipment is located at the "Extreme Conditions Chemistry Laboratory" under (http://eccl.ijs.si) ECCL. Researchers with proper training on the high-pressure equipment can get access through the contact person, dr. Mirela Dragomir. The price depends on the type of measurement and the complexity of data collection and interpretation. The information about the price is obtained from the contact person before the agreement for measurements. The availability of the equipment depends on the ongoing research activities in the eccl. | N156: Oprema nam omogoča preiskave povezav struktura–lastnosti pod zelo visokim tlakom, in sicer preiskave sprememb strukture, magnetnih in elektronskih lastnosti snovi pod hidrostatskim tlakom v območju GPa. Oprema vključuje specializirane, zelo natančne visokotlačne celice z diamantnimi nakovali. | O156: The equipment enables the investigate the structure-properties relationship under high pressures (Gpa range), namely investigations of changes in the structure, magnetic and electronic properties. The equipment includes specialized, high-precision diamond anvil cells. | P156: 71321 | Q156: =Table4[[#This Row],[21]] -> 69.71 | R156: 7.17 | S156: 20 | T156: 42.54 | U156: =SUBTOTAL(9,Table4[[#This Row],[18]:[20]]) -> 69.71 | V156: 100 | W156: 60 | X156: https://www.ijs.si/ijsw/Znotraj%20hi%C5%A1e/Desno?action=AttachFile&do=get&target=ARIS_Evidenca_opreme_2024.xlsx | Y156: 3 | Z156: 11 | AA156: 4 | AB156: 60 | AC156: =Table4[[#This Row],[11]] -> P_XIX_083 | AD156: 42.54 | AE156: 5 | AF156: 100 | AG156: =Table4[[#This Row],[4]] -> P1-0125 | AH156: =Table4[[#This Row],[5]] -> Mirela Dragomir | AI156: 50 | AJ156: J2-2496 | AK156: Mirela Dragomir | AL156: 50
A157: 106 | B157: Institut "Jožef Stefan" | D157: P2-0091 | E157: Srečo Davor Škapin | F157: 11093 | G157: Nadgradnja rentgenskih difraktometrov | H157: 2021 | I157: Upgrading of X-Ray powder diffractometer with new operating system and data databases. | J157: 65,410.96 | K157: P_XIX_088 | L157: Po predhodnem dogovoru s skrbnikom (matjaz.spreitzer@ijs.si) | M157: By prior arrangement with corresponding person (matjaz.spreitzer@ijs.si) | N157: Nova oprema omogoča zanesljivejše in kvalitetnejše analize kristaliničnih materialov, tako v obliki prahov, kot tudi ploščic, tankih plasti. | O157: X-Ray diffraction analysis | P157: 38402 71185 71184 70787 70786 70785 70784 | Q157: =Table4[[#This Row],[21]] -> 55.00 | R157: 8.58 | S157: 16.95 | T157: 29.47 | U157: =SUBTOTAL(9,Table4[[#This Row],[18]:[20]]) -> 55.00 | V157: 100 | W157: 60 | X157: https://www.ijs.si/ijsw/Znotraj%20hi%C5%A1e/Desno?action=AttachFile&do=get&target=ARIS_Evidenca_opreme_2024.xlsx | Y157: 3 | Z157: 8 | AA157: 1 | AB157: 4 | AC157: =Table4[[#This Row],[11]] -> P_XIX_088 | AD157: 0 | AE157: 5 | AF157: 100 | AG157: =Table4[[#This Row],[4]] -> P2-0091 | AH157: =Table4[[#This Row],[5]] -> Srečo Davor Škapin | AI157: 50 | AJ157: J1-3026 | AK157: Srečo Škapin | AL157: 25 | AM157: J1-3025 | AN157: Srečo Škapin | AO157: 25
A158: 106 | B158: Institut "Jožef Stefan" | D158: I0-0005 | E158: Miran Čeh | F158: 3937 | G158: State-of-the-art vrstični presevni elektronski mikroskop z ultimativno slikovno in energijsko ločljivostjo | H158: 2021 | I158: State-of-the-art scanning transmission electron microscope with ultimate imaging and energy resolution | J158: 3,057,036.05 | K158: P_XIX_108 | L158: K nakupu mikroskopa je prispevalo sredstva 14 odsekov IJS in KI in IMT. Čas dostopa posameznih deležnikov do uporabnega časa na mikroskopu je sorazmeren z višino sofinanciranja nakupa mikroskopa. Do mikroskopa lahko dostopajo vsi kvalificirani operaterji preko on-line rezervacijskega sistema. | M158: Funds to purchase the microscope were provided, apart from the ARRS, by 14 JSI departments as well as by the KI and IMT. The operating time to the microscope for individual stakeholders is proportional to the amount of their co-financing of the purchase. The microscope can be accessed by all qualified operators via the online reservation system. | N158: Mikroskop je namenjen preiskavam strukture in kemijske sestave anorganskih in organskih materialov na nanometrskem, atomarnem in sub-atomarnem nivoju. Gre za vrhunsko aparaturo, ki je po svojih performansah med najboljšimi v EU in je predpogoj za izvajanje konkurenčnih raziskava na področju materialov in nanoznanosti. | O158: The microscope is intended for investigations of the structure and chemical composition of inorganic and organic materials at the nanometer, atomic and sub-atomic level. It is a state-of-the-art equipment and one of the best in the EU in terms of its performance. As such it is a prerequisite for conducting competitive research in the field of materials and nanosciences. | P158: 71259 | Q158: =Table4[[#This Row],[21]] -> 293.95 | R158: 293.95 | S158: cca 140.000,00 EUR/leto | T158: 2 FTE-ja | U158: =SUBTOTAL(9,Table4[[#This Row],[18]:[20]]) -> 293.95 | V158: 100 | W158: 60 | X158: https://www.ijs.si/ijsw/Znotraj%20hi%C5%A1e/Desno?action=AttachFile&do=get&target=ARIS_Evidenca_opreme_2024.xlsx | Y158: 5 | Z158: 2 | AA158: 0 | AB158: 4 | AC158: =Table4[[#This Row],[11]] -> P_XIX_108 | AD158: 2 FTE-ja | AE158: 5 | AF158: 100 | AG158: =Table4[[#This Row],[4]] -> I0-0005 | AH158: =Table4[[#This Row],[5]] -> Miran Čeh | AI158: 10 | AJ158: Mikroskop uporablja 10 programskih skupin IJS | AK158: Mikroskop uporablja 10 programskih skupin IJS | AL158: 90
A159: 106 | B159: Institut "Jožef Stefan" | D159: P1-0207 | E159: Igor Križaj | F159: 412 | G159: Preparativna ultracentrifuga z rotorji in rezalnikom centrifugirk | H159: 2021 | I159: Preparative ultracentrifuge with rotors and tube slicer | J159: 129,551.72 | K159: P_XIX_109 | L159: Oprema je nameščena v laboratoriju B417D Odseka za molekularne in biomedicinske znanosti (IJS). Uporaba opreme po predhodnem dogovoru (jernej.sribar@ijs.si). | M159: The equipment is installed in laboratory B417D of the Department of Molecular and Biomedical Sciences (JSI). The equipment is available by prior arrangement (jernej.sribar@ijs.si). | N159: Oprema omogoča centrifugiranje vzorcev pri visokih obratih in omogoča pripravo subcelularnih frakcij, ločbo lipoproteinov, virusov, virusnih delcev, nanodelcev ter izolacijo RNA in plazmidne DNA. | O159: The equipment enables high-speed centrifugation of samples and allows the preparation of subcellular fractions, the separation of lipoproteins, viruses, viral particles, nanoparticles and the isolation of RNA and plasmid DNA. | P159: 71427 | Q159: =Table4[[#This Row],[21]] -> 60.33 | R159: 12.46 | S159: 0.60 | T159: 47.27 | U159: =SUBTOTAL(9,Table4[[#This Row],[18]:[20]]) -> 60.33 | V159: 100 | W159: 60 | X159: https://www.ijs.si/ijsw/Znotraj%20hi%C5%A1e/Desno?action=AttachFile&do=get&target=ARIS_Evidenca_opreme_2024.xlsx | Y159: 2 | Z159: 2 | AA159: 1 | AB159: 4 | AC159: =Table4[[#This Row],[11]] -> P_XIX_109 | AD159: 0 | AE159: 5 | AF159: 100 | AG159: =Table4[[#This Row],[4]] -> P1-0207 | AH159: =Table4[[#This Row],[5]] -> Igor Križaj | AI159: 70 | AJ159: P4-0127 | AK159: Emanuela Senjor | AL159: 30
A160: 106 | B160: Institut "Jožef Stefan" | D160: P2-0001 | E160: Gregor Dolanc | F160: 15735 | G160: Oprema za raziskave in aplikacije na področju tehnologije vodenja | H160: 2021 | I160: Equipment for research and application of the field of control technologies | J160: 86,918.89 | K160: P_XIX_112 | L160: Oprema je dostopna po dogovoru, kontakt Gregor Dolanc (gregor.dolanc@ijs.si) | M160: Equipment is available upon agreement, please contact Gregor Dolanc (gregor.dolanc@ijs.si) | N160: Računalniška oprema za obdelavo podatkov, modeliranje in razvoj sistemov za vodenje. Merilna oprema proizvajalca Moor Electronics za izvedbo meritev na pacientih (laserski merilnik pretoka krvi, merilnik nivoja kisika in temperature v tkivih, merilnik nivoja globoke koncentracije kisika v tkivih) | O160: Computer equipment for data processing, modeling and development of control systems. Measuring equipment from Moor Electronics to perform measurements on patients (laser blood flow meter, oxygen level and temperature meter, deep tissue oxygen level meter) | P160: 69812 69821 70056 70021 70022 70023 70024 70585 71135 71133 71430 71263 71264 | Q160: =Table4[[#This Row],[21]] -> 28.36 | R160: 8.36 | S160: 10 | T160: 10 | U160: =SUBTOTAL(9,Table4[[#This Row],[18]:[20]]) -> 28.36 | V160: 100 | W160: 60 | X160: https://www.ijs.si/ijsw/Znotraj%20hi%C5%A1e/Desno?action=AttachFile&do=get&target=ARIS_Evidenca_opreme_2024.xlsx | Y160: 6 | Z160: 1 | AA160: 3 | AB160: 4, 20, 25, 26, 59, 63 | AC160: =Table4[[#This Row],[11]] -> P_XIX_112 | AD160: 40 | AE160: 5 | AF160: 100 | AG160: =Table4[[#This Row],[4]] -> P2-0001 | AH160: =Table4[[#This Row],[5]] -> Gregor Dolanc | AI160: 100
A161: 106 | B161: Institut "Jožef Stefan" | D161: P2-0084 | E161: Sašo Šturm | F161: 19030 | G161: Ultra visokotlačni tekočinski kromatograf s PDA detektorjem | H161: 2021 | I161: Ultra-Performance Liquid Chromatography apparatus with PDA detector | J161: 90,401.80 | K161: P_XIX_120 | L161: Oprema bo večino časa zasedena, ker jo bo uporabljal robot. Do opreme bo mogoče dostopati le po predhodnem dogovoru s skrbnikom sistema, saj bo nameščena v sobi, kjer bo delal robot. | M161: The equipment will be occupied most of the time because it will be used by a robot. The equipment will be accessible only by prior arrangement with the system administrator, as it will be installed in the ro | N161: UPLC je kromatografska tehnika, ki se uporablja za ločevanje, identifikacijo in kvantifikacijo organskih spojin, raztopljenih v tekoči fazi. | O161: UPLC is a chromatography technique used for separation, identification and quantification of organic compounds dissolved in liquid phase. | P161: 70604 | Q161: =Table4[[#This Row],[21]] -> 45.00 | R161: 8.69 | S161: 6.31 | T161: 30 | U161: =SUBTOTAL(9,Table4[[#This Row],[18]:[20]]) -> 45.00 | V161: 100 | W161: 60 | X161: https://www.ijs.si/ijsw/Znotraj%20hi%C5%A1e/Desno?action=AttachFile&do=get&target=ARIS_Evidenca_opreme_2024.xlsx | Y161: 3 | Z161: 11 | AA161: 5 | AB161: 4 | AC161: =Table4[[#This Row],[11]] -> P_XIX_120 | AD161: 30 | AE161: 5 | AF161: 100 | AG161: =Table4[[#This Row],[4]] -> P2-0084 | AH161: =Table4[[#This Row],[5]] -> Sašo Šturm | AI161: 100
A162: 106 | B162: Institut "Jožef Stefan" | D162: P1-0099 | E162: Igor Muševič | F162: 9089 | G162: Sistem za razvoj integriranih optičnih logičnih vezij | H162: 2021 | J162: 261,167.70 | K162: P_XIX_122 | L162: Rezervacije dostopa do opreme se opravljajo na povezavi: https://teamup.com/login . Termin se določi v soglasju s skrbnikom opreme prof. I.Muševičem | M162: Reservations for the use of equipment are registered at: https://teamup.com/login The time slot for the measurements is coordinated by the person in charge of the equipment, Prof. I.Muševič. | N162: Nastavljivi nanosekundni laser z osnovno valovno dolžino 532 nm in variabilno valovno dolžino nastavljivega žarka v območu 400 nm do 2400 nm. | O162: Nanosecond tuneable laser with base output at 532 nm and tuneable output frim 400 nm to 2400 nm. | P162: 74775 | Q162: =Table4[[#This Row],[21]] -> 59.87 | R162: 25.11 | S162: 10 | T162: 24.76 | U162: =SUBTOTAL(9,Table4[[#This Row],[18]:[20]]) -> 59.87 | V162: 100 | W162: 60 | X162: https://www.ijs.si/ijsw/Znotraj%20hi%C5%A1e/Desno?action=AttachFile&do=get&target=ARIS_Evidenca_opreme_2024.xlsx | Y162: 3 | Z162: 1 | AA162: 4 | AB162: 30 | AC162: =Table4[[#This Row],[11]] -> P_XIX_122 | AD162: 0 | AE162: 5 | AF162: 100 | AG162: =Table4[[#This Row],[4]] -> P1-0099 | AH162: =Table4[[#This Row],[5]] -> Igor Muševič | AI162: 50 | AJ162: PR-10099 | AK162: Igor Muševič | AL162: 50
A163: 106 | B163: Institut "Jožef Stefan" | D163: P2-0091 | E163: Matjaž Spreitzer | F163: 24273 | G163: RHEED sistem s pripadajočo opremo | H163: 2021 | J163: 138,292.33 | K163: P_XIX_124 | P163: 70210, 70725 | Q163: =Table4[[#This Row],[21]] -> 13.30 | R163: 13.30 | U163: =SUBTOTAL(9,Table4[[#This Row],[18]:[20]]) -> 13.30 | V163: 100 | W163: 60 | X163: https://www.ijs.si/ijsw/Znotraj%20hi%C5%A1e/Desno?action=AttachFile&do=get&target=ARIS_Evidenca_opreme_2024.xlsx | Y163: 3 | Z163: 8 | AA163: 3 | AB163: 47 | AC163: =Table4[[#This Row],[11]] -> P_XIX_124 | AD163: 0 | AE163: 5 | AF163: 100 | AG163: =Table4[[#This Row],[4]] -> P2-0091 | AH163: =Table4[[#This Row],[5]] -> Matjaž Spreitzer | AI163: 100
A164: 106 | B164: Institut "Jožef Stefan" | D164: P1-0040 | E164: Dragan D. Mihailović | F164: 4540 | G164: Sistem za nelinearno spektroskopijo in mikroskopijo v širokem energijskem območju z dodatki | H164: 2021 | I164: System for nonlinear spectroscopy and microscopy in a wide energy range with accessories | J164: 572,804.09 | K164: P_XIX_126 | L164: Oprema je dostopa po predhodnem dogovoru.Za uporabo zahtevnejše opreme je omogočeno šolanje. Cena storitev je odvisna od zahtevnosti meritev. Kontakt damjan.svetin@ijs.si | M164: Equipment is available on demand. Training can be arranged. The price of services depends on complexity of the measurements. Contact damjan.svetin@ijs.si | N164: Sistem za nelinearno spektroskopijo in mikroskopijo v širokem energijskem območju z dodatki omogoča proučevanje različnih materialov v okviru dveh tehnologij: (1) Nelinearne resonančne ekstremne ultravijolične spektroskopije in (2) Nelinearne optične mikroskopije. | O164: The system for nonlinear spectroscopy and microscopy in a wide energy range with accessories allows the study of various materials in two technologies: (1) Nonlinear resonant extreme ultraviolet spectroscopy and (2) Nonlinear optical microscopy. | P164: 69572 70689 71045 71047 71046 70783 70782 70781 71044 70841 71016 71051 71083 71082 71081 71077 71076 71075 70767 70766 70765 70764 70763 71096 71095 71156 71172 70842 71103 70760 70759 70758 70757 71199 71197 71094 71121 71120 71119 71118 71117 70513 71140 71280 71099 71098 69651 70037 71162 41290 71349 71348 71374 71419 | Q164: =Table4[[#This Row],[21]] -> 106.60 | R164: 55.08 | S164: 17.88 | T164: 33.64 | U164: =SUBTOTAL(9,Table4[[#This Row],[18]:[20]]) -> 106.60 | V164: 100 | W164: 60 | X164: https://www.ijs.si/ijsw/Znotraj%20hi%C5%A1e/Desno?action=AttachFile&do=get&target=ARIS_Evidenca_opreme_2024.xlsx | Y164: 3 | Z164: 1 | AA164: 4 | AB164: 60 | AC164: =Table4[[#This Row],[11]] -> P_XIX_126 | AD164: 0 | AE164: 5 | AF164: =(AI164+AL164+AO164+AR164+AU164+AX164) -> 100 | AG164: =Table4[[#This Row],[4]] -> P1-0040 | AH164: =Table4[[#This Row],[5]] -> Dragan D. Mihailović | AI164: 100
A165: 106 | B165: Institut "Jožef Stefan" | D165: P1-0135 | E165: Andrej Filipčič | F165: 7525 | G165: Nadgradnja distribuiranega računskega vozlišča SiGNET Tier-2. | H165: 2021 | I165: Upgrade of SiGNET-T2 distributed cluster | J165: 154,380.60 | K165: P_XIX_145 | L165: Omogočen oddaljen dostop za vse uporabnike SLING infrastrukture preko strežnika ARC-CE | M165: Remote access for SLING users through ARC Computing Element | N165: Računska gruča za intenzivno obdelavo podatkov in računske simulacije, predvsem pri eksperimentih ATLAS in Belle-II | O165: Compute cluster for intensive data processing primarily for ATLAS and Belle-II experiments | P165: 71350 71372 71370 71369 71368 71367 71366 71365 71364 71363 71362 71361 71360 71359 71358 71371 | Q165: =Table4[[#This Row],[21]] -> 46.53 | R165: 14.84 | S165: 19.31 | T165: 12.38 | U165: =SUBTOTAL(9,Table4[[#This Row],[18]:[20]]) -> 46.53 | V165: 100 | W165: 60 | X165: https://www.ijs.si/ijsw/Znotraj%20hi%C5%A1e/Desno?action=AttachFile&do=get&target=ARIS_Evidenca_opreme_2024.xlsx | Y165: 6 | Z165: 1 | AA165: 5 | AB165: 26 | AC165: =Table4[[#This Row],[11]] -> P_XIX_145 | AD165: 0 | AE165: 5 | AF165: 100 | AG165: =Table4[[#This Row],[4]] -> P1-0135 | AH165: =Table4[[#This Row],[5]] -> Andrej Filipčič | AI165: 100
A166: 106 | B166: Institut "Jožef Stefan" | D166: P1-0135 | E166: Marko Mikuž | F166: 4763 | G166: Obnova centra za analizo podatkov SiGNET | H166: 2021 | I166: Upgrade of analysis facility at SiGNET | J166: 138,073.64 | K166: P_XIX_157 | L166: Uporaba diskovnega prostora preko sistema dCache in Ceph | M166: Storage access through dCache and Ceph | N166: Diskovni prostor se uporablja za začasno shrambo vmesnih podatkov ter za obdelavo podatkov pri fizikalnih analizah | O166: Disk space used for temporary dataset storage and for permanent storage of analysis datasets | P166: 71887 | Q166: =Table4[[#This Row],[21]] -> 44.98 | R166: 13.28 | S166: 19.31 | T166: 12.39 | U166: =SUBTOTAL(9,Table4[[#This Row],[18]:[20]]) -> 44.98 | V166: 100 | W166: 60 | X166: https://www.ijs.si/ijsw/Znotraj%20hi%C5%A1e/Desno?action=AttachFile&do=get&target=ARIS_Evidenca_opreme_2024.xlsx | Y166: 6 | Z166: 1 | AA166: 5 | AB166: 26 | AC166: =Table4[[#This Row],[11]] -> P_XIX_157 | AD166: 0 | AE166: 5 | AF166: 100 | AG166: =Table4[[#This Row],[4]] -> P1-0135 | AH166: =Table4[[#This Row],[5]] -> Marko Mikuž | AI166: 100
A167: 106 | B167: Institut "Jožef Stefan" | D167: P2-0084 | E167: Spomenka Kobe | F167: 4355 | G167: XJET, Izrael 3D tiskalnik za kovinske materiale in keramiko, preimenovan v Hage 3D tiskalnik | H167: 2021 | I167: XJET, Israel 3D printer for metal materials and ceramics, renamed to Hage 3D material extrusion printer | J167: 193,984.55 | K167: P_XVII_177 | L167: Po predhodnem dogovru s skrbnikom (mail skrbnika) | M167: By prior arrangement with the administrator (administrator's mail) | N167: Izdelava prototipov kompleksnih oblik z ekstruzijo materiala. Možnost uporabe kompozitnih materialov | O167: Prototyping of compelex shapes with materila extrusion. Can be used with composite materials. | P167: 65499, 70724 | Q167: =Table4[[#This Row],[21]] -> 42.03 | R167: 18.65 | S167: 9.27 | T167: 14.11 | U167: =SUBTOTAL(9,Table4[[#This Row],[18]:[20]]) -> 42.03 | V167: 100 | W167: 60 | X167: https://www.ijs.si/ijsw/Znotraj%20hi%C5%A1e/Desno?action=AttachFile&do=get&target=ARIS_Evidenca_opreme_2024.xlsx | Y167: 6 | Z167: 3 | AA167: 0 | AB167: 44 | AC167: =Table4[[#This Row],[11]] -> P_XVII_177 | AD167: 28.22 | AE167: 5 | AF167: 100 | AG167: =Table4[[#This Row],[4]] -> P2-0084 | AH167: =Table4[[#This Row],[5]] -> Spomenka Kobe | AI167: 40 | AJ167: PR-12426 | AK167: Benjamin Podmiljšak (K7) | AL167: 20 | AM167: PR-12539 | AN167: Spomenka Kobe (K7) | AO167: 20 | AP167: P2-0087 | AQ167: Andraž Kocjan (K7) | AR167: 20
A168: 106 | B168: Institut "Jožef Stefan" | D168: I0-0005 | E168: Primož Pelicon | F168: 12314 | G168: Kontrolni sistem pospeševalnika Tandetron | H168: 2021 | J168: 258,675.69 | K168: P_XVIII_018 | L168: Oprema je dostopna akademskim institucijam in gospodarskim družbam (primoz.pelicon@ijs.si), kot tudi raziskovalcem in industriji iz evropskega raziskovalnega prostora (EU H2020 RADIATE, https://www.ionbeamcenters.eu/). | M168: The equipment is available for national users at the contact "primoz.pelicon@ijs.si", as well as to the international users via EU Transbnational Access (EU H2020 RADIATE, https://www.ionbeamcenters.eu/). | N168: Kontrolni sistem pospeševalnika nadzira delovanje celotnega sklopa strojne opreme od ionskih virov, pospeševanja in oblikovanja visokoenergijskih žarkov, kot tudi injeciranja v izbrano žarkovno linijo na pospeševalniku Instituta Jožef Stefan. | O168: The control system of the tandetron accelerator is providing the regulation and monitoring feedback of all the components of the ion accelerator, starting from the ion sources, beam shaping and acceleration, as well as beam injection into one of the beamlines at the tandem ion accelerator of Jožef Stefan Institute. | P168: 71347 | Q168: =Table4[[#This Row],[21]] -> 61.63 | R168: 24.87 | S168: 12 | T168: 24.76 | U168: =SUBTOTAL(9,Table4[[#This Row],[18]:[20]]) -> 61.63 | V168: 100 | W168: 60 | X168: https://www.ijs.si/ijsw/Znotraj%20hi%C5%A1e/Desno?action=AttachFile&do=get&target=ARIS_Evidenca_opreme_2024.xlsx | Y168: 3 | Z168: 1 | AA168: 6 | AB168: 50 | AC168: =Table4[[#This Row],[11]] -> P_XVIII_018 | AD168: 0 | AE168: 5 | AF168: 100 | AG168: =Table4[[#This Row],[4]] -> I0-0005 | AH168: =Table4[[#This Row],[5]] -> Primož Pelicon | AI168: 40 | AJ168: P1-0112 | AK168: Primož Pelicon | AL168: 40 | AM168: P2-0405 | AN168: Sabina Markelj | AO168: 20
A169: 106 | B169: Institut "Jožef Stefan" | D169: P2-0084 | E169: Spomenka Kobe | F169: 4355 | G169: Magnetometer z tresočim vzorcem za termomagnetne meritve v različnih atmosferah | H169: 2021 | I169: Shaking sample magnetometer for thermomagnetic measurements in different atmospheres | J169: 179,705.99 | K169: P_XVIII_027 | L169: Po predhodnem dogovru s skrbnikom (mail skrbnika) | M169: By prior arrangement with the administrator (administrator's mail) | N169: Karakterizacija magnetnih materialov v magnetnem polju, pri različnih temperaturah in atmosferah. | O169: Characterization of magnetic materials in a magnetic field, at different temperatures and atmospheres. | P169: 69928 | Q169: =Table4[[#This Row],[21]] -> 37.05 | R169: 17.28 | S169: 2.84 | T169: 16.93 | U169: =SUBTOTAL(9,Table4[[#This Row],[18]:[20]]) -> 37.05 | V169: 100 | W169: 60 | X169: https://www.ijs.si/ijsw/Znotraj%20hi%C5%A1e/Desno?action=AttachFile&do=get&target=ARIS_Evidenca_opreme_2024.xlsx | Y169: 3 | Z169: 9 | AA169: 1 | AB169: 4 | AC169: =Table4[[#This Row],[11]] -> P_XVIII_027 | AD169: 28.22 | AE169: 5 | AF169: 100 | AG169: =Table4[[#This Row],[4]] -> P2-0084 | AH169: =Table4[[#This Row],[5]] -> Spomenka Kobe | AI169: 30 | AJ169: PR-12539 | AK169: Spomenka Kobe (K7) | AL169: 20 | AM169: PR-12426 | AN169: Benjamin Podmiljšak (K7) | AO169: 20 | AP169: PR-10730 | AQ169: Benjamin Podmiljšak (K7) | AR169: 20 | AS169: PR-10604-1 | AT169: Kristina Žužek | AU169: 10
A170: 106 | B170: Institut "Jožef Stefan" | D170: P1-0112 | E170: Boštjan Jenčič | F170: 37462 | G170: Ionska optika za nanožarek | H170: 2021 | J170: 282,827.19 | K170: P_XVIII_074 | L170: Oprema je dostopna akademskim institucijam in gospodarskim družbam (bostjan.jencic@ijs.si), kot tudi raziskovalcem in industriji iz evropskega raziskovalnega prostora (EU H2020 RADIATE, https://www.ionbeamcenters.eu/). | M170: The equipment is available for national users at the contact bostjan.jencic@ijs.si, as well as to the international users via EU Transbnational Access (EU H2020 RADIATE, https://www.ionbeamcenters.eu/). | N170: Ionska optika je namenjena fokusiranju visokoenergijskih ionskih žarkov na premere žarkov manjše od enega mikrometra. S temi žarki izvajamo elemnetno in molekularno kartiranje vzorcev, kot tudi površinsko strukturirano implantacijo ionov. | O170: The ion optics forms high energy focused ion beam with sub-micrometre diameter, used for elemental and molecular mapping, as well as for patterned ion implantation. | P170: 71062 | Q170: =Table4[[#This Row],[21]] -> 63.95 | R170: 27.19 | S170: 12 | T170: 24.76 | U170: =SUBTOTAL(9,Table4[[#This Row],[18]:[20]]) -> 63.95 | V170: 100 | W170: 60 | X170: https://www.ijs.si/ijsw/Znotraj%20hi%C5%A1e/Desno?action=AttachFile&do=get&target=ARIS_Evidenca_opreme_2024.xlsx | Y170: 3 | Z170: 1 | AA170: 6 | AB170: 4 | AC170: =Table4[[#This Row],[11]] -> P_XVIII_074 | AD170: 0 | AE170: 5 | AF170: 100 | AG170: =Table4[[#This Row],[4]] -> P1-0112 | AH170: =Table4[[#This Row],[5]] -> Boštjan Jenčič | AI170: 40 | AJ170: I0-0005 | AK170: Primož Vavpetič | AL170: 40 | AM170: P1-0212 | AN170: Paula Pongrac | AO170: 20
A171: 106 | B171: Institut "Jožef Stefan" | D171: P1-0102 | E171: Jelena Vesić | F171: 33404 | G171: Teleskopski detektor Ge-Si | H171: 2021 | I171: Telescope detector Ge-Si | J171: 113,043.28 | K171: P_XVIII_085 | L171: Prijava na žarkovni čas na pospeševalniku Tandetron na IJS po predhodnem posvetovanju s skrbnikom opreme. | M171: Application for beam time at the Tandetron accelerator at JSI with a previous consultation with equipment guardian | N171: Meritve elektronov | O171: Electron measurements | P171: 71728 | Q171: =Table4[[#This Row],[21]] -> 35.87 | R171: 10.87 | S171: 15 | T171: 10 | U171: =SUBTOTAL(9,Table4[[#This Row],[18]:[20]]) -> 35.87 | V171: 100 | W171: 60 | X171: https://www.ijs.si/ijsw/Znotraj%20hi%C5%A1e/Desno?action=AttachFile&do=get&target=ARIS_Evidenca_opreme_2024.xlsx | Y171: 1 | Z171: 3 | AA171: 0 | AB171: 5 | AC171: =Table4[[#This Row],[11]] -> P_XVIII_085 | AD171: 0 | AE171: 5 | AF171: 100 | AG171: =Table4[[#This Row],[4]] -> P1-0102 | AH171: =Table4[[#This Row],[5]] -> Jelena Vesić | AI171: 100
A172: 106 | B172: Institut "Jožef Stefan" | D172: P1-0143 | E172: Milena Horvat | F172: 5027 | G172: Hibridni kvadrupol-Orbitrap masni spektrometer (Q-Orbitrap MS) s pripadajočo opremo | H172: 2021 | I172: Hybride qudruple-Orbitrap mass spectrometer (Q-Orbitrap MS). | J172: 677,613.87 | K172: P_XVIII_106 | L172: Instrumet bo na voljo po instalaciji opreme v juniju 2022. Kontakt: Milena.horvat@ijs.si . | M172: Instrument will be available after final instalation in June 2022. Please contact: milena.horvat@ijs.si . | N172: Orbitrap masni spektrometer sklopljen s tekočinskim kromatografom (hibridni LC-MS) in opremljen s programsko opremo za interpretacijo MS-MS spektrov in karakterizacijo malih organskih molekul se bo uporabljal za kvalitativno in kvantitativno netarčno ter tarčno analizo organskih spojin v sledovih v vzorcih iz okolja, vode, hrane, zdravilnih učinkovin, bioloških in geoloških snovi ter podobnih materialov. | O172: Q-Orbitrap mass spectrometer is equipped with liquid chromatograph (LC-MS), atmospheric ionization ion source (ESI) and different software programs for interpretation MS-MS spectra. IT is used for characterization and structure determination of small organic molecules, qualitative and quantitative target and nontarget analysis of traces of organic compounds in samples from environment, water, food, pharmaceuticals, biological, geological and similar materials. | P172: 71326 | Q172: =Table4[[#This Row],[21]] -> 205.16 | R172: 65.16 | S172: 80 | T172: 60 | U172: =SUBTOTAL(9,Table4[[#This Row],[18]:[20]]) -> 205.16 | V172: 100 | W172: 60 | X172: https://www.ijs.si/ijsw/Znotraj%20hi%C5%A1e/Desno?action=AttachFile&do=get&target=ARIS_Evidenca_opreme_2024.xlsx | Y172: 3 | Z172: 2 | AA172: 3 | AB172: 4 | AC172: =Table4[[#This Row],[11]] -> P_XVIII_106 | AD172: 0 | AE172: 5 | AF172: 100 | AG172: =Table4[[#This Row],[4]] -> P1-0143 | AH172: =Table4[[#This Row],[5]] -> Milena Horvat | AI172: 100
A173: 106 | B173: Institut "Jožef Stefan" | D173: I0-0005 | E173: Aljaž Drnovšek | F173: 35463 | G173: In situ merilnik fizikalnih lastnosti na nanoskali | H173: 2021 | I173: in-situ system for measuring physical properties on nanoscale | J173: 293,646.45 | K173: P_XVIII_167 | L173: Uporaba naprave je vezana na SEM mikroskop. Uporaba je možna po predhodnem pogovoru (aljaz.drnovsek@ijs.si) | M173: The use of the device is related to the use of the SEM microscope. Use is possible after a preliminary conversation (aljaz.drnovsek@ijs.si) | N173: meritve nanomehanskih lastnosti materialov majhnih volumnov pri sobni in povišani temperaturi | O173: measurements of nanomechanical properties of small volume materials at room and elevated temperatures | P173: 69024 | Q173: =Table4[[#This Row],[21]] -> 58.50 | R173: 28.24 | S173: 17.88 | T173: 12.38 | U173: =SUBTOTAL(9,Table4[[#This Row],[18]:[20]]) -> 58.50 | V173: 100 | W173: 60 | X173: https://www.ijs.si/ijsw/Znotraj%20hi%C5%A1e/Desno?action=AttachFile&do=get&target=ARIS_Evidenca_opreme_2024.xlsx | Y173: 3 | Z173: 12 | AA173: 1 | AB173: 47 | AC173: =Table4[[#This Row],[11]] -> P_XVIII_167 | AD173: 0 | AE173: 5 | AF173: 100 | AG173: =Table4[[#This Row],[4]] -> I0-0005 | AH173: =Table4[[#This Row],[5]] -> Aljaž Drnovšek | AI173: 50 | AJ173: PR-11236 | AK173: Žan Gostenčnik | AL173: 30 | AM173: J2-2509 | AN173: Matjaž Panjan | AO173: 20
A174: 106 | B174: Institut "Jožef Stefan" | D174: P1-0207 | E174: Igor Križaj | F174: 412 | G174: Masni analizator | H174: 2022 | I174: Nano electrospray ionization-quadrupole time-of-flight mass spectrometer (ESI-qTOF) | J174: 250.737,28 | K174: P_XX_013 | L174: Oprema je na voljo akademskim ustanovam in gospodarskim družbam, bodisi za plačilo, ki pokriva stroške analize, bodisi v okviru sodelovanja. Navodila za pripravo vzorcev in cenik storitev so na voljo na spletni strani oddelka (http://www-b2.ijs.si/expertise/). Stranka se lahko neposredno obrne na osebe, odgovorne za opremo, in se dogovori za izvedbo analize. | M174: The equipment is available to academic institutions and companies, either for a fee covering the cost of the analysis or as part of a collaboration. Instructions for sample preparation and a price list for services are available on the Department's website (http://www-b2.ijs.si/expertise/). The customer can contact the persons responsible for the equipment directly to arrange for the analysis to be carried out. | N174: ESI-qTOF se uporablja za "top-down/bottom-up" kvalitativno in kvantitativno analizo proteinov v bioloških vzorcih. | O174: ESI-qTOF is used for top-down/bottom-up qualitative and quantitative analysis of proteins in biological samples. | P174: 72813, 73201, 73203, 73204 | Q174: =Table4[[#This Row],[21]] -> 88.93 | R174: =J174*0.2/2080 -> 24.11 | S174: 12.08 | T174: 52.74 | U174: =SUBTOTAL(9,Table4[[#This Row],[18]:[20]]) -> 88.93 | V174: 100 | W174: 40 | X174: https://www.ijs.si/ijsw/Znotraj%20hi%C5%A1e/Desno?action=AttachFile&do=get&target=ARIS_Evidenca_opreme_2024.xlsx | Y174: 4 | Z174: 6 | AA174: 3 | AB174: 35 | AC174: =Table4[[#This Row],[11]] -> P_XX_013 | AD174: 0 | AE174: 5 | AF174: 100 | AG174: =Table4[[#This Row],[4]] -> P1-0207 | AH174: =Table4[[#This Row],[5]] -> Igor Križaj | AI174: 100
A175: 106 | B175: Institut "Jožef Stefan" | D175: P1-0044 | E175: Rok Žitko | F175: 23567 | G175: Razširitev računske gruče s hitrimi rezinami nove generacije | H175: 2022 | I175: Expansion of the computer cluster with fast new-generation nodes | J175: 163,604.87 | K175: P_XX_014 | L175: Uporaba je možna po predhodnem dogovoru (rok.zitko@ijs.si) | M175: Upon prior agreement (rok.zitko@ijs.si) | N175: Izvajanje računskih nalog na področjih fizike trdne snovi, fizike osnovnih delcev, biofizke in kvantne fizike. | O175: Computing in the fields of solid state physics, particle physics, biophysics and quantum physics. | P175: 73316 73376 73375 73374 73372 73371 73370 73369 | Q175: =Table4[[#This Row],[21]] -> 26.66 | R175: =J175*0.25/2080 -> 19.66 | S175: 4 | T175: 3 | U175: =SUBTOTAL(9,Table4[[#This Row],[18]:[20]]) -> 26.66 | V175: 100 | W175: 50 | X175: https://www.ijs.si/ijsw/Znotraj%20hi%C5%A1e/Desno?action=AttachFile&do=get&target=ARIS_Evidenca_opreme_2024.xlsx | Y175: 6 | Z175: 1 | AA175: 4 | AB175: 26 | AC175: =Table4[[#This Row],[11]] -> P_XX_014 | AD175: 0 | AE175: 4 | AF175: =(AI175+AL175+AO175+AR175+AU175+AX175) -> 100 | AG175: =Table4[[#This Row],[4]] -> P1-0044 | AH175: =Table4[[#This Row],[5]] -> Rok Žitko | AI175: 30 | AJ175: P1-0035 | AK175: Jernej F. Kamenik | AL175: 30 | AM175: P1-0055 | AN175: Primož Ziherl | AO175: 30 | AP175: P1-0416 | AQ175: Rok Žitko | AR175: 10
A176: 106 | B176: Institut "Jožef Stefan" | D176: P2-0405 | E176: Sabina Markelj | F176: 25624 | G176: 6-osni goniometer za ionsko kanaliziranje s sistemom za menjavo vzorcev in zajemom podatkov | H176: 2022 | I176: 6-axis goniometer for ion channeling with system for sample exchnage and data acquisition | J176: 223,744.46 | K176: P_XX_016 | L176: Uporabniki bodo lahko dostopali do opreme tako, da bodo predlagali, kaj bi zeleli preučevati. Način kontaktiranja je preko elektronskega sporočila sabina.markelj@ijs.si. | M176: Users will be able to access the equipment by proposing what they would like to study. The method of contact is via e-mail sabina.markelj@ijs.si. | N176: 6-osni gonimeter je namenjen za natančno poravnavo monokristalov za meritve v načinu ionskega kanaliziranja skupaj z na primer metodo povratnih sipanih ionov. V tem načinu lahko preučujemo napake v kristalni rešetki. Z uporabo drugih ionskih metod, lahko preučuejemo pozicije nečistoč v materialih. Sistem nam omogoča hitro menjavo vzorcev ter gretje ali hlajenje vzorcev. | O176: The 6-axis goniometer is intended for precise aligment of single crystal samples in order to preform ion channeling measurements utilising for instance Rutherford backscattering spectrometry method. This can be be used to study defects in the crystal lattice. Using other ion beam methods in channeling configuration, one can also study the position of impurities in materials. The system allows us to quickly change samples and heat or cool the samples. | P176: 73456 | Q176: =Table4[[#This Row],[21]] -> 62.80 | R176: =J176*0.2/2080 -> 21.51 | S176: 19.31 | T176: 21.98 | U176: =SUBTOTAL(9,Table4[[#This Row],[18]:[20]]) -> 62.80 | V176: 100 | W176: 40 | X176: https://www.ijs.si/ijsw/Znotraj%20hi%C5%A1e/Desno?action=AttachFile&do=get&target=ARIS_Evidenca_opreme_2024.xlsx | Y176: 3 | Z176: 2 | AB176: 60 | AC176: =Table4[[#This Row],[11]] -> P_XX_016 | AD176: 0 | AE176: 5 | AF176: 100 | AG176: =Table4[[#This Row],[4]] -> P2-0405 | AH176: =Table4[[#This Row],[5]] -> Sabina Markelj | AI176: 100
A177: 106 | B177: Institut "Jožef Stefan" | D177: P1-0125 | E177: Zdravko Kutnjak | F177: 10124 | G177: Integrirani elektrotermometrični optični merilni sistem | H177: 2022 | I177: Integrated electrothermometric optical measurement system | J177: 108,398.79 | K177: P_XX_017 | L177: Za dostop se kontaktira dr. Z. Kutnjaka (zdravko.kutnjak@ijs.si) na IJS, ki uredi uporabniški dostop do opreme znotraj 1. meseca. | M177: To access the equipment contact Dr. Zdravko Kutnjak (zdravko.kutnjak@ijs.si). The user access to the equipment is arranged afterwards within 1 month. | N177: Meritve električnih, dielektričnih in termičnih lastnosti materialov. | O177: Measurements of electrical, dielectrical and thermal properties of materials. | P177: 72293, 72884 | Q177: =Table4[[#This Row],[21]] -> 40.68 | R177: 10.42 | S177: 17.88 | T177: 12.38 | U177: =SUBTOTAL(9,Table4[[#This Row],[18]:[20]]) -> 40.68 | V177: 100 | W177: 40 | X177: https://www.ijs.si/ijsw/Znotraj%20hi%C5%A1e/Desno?action=AttachFile&do=get&target=ARIS_Evidenca_opreme_2024.xlsx | Y177: 4 | Z177: 1 | AA177: 2 | AB177: 30 | AC177: =Table4[[#This Row],[11]] -> P_XX_017 | AD177: 0 | AE177: 5 | AF177: 100 | AG177: =Table4[[#This Row],[4]] -> P1-0125 | AH177: =Table4[[#This Row],[5]] -> Zdravko Kutnjak | AI177: 100
A178: 106 | B178: Institut "Jožef Stefan" | D178: P2-0026 | E178: Martin Draksler | F178: 33540 | G178: Nadgradnja visokozmogljive računske gruče | H178: 2022 | I178: UPGRADE OF HIGH PERFORMANCE COMPUTE CLUSTER | J178: 142,062.43 | K178: P_XX_018 | L178: Po predhodnem dogovoru na naslov bojan.zefran@ijs.si ali martin.draksler@ijs.si | M178: Equipment is available on demand. Please contact bojan.zefran@ijs.si or martin.draksler@ijs.si | N178: Računalniška gruča za izvajanje znanstvenih računskih simulacij. Hitra mrežna komunikacija med računskimi vozlišči omogoča dobro skaliranje večprocesnih izračunov. Oprema vsebuje 100 računskih vozlišč po 2 procesorja, vsak z 20/24/28 jedri in 196GB spomina. | O178: Compute cluster for fast scientific calculations. Fast interconnect enables a good calculation scalability of multinode multicore jobs. Equipment consists of 100 compute nodes with 2 socket processors. each with 20/24/28 cores and 196GB of memory. | P178: 65270 | Q178: =Table4[[#This Row],[21]] -> 17.07 | R178: =J178*0.25/2080 -> 17.07 | S178: 0.02 | T178: 0.1 | U178: =SUBTOTAL(9,Table4[[#This Row],[18]:[20]]) -> 17.07 | V178: 100 | W178: 50 | X178: https://www.ijs.si/ijsw/Znotraj%20hi%C5%A1e/Desno?action=AttachFile&do=get&target=ARIS_Evidenca_opreme_2024.xlsx | Y178: 6 | Z178: 1 | AA178: 4 | AB178: 26 | AC178: =Table4[[#This Row],[11]] -> P_XX_018 | AD178: Gruča ni namenjena neizučenim uporabnikom. | AE178: 4 | AF178: 100 | AG178: =Table4[[#This Row],[4]] -> P2-0026 | AH178: =Table4[[#This Row],[5]] -> Martin Draksler | AI178: 50 | AJ178: P2-0405-1 | AK178: Boštjan Končar | AL178: 10 | AM178: L2-4432 | AN178: Andrej Prošek | AO178: 10 | AP178: Z2-4437 | AQ178: Janez Kokalj | AR178: 10 | AS178: L2-1827 | AT178: Boštjan Končar | AU178: 10 | AV178: L2-1828 | AW178: Leskovar Matjaž | AX178: 10
A179: 106 | B179: Institut "Jožef Stefan" | D179: P1-0389 | E179: Matija Milanič | F179: 22288 | G179: Sistem za slikanje z optično koherenčno tomografijo (OCT) pri valovni dolžini 1300 nm | H179: 2022 | I179: Optical coherence tomography (OCT) imaging system at a wavelength of 1300 nm | J179: 107,341.16 | K179: P_XX_026 | L179: Po predhodnem dogovoru na naslov jost.stergar@ijs.si | M179: By prior arrangement at jost.stergar@ijs.si | N179: Optična tomografija bioloških in nebioloških materialov v IR področju (1300nm). Sistem omogoča opazovanje strukture in optičnih lastnosti opazovanih vzorcev v tem področju. | O179: Optical tomography of biological and non-biological materials in the IR range (1300nm). The system enables observation of the structure and optical properties of observed samples in this area. | P179: 72706 73007 | Q179: =Table4[[#This Row],[21]] -> 53.88 | R179: =J179*0.2/2080 -> 10.32 | S179: 9.13 | T179: 34.43 | U179: =SUBTOTAL(9,Table4[[#This Row],[18]:[20]]) -> 53.88 | V179: 100 | W179: 40 | X179: https://www.ijs.si/ijsw/Znotraj%20hi%C5%A1e/Desno?action=AttachFile&do=get&target=ARIS_Evidenca_opreme_2024.xlsx | Y179: 3 | Z179: 3 | AA179: 3 | AB179: 10 | AC179: =Table4[[#This Row],[11]] -> P_XX_026 | AD179: 0 | AE179: 5 | AF179: 100 | AG179: =Table4[[#This Row],[4]] -> P1-0389 | AH179: =Table4[[#This Row],[5]] -> Matija Milanič | AI179: 90 | AJ179: Z1-4384 | AK179: Dr. Jošt Stergar | AL179: 10
A180: 106 | B180: Institut "Jožef Stefan" | D180: P1-0060 | E180: Igor Serša | F180: 12056 | G180: 100 MHz NMR/MRI spektrometer | H180: 2022 | I180: 100 MHz NMR/MRI spectrometer | J180: 106,592.03 | K180: P_XX_027 | L180: Zainteresirani za meritve na 100 NMR/MRI sistemu se lahko za termin meritev dogovorijo z vodjo laboratorija (igor.sersa@ijs.si). | M180: Those interested in measurements on the 100 NMR/MRI system can arrange a time for the measurements with the head of the laboratory (igor.sersa@ijs.si). | N180: Oprema je namenjena magnetnoresonančnemu slikanju in mikroskopiji materialov. Vzorci morajo vsebovati vodikove atome v tekočinah. | O180: The equipment is intended for magnetic resonance imaging and microscopy of materials. The samples must contain hydrogen atoms in liquids. | P180: 72938 | Q180: =Table4[[#This Row],[21]] -> 40.51 | R180: 10.25 | S180: 17.88 | T180: 12.38 | U180: =SUBTOTAL(9,Table4[[#This Row],[18]:[20]]) -> 40.51 | V180: 100 | W180: 40 | X180: https://www.ijs.si/ijsw/Znotraj%20hi%C5%A1e/Desno?action=AttachFile&do=get&target=ARIS_Evidenca_opreme_2024.xlsx | Y180: 3 | Z180: 3 | AA180: 1 | AB180: 10 | AC180: =Table4[[#This Row],[11]] -> P_XX_027 | AD180: 0 | AE180: 5 | AF180: 100 | AG180: =Table4[[#This Row],[4]] -> P1-0060 | AH180: =Table4[[#This Row],[5]] -> Igor Serša | AI180: 100
A181: 106 | B181: Institut "Jožef Stefan" | D181: P1-0102 | E181: Miha Mihovilovič | F181: 29534 | G181: SISTEM ZA VISOKOLOČLJIVO SPEKTROMETRIJO GAMA | H181: 2022 | I181: SYSTEM FOR HIGH-RESOLUTION GAMMA SPECTROMETR | J181: 174,728.30 | K181: P_XX_028 | L181: Laboratoriju za meritve radioaktivnosti na IJS - stavba B (trenutno v garancijskem popravilu, na voljo spet v juniju 2023). Kontakt: miha.mihovilovic@ijs.si | M181: The system is available in Laboratory for radioactivity measurements at the JSI (B building) (currently under warranty repair, available again in June 2023). Contact: miha.mihovilovic@ijs.si | N181: Meritve gama energijskega spektra v vzorcih pri jedrskih raziskavah, kot tudi pri zahtevnejših aplikativnih raziskavah (karakterizacija referenčnih materialov, nadzor radioaktivnih izpustov, itd.). | O181: Measurements of gamma spectra fot fundamental and applicative research in the LMR at JSI. | P181: 73389 | Q181: =Table4[[#This Row],[21]] -> 65.55 | R181: 16.80 | S181: 8.75 | T181: 40 | U181: =SUBTOTAL(9,Table4[[#This Row],[18]:[20]]) -> 65.55 | V181: 100 | W181: 40 | X181: https://www.ijs.si/ijsw/Znotraj%20hi%C5%A1e/Desno?action=AttachFile&do=get&target=ARIS_Evidenca_opreme_2024.xlsx | Y181: 3 | Z181: 2 | AA181: 2 | AB181: 50 | AC181: =Table4[[#This Row],[11]] -> P_XX_028 | AD181: 80 | AE181: 5 | AF181: 100 | AG181: =Table4[[#This Row],[4]] -> P1-0102 | AH181: =Table4[[#This Row],[5]] -> Miha Mihovilovič | AI181: 100
A182: 106 | B182: Institut "Jožef Stefan" | D182: P1-0060 | E182: Iztok Urbančič | F182: 32057 | G182: Sistem za dolgotrajno super-ločljivo optično mikroskopijo živih celic | H182: 2022 | I182: System for long-term live cells super-resolution optical microscopy | J182: 170,953.40 | K182: P_XX_047 | L182: Oprema je dostopna ostalim odsekom in zunanjim uporabnikom po predhodnem dogovoru (rok.podlipec@ijs.si). Spada pod Center za napredne optične mikroskopije (CNOM) in se uporaba zaračunava po ceniku IJS. | M182: The equipment is accessible to other IJS departments and external users by prior arrangement (rok.podlipec@ijs.si). It is part of the Center for Advanced Optical Microscopy (CNOM) and its use is charged according to the IJS price list. | N182: Napredni mikroskop omogoča hkratno večbarvno multi kanalno fluorescenčno slikanje čez celotni vidni spekter v x/y/z/t na živih bioloških sistemih s super-ločljivostjo. | O182: The advanced microscope enables simultaneous multi-color multi-channel fluorescence imaging across the entire visible spectrum in x/y/z/t on living biological systems with super-resolution modality. | P182: 71341 | Q182: =Table4[[#This Row],[21]] -> 65.89 | R182: 16.44 | S182: 7.69 | T182: 41.76 | U182: =SUBTOTAL(9,Table4[[#This Row],[18]:[20]]) -> 65.89 | V182: 100 | W182: 40 | X182: https://www.ijs.si/ijsw/Znotraj%20hi%C5%A1e/Desno?action=AttachFile&do=get&target=ARIS_Evidenca_opreme_2024.xlsx | Y182: 3 | Z182: 4 | AA182: 6 | AB182: 10 | AC182: =Table4[[#This Row],[11]] -> P_XX_047 | AD182: 41.76 | AE182: 5 | AF182: 100 | AG182: =Table4[[#This Row],[4]] -> P1-0060 | AH182: =Table4[[#This Row],[5]] -> Iztok Urbančič | AI182: 100
A183: 106 | B183: Institut "Jožef Stefan" | D183: P2-0091 | E183: Matjaž Spreitzer | F183: 24273 | G183: Vakuumska predkomora s pripadajočo opremo | H183: 2022 | I183: Loadlock with included required equipment | J183: 45,524.00 | K183: P_XX_048 | L183: Oprema se nahaja v laboratoriju za pulzno lasersko depozicijo na Odseku za raziskave sodobnih materialov - K9. Dostop do opreme je omogočen tehnično usposobljenim uporabnikom laboratorija. Za uporabo opreme je potrebna predhodna rezervacija časovnega termina. | M183: The equipment is located at the laboratory for pulsed laser deposition at the Advanced Materials Department - K9. Access to the equipment is provided to technically qualified users of the laboratory. In order to use the equipment, a prior appointment is required. | N183: Vakuumska predkomora predstavlja nadgradnjo obstoječega sistema za pulzno lasersko depozicijo (PLD), predvsem z vidika možnosti doseganja boljšega vakuuma (10-8 mbar), kar bo omogočilo lažje spremljanje rasti tankih plasti in izbor širšega nabora sinteznih parametrov. S tem bo dosežena optimizacija sinteze in posledično izboljšana kakovost pripravljenih vzorcev. Hkrati bo mogoče sintetizirati nove materiale, kot so funkcionalni oksidi s silicijem in germanijem, ki zahtevajo izjemno visoko stopnjo čistosti atmosfere. Vakuumska predkomora omogoča tudi povezavo s suho komoro, kar bo omogočilo neposreden prenos vzorcev iz glavnega PLD sistema v suho komoro, kjer bo potekala manipulacija z vzorci ali shranjevanje vzorcev v inertni atmosferi. Takšen način prenosa vzorcev bo v prihodnosti omogočil pripravo bolj občutljivih materialov, ki jih ni mogoče pripraviti na obstoječem PLD sistemu zaradi izpostavitve zraku pri sobnih pogojih pri vnosu in odstranitvi vzorca iz sistema. | O183: The loadlock represents an upgrade to the existing pulsed laser deposition (PLD) system, mainly in terms of the possibility of achieving a better vacuum (10-8 mbar), which will enable easier monitoring of the growth of thin films and a wider selection of synthesis parameters. This will result in an optimization of the deposition process and consequently an improvement in the quality of prepared samples. At the same time, it will be possible to synthesize new materials, such as functional oxides with silicon and germanium, which require an extremely high level of atmospheric purity. Additionally, the loadlock will also be connected to a glove box, which will allow for direct transfer of samples from the main PLD system, where synthesis takes place, to the glove box, where sample manipulation or storage in an inert atmosphere will occur. Such a method of transferring samples will enable the preparation of more sensitive materials in the future, which cannot be prepared on the existing PLD system due to exposure to air under ambient conditions during sample insertion and removal from the system. | P183: 73368 | Q183: =Table4[[#This Row],[21]] -> 42.01 | R183: 4.38 | S183: 13.56 | T183: 24.07 | U183: =SUBTOTAL(9,Table4[[#This Row],[18]:[20]]) -> 42.01 | V183: 100 | W183: 40 | X183: https://www.ijs.si/ijsw/Znotraj%20hi%C5%A1e/Desno?action=AttachFile&do=get&target=ARIS_Evidenca_opreme_2024.xlsx | Y183: 1 | Z183: 1 | AA183: 4 | AB183: 44 | AC183: =Table4[[#This Row],[11]] -> P_XX_048 | AD183: 0 | AE183: 5 | AF183: 100 | AG183: =Table4[[#This Row],[4]] -> P2-0091 | AH183: =Table4[[#This Row],[5]] -> Matjaž Spreitzer | AI183: 50 | AJ183: N2-0176 | AK183: Matjaž Spreitzer | AL183: 25 | AM183: J2-2510 | AN183: Matjaž Spreitzer | AO183: 25
A184: 106 | B184: Institut "Jožef Stefan" | D184: P2-0103 | E184: Sašo Džeroski | F184: 11130 | G184: Oprema za izvajanje postopkov avtomatizacije strojnega učenja | H184: 2022 | I184: Equipment for performing machine learning automation processes | J184: 137,590.16 | K184: P_XX_049 | L184: Čas dostopa do opreme vsak delovni dan od 8:00 do 16:00 glede na razpoložljivost po predhodnem dogovoru s skrbnikom. Glede pogojev dostopa in razpoložljivosti kontaktirati Martina Žnidaršiča (martin.znidarsic@ijs.si) | M184: The equipment is available upon request every day from 8 am to 4 pm subject to availability. For access conditions and availability contact Martin Žnidaršič (martin.znidarsic@ijs.si) | N184: CPU in GPU strežniki za pripravo podatkov ter razvoj in testiranje procesov avtomatizacije strojnega učenja. | O184: CPU and GPU servers for data preprocessing and development and testing of machine learning automation processes. | P184: 72368, 72345, 72370, 72650, 72370, 72994, 73303, 73304, 73247, 73324, 73346, 73345, 73344, 73343, 73290, 72286, 72358, 72491, 72757, 73408, 73409 | Q184: =Table4[[#This Row],[21]] -> 56.96 | R184: 16.54 | S184: 20 | T184: 20.42 | U184: =SUBTOTAL(9,Table4[[#This Row],[18]:[20]]) -> 56.96 | V184: 100 | W184: 50 | X184: https://www.ijs.si/ijsw/Znotraj%20hi%C5%A1e/Desno?action=AttachFile&do=get&target=ARIS_Evidenca_opreme_2024.xlsx | Y184: 6 | Z184: 1 | AA184: 5 | AB184: 25 | AC184: =Table4[[#This Row],[11]] -> P_XX_049 | AD184: 0 | AE184: 4 | AF184: 100 | AG184: =Table4[[#This Row],[4]] -> P2-0103 | AH184: =Table4[[#This Row],[5]] -> Sašo Džeroski | AI184: 100
A185: 106 | B185: Institut "Jožef Stefan" | D185: I0-0005 | E185: Matic Lozinšek | F185: 30880 | G185: Nizkotemperaturni ramanski spektrometer | H185: 2022 | I185: Low-temperature Raman spectrometer | J185: 239,480.20 | K185: P_XX_050 | L185: Uporaba je možna po predhodnem dogovoru (matic.lozinsek@ijs.si) | M185: Access is possible upon demand (matic.lozinsek@ijs.si) | N185: Spektrometer je opremljen z dvema laserjema valovnih dolžin 532 nm in 785 nm ter omogoča merjenje ramanskih spektrov z veliko prostorsko in spektralno ločljivostjo. Vzorec se v fokus laserskega žarka premika z električno kontrolirano pomično mizico, ki omogoča natančne premike v vseh treh dimenzijah in s tem skeniranje oziroma »kartografiranje« vzorca pri čemer se v vsaki točki posname ramanski spekter. Na ta način je mogoče pridobiti informacijo o kemijski sestavi in homogenosti vzorca. Del tega spektrometra obsega tudi posebna hladilna enota, ki bo omogočala hlajenje vzorca s pomočjo tekočega dušika. | O185: The spectrometer is equipped with 532-nm and 785-nm lasers and enables the measurement of Raman spectra with high spatial and spectral resolution. The sample is moved into the focus of the laser beam with a motorized xyz stage, which enables precise movements in all three dimensions and thus mapping of the sample, whereby the Raman spectrum is recorded at each point. In this way, it is possible to obtain information about the chemical composition and homogeneity of the sample. This spectrometer also includes a special cooling unit, which will enable cooling of the sample with the help of liquid nitrogen. | P185: 73388 | Q185: =Table4[[#This Row],[21]] -> 53.29 | R185: =J185*0.2/2080 -> 23.03 | S185: 17.88 | T185: 12.38 | U185: =SUBTOTAL(9,Table4[[#This Row],[18]:[20]]) -> 53.29 | V185: 100 | W185: 40 | X185: https://www.ijs.si/ijsw/Znotraj%20hi%C5%A1e/Desno?action=AttachFile&do=get&target=ARIS_Evidenca_opreme_2024.xlsx | Y185: 3 | Z185: 1 | AA185: 1 | AB185: 4 | AC185: =Table4[[#This Row],[11]] -> P_XX_050 | AD185: 0 | AE185: 5 | AF185: 100 | AG185: =Table4[[#This Row],[4]] -> I0-0005 | AH185: =Table4[[#This Row],[5]] -> Matic Lozinšek | AI185: 30 | AJ185: N1-0225 | AK185: Matic Lozinšek | AL185: 30 | AM185: ERC StG HiPeR-F | AN185: Matic Lozinšek | AO185: 40
A186: 106 | B186: Institut "Jožef Stefan" | D186: P2-0105 | E186: Mirela Dragomir | F186: 31976 | G186: Oprema za fazno in strukturno analizo z rentgensko praškovno difrakcijo | H186: 2022 | I186: Oprema za fazno in strukturno analizo z rentgensko praškovno difrakcijo | J186: 101,171.27 | K186: P_XX_051 | L186: Oprema se nahaja v »Odsek za elektronsko keramiko, K5« (https://www-k5.ijs.si/). Uporaba opreme je omogočena samo za strokovno usposobljene uporabnike. Dostop se uredi preko dogovora s kontaktno osebo, dr. Mirelo Dragomir. Cena meritev je odvisna od zahtevnosti eksperimentov in interpretacije podatkov. Informacijo o ceni dobite od skrbnika ob dogovoru za izvedbo eksperimentov. Čas dostopa je odvisen od zasedenosti opreme. | M186: The equipment is located at the "Electronic Ceramics Department, K5" (https://www-k5.ijs.si/en/). Researchers with proper training on X-ray powder diffraction equipment can get access through the contact person, dr. Mirela Dragomir. The price depends on the type of measurement and the complexity of data collection and interpretation. The information about the price is obtained from the contact person before the agreement for measurements. The availability of the equipment depends on the ongoing research activities at K5. | N186: Oprema nam omogoča strukturno in fazno analizo s rentgensko praskovno diffrakcijo. Namizni rentgenski praškovni difraktometer ima naslednji značilnosti: bakrova rentgenska cev, nastavki za meritve praškov, tankih plasti, in za kapilare, celica za vzorce materialov, ki so občutljivimi na zrak, silicijev 1D detektor, Kβ filter, programska oprema za Rietveldovo analizo. | O186: The equipment enables structural and phase characterisation using X-ray powder diffraction. The benchtop X-ray powder diffractometer has the following features: copper X-ray tube, possiility to analyse powder, thin film, and capillaries, sample cell for air-sensitive materials, silicon 1D detector, Kβ filter, variable edge slit, Rietveld analysis software. | P186: 73289 | Q186: =Table4[[#This Row],[21]] -> 52.99 | R186: 9.73 | S186: 15.34 | T186: 27.92 | U186: =SUBTOTAL(9,Table4[[#This Row],[18]:[20]]) -> 52.99 | V186: 100 | W186: 40 | X186: https://www.ijs.si/ijsw/Znotraj%20hi%C5%A1e/Desno?action=AttachFile&do=get&target=ARIS_Evidenca_opreme_2024.xlsx | Y186: 3 | Z186: 8 | AA186: 1 | AB186: 60 | AC186: =Table4[[#This Row],[11]] -> P_XX_051 | AD186: 0 | AE186: 5 | AF186: 100 | AG186: =Table4[[#This Row],[4]] -> P2-0105 | AH186: =Table4[[#This Row],[5]] -> Mirela Dragomir | AI186: 100
A187: 106 | B187: Institut "Jožef Stefan" | D187: P2-0073 | E187: Luka Snoj | F187: 27819 | G187: Obsevalni kompleks z aktivirano vodo na reaktorju TRIGA na IJS | H187: 2022 | I187: Irradiation facility with water activation loop at JSI TRIGA reactor | J187: 346,231.67 | K187: P_XX_052 | L187: Obsevalna naprava bo dostopna v reaktorski hali raziskovalnega reaktorja IJS TRIGA. Posamezne komponente delujejo vendar celotna obsevalna naprava še ni sestavljena, saj nam ni uspelo nakupiti celotne predvidene opreme (npr. nabava in izdelava vodne zanke po specifikacijah, izdelava alarmnega sistema, izdelava dodatnega ščita, itd.) zaradi ogromnih zamud in bistveno daljših dobavnih rokov kot je bilo prvotno predvideno (vpliv/posledice COVID-a). Nakup preostale opreme bo opravljen (oz. dobavljeno) v letu 2023 (del tudi v sklopu Paket21). | M187: The irradiation facility with a water activation loop will be accessible in the reactor hall of JSI TRIGA the research reactor. The individual components are functional, but the entire facility has not yet been commissioned due to procurement, production delays, etc, which were much longer than first anticipated (COVID). The purchase/construction of the remaining equipment will be completed (or delivered) in 2023 (partially also within Paket21). | N187: Obsevalna naprava z aktivirano vodo na rekaotjru TRIGA na IJS bo služila kot natančno določen in stabilen izvor visoko-energijskih karakterističnih žarkov gama in nevtronov. Omogočala bo različne eksperimente, ki temeljijo na procesu aktivacije vode, validacijo računskih metodologij, kalibaracijo detektorjev, meritve doznih pol in gama spektrometrija, integralne meritve presekov, itd. Sestavljajo jo različni tipi opreme: a) detektorji žarkov gama in nevtronov ter ustrezna merilna oprema, b) oprema za vodno zanko (črpalka, ventili, merilci pretoka), c) oprema za regulacijo zanke, d) izdelava specifičnih kosov po meri (betonski bloki – ščit, predel za obsevanje, itd.). | O187: The activated water irradiator on the TRIGA detector at the IJS will serve as a well-defined and stable source of high-energy characteristic gamma rays and neutrons. It will enable various experiments based on the water activation process, validation of computational methods, calibration of the detector, gamma spectrometry and dose field measurements, integral cross-section measurements, etc. It consists of various equipment: a) gamma and neutron detectors and corresponding measuring instruments, b) equipment for the water loop (pump, valves, flow metre), c) equipment for the control of the loop, d) production of specific custom-made products (concrete blocks - shielding, irradiation area, etc.). | P187: 73054, 73083, 73055, 72862, 72861 | Q187: =Table4[[#This Row],[21]] -> 335.29 | R187: 33.29 | S187: 117 | T187: 185 | U187: =SUBTOTAL(9,Table4[[#This Row],[18]:[20]]) -> 335.29 | V187: 100 | W187: 40 | X187: https://www.ijs.si/ijsw/Znotraj%20hi%C5%A1e/Desno?action=AttachFile&do=get&target=ARIS_Evidenca_opreme_2024.xlsx | Y187: 4 | Z187: 3 | AA187: 4 | AB187: 50 | AC187: =Table4[[#This Row],[11]] -> P_XX_052 | AD187: 92.5 | AE187: 5 | AF187: 100 | AG187: =Table4[[#This Row],[4]] -> P2-0073 | AH187: =Table4[[#This Row],[5]] -> Luka Snoj | AI187: 100
A188: 106 | B188: Institut "Jožef Stefan" | D188: I0-0005 | E188: Uroš Cvelbar | F188: 22289 | G188: Presevni elektronski mikroskop za konvencionalne, 3D, magnetne in operando preiskave kemijskih in faznih transformacij na atomarnem nivoju pri spremenljivi pospeševalni napetosti | H188: 2022 | I188: Transmission electron microscope for conventional, 3D, magnetic and operando investigations of chemical and phase transformations at the atomic level under variable accelerating voltage | J188: 1,386,685.00 | K188: P_XX_054 | L188: 1. Skrbnika opreme zaprosiš za usposabljanje in za trening. Usposabljanje obsega 50 ur. Nato dobi uporabnik dostop do rezervacijskega sistema rezervacije.ijs.si in rezervira termin. 2. Uporabnik kontaktira skrbnika opreme in potem skrbnik opreme izvede analize v sodelovanju z uporabnikom. | M188: 1. You ask the equipment administrator for training. The training consists of 50 hours. Then the user gets access to the reservation system rezervacija.ijs.si and books an appointment. 2. The user contacts the equipment administrator and then the equipment administrator performs analyzes in cooperation with the user. | N188: Presevni elektronski mikroskop s spremenljivo pospeševalno napetostjo (80-200 kV) zagotavlja atomarno ločljivost pri najvišji napetosti v vseh načinih delovanja, medtem ko nižje napetosti omogočajo tudi opazovanje občutljivih vzorcev, ki drugače med opazovanjem razpadajo zaradi vpliva primarnih elektronov. Mikroskop omogoča konvencionalno opazovanje vzorcev (TEM) ter vrstičenje elektronskega snopa skozi vzorec (STEM) pri povečavi nekaj × 1.000 do nekaj × 1.000.000. Stabilni visoko-svetilni izvor elektronov zagotavlja resolucijo blizu difrakcijske limite in preiskave praškovnih vzorcev, tankih lamel in klasičnih vzorcev do debeline 100 nm, odvisno od atuneacije elektronov. | O188: A transmission electron microscope with a variable accelerating voltage (80-200 kV) provides atomic resolution at the highest voltages in all modes of operation, while lower voltages also allow the observation of sensitive patterns which otherwise, they decay during observation due to the influence of primary electrons. The microscope allows conventional observation of samples (TEM) and scanning of the electron beam through the sample (STEM) at a magnification of a few × 1,000 to a few × 1,000,000. A stable high-brightness electron source provides resolution close to the diffraction limit and powder investigations samples, thin lamellae and classical samples up to a thickness of 100 nm, depending on the electron attunement. | P188: 72982 | Q188: =Table4[[#This Row],[21]] -> 153.92 | R188: 133.34 | S188: 20.58823529 | T188: 0 | U188: =SUBTOTAL(9,Table4[[#This Row],[18]:[20]]) -> 153.92 | V188: 100 | W188: 40 | X188: https://www.ijs.si/ijsw/Znotraj%20hi%C5%A1e/Desno?action=AttachFile&do=get&target=ARIS_Evidenca_opreme_2024.xlsx | Y188: 3 | Z188: 5 | AA188: 3 | AB188: 60 | AC188: =Table4[[#This Row],[11]] -> P_XX_054 | AD188: 41,76 eur | AE188: 5 | AF188: 100 | AG188: =Table4[[#This Row],[4]] -> I0-0005 | AH188: =Table4[[#This Row],[5]] -> Uroš Cvelbar | AI188: 100
A189: 106 | B189: Institut "Jožef Stefan" | D189: P2-0001 | E189: Gregor Dolanc | F189: 2929 | G189: Oprema za raziskave in aplikacije na področju tehnologije vodenja | H189: 2022 | I189: Equipment for research and application of the field of control technologies | J189: 44,466.63 | K189: P_XX_076 | L189: Oprema je dostopna po predhodnem dogovoru (gregor.dolanc@ijs.si) | M189: The equipment is available upon prior agreement (gregor.dolanc@ijs.si) | N189: Računalniška oprema za obdelavo podatkov, modeliranje in razvoj sistemov za vodenje. Set CAD orodij za modeliranje in konstruiranje AUTODESK Razvojno okolje za izdelavo krmilnih programov in operaterskih vmesnikov Siemens Simatic TIA V17 Oprema za zajem podatkov National Instruments NI USB-6210 779675-01, 3 kosi | O189: Computer equipment for data processing, modeling and development of control systems. Set of CAD toos for modelling and design AUTODESK Develpment package for the design of control programs and operator interfaces Siemens Simatic TIA V17 Data-acquisition equipment National Instruments NI USB-6210 779675-01, 3 pcs. | P189: 71991, 72395, 72642, 72950, 72867, 72846, 72830, 72831, 72833, 72847, 73004, 72949, 73407, 73169, 73225, 73224, 73223, 73222, 73406, 73405 | Q189: =Table4[[#This Row],[21]] -> 4.28 | R189: 4.28 | U189: =SUBTOTAL(9,Table4[[#This Row],[18]:[20]]) -> 4.28 | V189: 100 | W189: 40 | X189: https://www.ijs.si/ijsw/Znotraj%20hi%C5%A1e/Desno?action=AttachFile&do=get&target=ARIS_Evidenca_opreme_2024.xlsx | Y189: 6 | Z189: 1 | AA189: 3 | AB189: 4, 20, 25, 26, 59, 63 | AC189: =Table4[[#This Row],[11]] -> P_XX_076 | AD189: 0 | AE189: 5 | AF189: 100 | AG189: =Table4[[#This Row],[4]] -> P2-0001 | AH189: =Table4[[#This Row],[5]] -> Gregor Dolanc | AI189: 100
A190: 106 | B190: Institut "Jožef Stefan" | D190: P1-0192 | E190: Boris Majaron | F190: 7317 | G190: Sistem za infrardečo tomografijo | H190: 2022 | I190: Fast mid-infrared camera and pulsed laser source | J190: 147,067.06 | K190: P_XX_108 | L190: Oprema je dosegljiva po dogovoru s skrbnikom | M190: Equipment is available upon agreement | N190: globinska karakterizacija optično sipajočih vzorcev z lokaliziranimi absorberji v vidnem področju, druge radiometrične meritve v srednje-IR območju | O190: spatial characterization of optically scattering samples with localized absorbers in visible spectral range; other radiometric measurements in mid-IR spectral range | P190: 72422, 72421, 72866, 72866, 73114 | Q190: =Table4[[#This Row],[21]] -> 50.92 | R190: 14.14 | S190: 17.88 | T190: 18.9 | U190: =SUBTOTAL(9,Table4[[#This Row],[18]:[20]]) -> 50.92 | V190: 100 | W190: 40 | X190: https://www.ijs.si/ijsw/Znotraj%20hi%C5%A1e/Desno?action=AttachFile&do=get&target=ARIS_Evidenca_opreme_2024.xlsx | Y190: 3 | Z190: 3 | AA190: 3 | AB190: 10 | AC190: =Table4[[#This Row],[11]] -> P_XX_108 | AD190: 0 | AE190: 5 | AF190: 100 | AG190: =Table4[[#This Row],[4]] -> P1-0192 | AH190: =Table4[[#This Row],[5]] -> Boris Majaron | AI190: 100
A191: 106 | B191: Institut "Jožef Stefan" | D191: P2-0076 | E191: Jan Babič | F191: 20216 | G191: Sistem za brezkontaktni zajem gibanja in nadzor srčnožilnih odzivov v realnem času | H191: 2022 | I191: System for contactless motion capture and real-time monitoring of cardiovascular responses | J191: 152,818.67 | K191: P_XX_113 | L191: Za dostop do opreme "Sistem za brezkontaktni zajem gibanja in nadzor srčnožilnih odzivov v realnem času" morate najprej pridobiti ustrezna pooblastila od odgovorne osebe ali institucije. Po pridobitvi pooblastil se obrnite na odgovorno osebo ali tehnično osebje, ki vam bo zagotovilo navodila za uporabo opreme in dostop do programske opreme, če je potrebno. Pred uporabo opreme natančno preberite navodila za uporabo in upoštevajte vsa varnostna navodila, da se izognete morebitnim nevarnostim ali poškodbam. | M191: To access the "System for contactless motion capture and real-time monitoring of cardiovascular responses" equipment, you must first obtain appropriate authorization from a responsible person or institution. After obtaining authorization, contact the responsible person or technical staff for instructions on using the equipment and access to any necessary software. Before using the equipment, carefully read the instructions and follow all safety guidelines to avoid potential hazards or injury. | N191: Oprema "Sistem za brezkontaktni zajem gibanja in nadzor srčnožilnih odzivov v realnem času" je zasnovana za neinvazivno in realno spremljanje gibanja in srčnožilnih odzivov človeškega telesa. Lahko se uporablja v različnih okoljih, kot so raziskovalni laboratoriji, bolnišnice in športni objekti, za zbiranje podatkov o telesni aktivnosti in srčnožilnem zdravju. Oprema uporablja napredne senzorje in programsko opremo za zajem in analizo podatkov, kar omogoča natančne in zanesljive meritve. Sistem lahko zagotovi dragocene vpoglede v človeško gibanje in srčnožilno zdravje, kar lahko služi kot podlaga za klinična zdravljenja, športne programe usposabljanja in znanstvene raziskave. | O191: The "System for contactless motion capture and real-time monitoring of cardiovascular responses" equipment is designed for non-invasive and real-time tracking of motion and cardiovascular responses of the human body. It can be used in a variety of settings, such as research laboratories, hospitals, and sports facilities, to gather data on physical activity and cardiovascular health. The equipment uses advanced sensors and software to capture and analyze data, allowing for accurate and reliable measurements. The system can provide valuable insights into human movement and cardiovascular health, which can inform clinical treatments, athletic training programs, and scientific research. | P191: 72446, 72637, 73220 | Q191: =Table4[[#This Row],[21]] -> 54.69 | R191: 14.69 | S191: 20 | T191: 20 | U191: =SUBTOTAL(9,Table4[[#This Row],[18]:[20]]) -> 54.69 | V191: 100 | W191: 40 | X191: https://www.ijs.si/ijsw/Znotraj%20hi%C5%A1e/Desno?action=AttachFile&do=get&target=ARIS_Evidenca_opreme_2024.xlsx | Y191: 4 | Z191: 3 | AA191: 2 | AB191: 46 | AC191: =Table4[[#This Row],[11]] -> P_XX_113 | AD191: 20 | AE191: 5 | AF191: 100 | AG191: =Table4[[#This Row],[4]] -> P2-0076 | AH191: =Table4[[#This Row],[5]] -> Jan Babič | AI191: 100
A192: 106 | B192: Institut "Jožef Stefan" | D192: P1-0040 | E192: Dragan D. Mihailović | F192: 4540 | G192: Oprema za tunelsko in tipalno mikroskopijo | H192: 2022 | I192: Equipment for tunneling and probe microscopy | J192: 256,108.44 | K192: P_XX_114 | L192: Oprema je dostopa po predhodnem dogovoru. Za uporabo zahtevnejše opreme je omogočeno šolanje. Cena storitev je odvisna od zahtevnosti meritev. Kontakt damjan.svetin@ijs.si | M192: Equipment is available on demand. Training can be arranged. The price of services depends on complexity of the measurements. Contact damjan.svetin@ijs.si | N192: Mikroskop na atomsko silo - AFM je namenjen tako osnovni karakterizaciji kot tudi bolj specifičnim meritvam lastnosti površin, nanomaterialov, elektronskih naprav, bioloških molekul ipd. Omogoča delovanje v kontaktnem in tiplanem načinu, meritve faz in lateralnih sil, mikroskopijo magnetnih sil. FAST STM je nadgradnja za tunelski mikroskop, ki omogoča hitro slikanje, do 50 Hz na sliko (frame rate). Nadgradnja omogoča slikanje dinamičnih procesov, ki so za 3 rede velikosti hitrejši kot običajno, s čimer odpira možnosti za dodaten vpogled v hitro dinamiko. Optična zakasnitvena linija omogoča uravnavanje zamikov svetlobnih sunkov v kombinaciji s hitrim STM. | O192: The atomic force microscope - AFM is intended for both basic characterization and more specific measurements of the properties of surfaces, nanomaterials, electronic devices, biological molecules, etc. It enables operation in contact and probe mode, measurements of phases and lateral forces, microscopy of magnetic forces. FAST STM is an upgrade for the tunneling microscope that enables fast imaging, up to 50 Hz per image (frame rate). The upgrade enables imaging of dynamic processes that are 3 orders of magnitude faster than usual, thereby opening up possibilities for additional insight into fast dynamics. An optical delay line allows the adjustment of light burst delays in combination with fast STM. | P192: 71340, 73195 | Q192: =Table4[[#This Row],[21]] -> 76.15 | R192: 24.63 | S192: 17.88 | T192: 33.64 | U192: =SUBTOTAL(9,Table4[[#This Row],[18]:[20]]) -> 76.15 | V192: 100 | W192: 40 | X192: https://www.ijs.si/ijsw/Znotraj%20hi%C5%A1e/Desno?action=AttachFile&do=get&target=ARIS_Evidenca_opreme_2024.xlsx | Y192: 3 | Z192: 6 | AA192: 1 | AB192: 47 | AC192: =Table4[[#This Row],[11]] -> P_XX_114 | AD192: 0 | AE192: 5 | AF192: 100 | AG192: =Table4[[#This Row],[4]] -> P1-0040 | AH192: =Table4[[#This Row],[5]] -> Dragan D. Mihailović | AI192: 100
A193: 106 | B193: Institut "Jožef Stefan" | D193: P2-0082 | E193: Miran Mozetič | F193: 10429 | G193: Oprema za obdelavo površin trdnih snovi z virucidnim delovanjem | H193: 2022 | I193: Material surface treatment equipment for solids with virucidal action | J193: 138,914.09 | K193: P_XX_115 | L193: Uporaba opreme je po dogovoru. Gre za opremo, ki potrebuje znanja za rokovanje z biološkim materialov. Krijejo se stroški operaterja in po potrebi materialni stroški. Kontakt alenka.vesel@ijs.si. | M193: The use of the equipment is by agreement. It is equipment that needs knowledge to handling biological materials. The operator's costs and, where appropriate, material costs shall be covered by the client. Kontact alenka.vesel@ijs.si. | N193: Omogoča obdelavo tekočih in trdnih materialov s plinsko plazmo ter analizo tekočin za namen raziskav inaktivacije mikroorganizmov. | O193: It enables the processing of liquid and solid materials with gas plasma and fluid analysis for the purpose of researching the inactivation of micro-organisms. | P193: 73219 | Q193: =Table4[[#This Row],[21]] -> 40.61 | R193: 13.36 | S193: 11.5 | T193: 15.75 | U193: =SUBTOTAL(9,Table4[[#This Row],[18]:[20]]) -> 40.61 | V193: 100 | W193: 40 | X193: https://www.ijs.si/ijsw/Znotraj%20hi%C5%A1e/Desno?action=AttachFile&do=get&target=ARIS_Evidenca_opreme_2024.xlsx | Y193: 1 | Z193: 4 | AA193: 4 | AB193: 60 | AC193: =Table4[[#This Row],[11]] -> P_XX_115 | AD193: 40 | AE193: 5 | AF193: 100 | AG193: =Table4[[#This Row],[4]] -> P2-0082 | AH193: =Table4[[#This Row],[5]] -> Miran Mozetič | AI193: 50 | AJ193: L7-3184 | AK193: Izr. prof. dr. Rok Zaplotnik | AL193: 20 | AM193: L2-2617 | AN193: Doc. dr. Gregor Primc | AO193: 15 | AP193: J3-4502 | AQ193: Dr. Metka Benčina | AR193: 15
